{"text_format":"1","workbook":"xlsx","n_sheets":5,"sheets":["Item Template","U of M Template","Vendor Item Template","Stock Count Template","Item Locations Template"],"not_rendered":{"charts":0,"images":0,"macros":1,"external_links":1,"defined_names":1,"comments":5,"pivot_tables":0},"unopened":[],"bounds":{"document_bytes":16777216,"sheet_cells":100000,"rows_first":2000,"rows_last":500,"rows_between":2000,"halvings":0,"cell_chars":16384,"cell_head_chars":4096},"cells_cut":0,"cells_raw":0,"read":"whole","date_system":"1900"}

{"sheet":"Item Template","index":0,"n_rows":21,"n_cols":16,"rows_kept":21,"cut":false,"hidden":false,"merged":[[0,1,1,2],[0,3,1,4],[0,6,1,7],[0,5,1,5],[2,13,2,15]]}
["Red Font is a required field",null,null,null,null," "]
[]
["Name","Number","Description","Vendor","Cost Update Method","Per Inventory Unit Cost","Case Cost","Cost Account Name","Inventory Account Name","Inventory U of M","Default Purchase U of M","Inventory U of M 2","Inventory U of M 3","Item Categories"]
[]
[]
[]
[]
[]
[]
[]
[]
[]
["BREAD 9 Grain Loaf",12271658,"BREAD LOAF 9 GRAIN OPEN TOP","Sysco","Manual",{"$f":"G13/6","v":1.2},7.2,"COGS Bread","Bread Inventory","Loaf (14 Slices)","Case - 6/Loaf(14 Slice)","Case - 6/Loaf(14 Slice)",null,"Food","Bread"]
["BEEF Ground",12345678,"GRND BEEF CHUCK CS 20#","Sysco","Auto Update Avg Last 3 Invoices",68.48,68.48,"COGS Meat","Meat Inventory","lb","lb",null,null,"Food","Meat","Beef"]
["FLOUR All Purpose",68419295,"FLOUR BLEACHED WHT 50LBS","Sysco","Auto Update From Invoice",32.89,32.89,"COGS Dry Goods","Dry Goods Inventory","lb","Bag - 50/lb","Bag - 50/lb",null,"Food","Grocery","Flour"]
["VEG Cabbage",56215848,"Cabbage CS/24 HEADS Prpl","Sysco","Auto Update From Invoice",0.79,19.04,"COGS Produce","Produce Inventory","Head","Case - 24/Head","Case - 24/Head",null,"Food","Produce","Veg"]
["MILK 2%",85642156,"MILK 2% 4/1 GA","US Foods","Auto Update From Invoice",{"$f":"G17/4","v":3.625},14.5,"COGS Dairy","Dairy Inventory","Gallon","Case - 4/Gallon","Case - 4/Gallon",null,"Food","Dairy","Milk"]
["DRY Shortening",14518403,"Shortening Fry Liq Clr Zt","US Foods","Auto Update From Invoice",{"$f":"G18/3","v":6.8500000000000005},20.55,"COGS Misc","Misc Inventory","Container (5lb)","Case - 3/Container (5lb)","Case - 3/Container (5lb)",null,"Food","Grocery"]
["BEEF Ground",85489522,"GROUND BEEF CHUCK 85% 4/5#","Sysco","Auto Update From Invoice",3.55,71,"COGS Meat","Meat Inventory","lb","Case - 20/lb","Case - 20/lb",null,"Food","Meat","Beef"]
["BEEF Ground",48224856,"GROUND BEEF PREMIUM 85/15","US Foods","Auto Update From Invoice",3.55,124.25,"COGS Meat","Meat Inventory","lb","Case - 30/lb","Case - 30/lb",null,"Food","Meat","Beef"]
["Name","Vendor Item Code","Description","Vendor","Cost Update Method","Inventory Cost","Case Cost","Cost Account Name","Inventory Account Name","Inventory U of M","Default Purchase U of M","Count UofM 2","Count UofM 3","Item Category 1","Item Category 2","Item Category 3"]

{"sheet":"U of M Template","index":1,"n_rows":29,"n_cols":3,"rows_kept":29,"cut":false,"hidden":false,"merged":[[0,2,1,4]]}
["Red Font is a required field"]
[]
["Name","Equivalent U of M","Equivalent Qty"]
[]
[]
[]
[]
[]
[]
["Name","Equivalent U of M","Equivalent Qty"]
["Dozen","Each",12]
["Gallon","OZ-fl",128]
["1/2 Gallon","OZ-fl",64]
["Liter","OZ-fl",33.814]
["Quart","OZ-fl",32]
["mL","OZ-fl",3.3813999999999997E-2]
["Kilo","OZ-wt",35.274000000000001]
["lb","OZ-wt",16]
["#10 Can","OZ-fl",109]
["Gram","OZ-wt",3.5274E-2]
["Pint","OZ-fl",16]
["Cup","OZ-fl",8]
["Tbsp","OZ-fl",0.5]
["tsp","OZ-fl",0.16666700000000001]
["1/2 Keg","Gallon",15.5]
["Bottle","Each",1]
["Keg (960oz)","oz-fl",960]
["Case - 24/Bottle","Bottle",24]
["Case - 12/Bottle","Bottle",12]

{"sheet":"Vendor Item Template","index":2,"n_rows":14,"n_cols":10,"rows_kept":14,"cut":false,"hidden":false,"merged":[[0,1,1,2]]}
["Red Font is a required field"]
[]
["Item","Vendor","Purchase U of M","Vendor Item Number","Vendor Item Name","Split U of M","Contract Price","Split Contract Price","Contract Expiration","Acceptable Variance %"]
[]
[]
[]
[]
[]
[]
[]
["BEEF Ground","Sysco","Case = 20/lb",85489522,"GROUND BEEF CHUCK 85% 4/5#","Chub = 5/lb",71,17.75,"2017-06-30",5]
["BEEF Ground","US Foods","Case = 35/lb",48224856,"GROUND BEEF PREMIUM 85/15",null,124.25,null,"2018-02-28",5]
["BREAD 9 Grain Loaf","Sysco","Case = 6/Loaf (14 Slices)",2271658,"BREAD LOAF 9 GRAIN OPEN TOP","Loaf (14 Slices)",7.2,{"$f":"G13/3","v":2.4},"2017-06-30",3]
["Item","Vendor","Purchase U of M","Vendor Item Number","Vendor Item Name","Split U of M","Contract Price","Split Contract Price","Contract Expiration","Acceptable Variance %"]

{"sheet":"Stock Count Template","index":3,"n_rows":18,"n_cols":5,"rows_kept":18,"cut":false,"hidden":false,"merged":[[0,2,1,3]]}
["Red Font is a required field"]
[]
["Name","Frequency","Location","Storage Location","Item"]
[]
[]
[]
[]
[]
[]
[]
["Full Inventory","Weekly",100,"Walk In","MILK 2%"]
["Full Inventory","Weekly",100,"Walk In","EGGS"]
["Full Inventory","Weekly",100,"Walk In","DAIRY Sour Cream"]
["Full Inventory","Weekly",100,"Dry Storage","FLOUR All Purpose"]
["Full Inventory","Weekly",100,"Dry Storage","BEANS Pinto"]
["Full Inventory","Weekly",100,"Dry Storage","FLOUR Gluten Free"]
["Full Inventory","Weekly",100,"Dry Storage","DRY Oats Quick"]
["Name","Frequency","Location","Storage Location","Item"]

{"sheet":"Item Locations Template","index":4,"n_rows":3157,"n_cols":11,"rows_kept":3157,"cut":false,"hidden":false,"merged":[[0,2,1,3],[0,6,1,7]]}
["Red Font is a required field"]
[]
["Location","Item","Inventory U of M","Cost",null,null,"Tab Instructions"]
[]
[]
[]
[]
[]
[]
[]
["Location 100","BREAD 9 Grain Loaf","Loaf (14 Slices)",1.2]
["Location 200","BREAD 9 Grain Loaf","Loaf (14 Slices)",1.55]
["Location 300","BREAD 9 Grain Loaf","Loaf (14 Slices)",1.39]
["Location","Item","Inventory U of M","Cost",null,null,"Location List",null,null,"Location List (Name example)","Location List (Number example)"]
[null,null,null,null,null,null,null,{"$f":"'Item Template'!#REF!","v":{"$error":"#REF!"}},null,"Location 100",100]
[null,null,null,null,null,null,null,{"$f":"'Item Template'!#REF!","v":{"$error":"#REF!"}},null,"Location 200",200]
[null,null,null,null,null,null,null,{"$f":"'Item Template'!#REF!","v":{"$error":"#REF!"}},null,"Location 300",300]
[null,null,null,null,null,null,null,{"$f":"'Item Template'!#REF!","v":{"$error":"#REF!"}},null,"Location 400",400]
[null,null,null,null,null,null,null,{"$f":"'Item Template'!#REF!","v":{"$error":"#REF!"}},null,"Location 500",500]
[null,null,null,null,null,null,null,{"$f":"'Item Template'!#REF!","v":{"$error":"#REF!"}},null,"Location 600",600]
[null,null,null,null,null,null,null,{"$f":"'Item Template'!#REF!","v":{"$error":"#REF!"}},null,"Location 700",700]
[null,null,null,null,null,null,null,{"$f":"'Item Template'!#REF!","v":{"$error":"#REF!"}},null,"Location 800",800]
[null,null,null,null,null,null,null,{"$f":"'Item Template'!#REF!","v":{"$error":"#REF!"}},null,"Location 900",900]
[null,null,null,null,null,null,null,{"$f":"'Item Template'!#REF!","v":{"$error":"#REF!"}},null,"Location 1000",1000]
[null,null,null,null,null,null,null,{"$f":"'Item Template'!#REF!","v":{"$error":"#REF!"}},null,"Location 1100",1100]
[null,null,null,null,null,null,null,{"$f":"'Item Template'!#REF!","v":{"$error":"#REF!"}},null,"Location 1200",1200]
[null,null,null,null,null,null,null,{"$f":"'Item Template'!#REF!","v":{"$error":"#REF!"}},null,"Location 1300",1300]
[null,null,null,null,null,null,null,{"$f":"'Item Template'!#REF!","v":{"$error":"#REF!"}},null,"Location 1400",1400]
[null,null,null,null,null,null,null,{"$f":"'Item Template'!#REF!","v":{"$error":"#REF!"}},null,"Location 1500",1500]
[null,null,null,null,null,null,null,{"$f":"'Item Template'!#REF!","v":{"$error":"#REF!"}},null,"Location 1600",1600]
[null,null,null,null,null,null,null,{"$f":"'Item Template'!#REF!","v":{"$error":"#REF!"}},null,"Location 1700",1700]
[null,null,null,null,null,null,null,{"$f":"'Item Template'!#REF!","v":{"$error":"#REF!"}},null,"Location 1800",1800]
[null,null,null,null,null,null,null,{"$f":"'Item Template'!#REF!","v":{"$error":"#REF!"}},null,"etc.","etc."]
[null,null,null,null,null,null,null,{"$f":"'Item Template'!#REF!","v":{"$error":"#REF!"}}]
[null,null,null,null,null,null,null,{"$f":"'Item Template'!#REF!","v":{"$error":"#REF!"}}]
[null,null,null,null,null,null,null,{"$f":"'Item Template'!#REF!","v":{"$error":"#REF!"}}]
[null,null,null,null,null,null,null,{"$f":"'Item Template'!#REF!","v":{"$error":"#REF!"}}]
[null,null,null,null,null,null,null,{"$f":"'Item Template'!#REF!","v":{"$error":"#REF!"}}]
[null,null,null,null,null,null,null,{"$f":"'Item Template'!#REF!","v":{"$error":"#REF!"}}]
[null,null,null,null,null,null,null,{"$f":"'Item Template'!#REF!","v":{"$error":"#REF!"}}]
[null,null,null,null,null,null,null,{"$f":"'Item Template'!#REF!","v":{"$error":"#REF!"}}]
[null,null,null,null,null,null,null,{"$f":"'Item Template'!#REF!","v":{"$error":"#REF!"}}]
[null,null,null,null,null,null,null,{"$f":"'Item Template'!#REF!","v":{"$error":"#REF!"}}]
[null,null,null,null,null,null,null,{"$f":"'Item Template'!#REF!","v":{"$error":"#REF!"}}]
[null,null,null,null,null,null,null,{"$f":"'Item Template'!#REF!","v":{"$error":"#REF!"}}]
[null,null,null,null,null,null,null,{"$f":"'Item Template'!#REF!","v":{"$error":"#REF!"}}]
[null,null,null,null,null,null,null,{"$f":"'Item Template'!#REF!","v":{"$error":"#REF!"}}]
[null,null,null,null,null,null,null,{"$f":"'Item Template'!#REF!","v":{"$error":"#REF!"}}]
[null,null,null,null,null,null,null,{"$f":"'Item Template'!#REF!","v":{"$error":"#REF!"}}]
[null,null,null,null,null,null,null,{"$f":"'Item Template'!#REF!","v":{"$error":"#REF!"}}]
[null,null,null,null,null,null,null,{"$f":"'Item Template'!#REF!","v":{"$error":"#REF!"}}]
[null,null,null,null,null,null,null,{"$f":"'Item Template'!#REF!","v":{"$error":"#REF!"}}]
[null,null,null,null,null,null,null,{"$f":"'Item Template'!#REF!","v":{"$error":"#REF!"}}]
[null,null,null,null,null,null,null,{"$f":"'Item Template'!#REF!","v":{"$error":"#REF!"}}]
[null,null,null,null,null,null,null,{"$f":"'Item Template'!#REF!","v":{"$error":"#REF!"}}]
[null,null,null,null,null,null,null,{"$f":"'Item Template'!#REF!","v":{"$error":"#REF!"}}]
[null,null,null,null,null,null,null,{"$f":"'Item Template'!#REF!","v":{"$error":"#REF!"}}]
[null,null,null,null,null,null,null,{"$f":"'Item Template'!#REF!","v":{"$error":"#REF!"}}]
[null,null,null,null,null,null,null,{"$f":"'Item Template'!#REF!","v":{"$error":"#REF!"}}]
[null,null,null,null,null,null,null,{"$f":"'Item Template'!#REF!","v":{"$error":"#REF!"}}]
[null,null,null,null,null,null,null,{"$f":"'Item Template'!#REF!","v":{"$error":"#REF!"}}]
[null,null,null,null,null,null,null,{"$f":"'Item Template'!#REF!","v":{"$error":"#REF!"}}]
[null,null,null,null,null,null,null,{"$f":"'Item Template'!#REF!","v":{"$error":"#REF!"}}]
[null,null,null,null,null,null,null,{"$f":"'Item Template'!#REF!","v":{"$error":"#REF!"}}]
[null,null,null,null,null,null,null,{"$f":"'Item Template'!#REF!","v":{"$error":"#REF!"}}]
[null,null,null,null,null,null,null,{"$f":"'Item Template'!#REF!","v":{"$error":"#REF!"}}]
[null,null,null,null,null,null,null,{"$f":"'Item Template'!#REF!","v":{"$error":"#REF!"}}]
[null,null,null,null,null,null,null,{"$f":"'Item Template'!#REF!","v":{"$error":"#REF!"}}]
[null,null,null,null,null,null,null,{"$f":"'Item Template'!#REF!","v":{"$error":"#REF!"}}]
[null,null,null,null,null,null,null,{"$f":"'Item Template'!#REF!","v":{"$error":"#REF!"}}]
[null,null,null,null,null,null,null,{"$f":"'Item Template'!#REF!","v":{"$error":"#REF!"}}]
[null,null,null,null,null,null,null,{"$f":"'Item Template'!#REF!","v":{"$error":"#REF!"}}]
[null,null,null,null,null,null,null,{"$f":"'Item Template'!#REF!","v":{"$error":"#REF!"}}]
[null,null,null,null,null,null,null,{"$f":"'Item Template'!#REF!","v":{"$error":"#REF!"}}]
[null,null,null,null,null,null,null,{"$f":"'Item Template'!#REF!","v":{"$error":"#REF!"}}]
[null,null,null,null,null,null,null,{"$f":"'Item Template'!#REF!","v":{"$error":"#REF!"}}]
[null,null,null,null,null,null,null,{"$f":"'Item Template'!#REF!","v":{"$error":"#REF!"}}]
[null,null,null,null,null,null,null,{"$f":"'Item Template'!#REF!","v":{"$error":"#REF!"}}]
[null,null,null,null,null,null,null,{"$f":"'Item Template'!#REF!","v":{"$error":"#REF!"}}]
[null,null,null,null,null,null,null,{"$f":"'Item Template'!#REF!","v":{"$error":"#REF!"}}]
[null,null,null,null,null,null,null,{"$f":"'Item Template'!#REF!","v":{"$error":"#REF!"}}]
[null,null,null,null,null,null,null,{"$f":"'Item Template'!#REF!","v":{"$error":"#REF!"}}]
[null,null,null,null,null,null,null,{"$f":"'Item Template'!#REF!","v":{"$error":"#REF!"}}]
[null,null,null,null,null,null,null,{"$f":"'Item Template'!#REF!","v":{"$error":"#REF!"}}]
[null,null,null,null,null,null,null,{"$f":"'Item Template'!#REF!","v":{"$error":"#REF!"}}]
[null,null,null,null,null,null,null,{"$f":"'Item Template'!#REF!","v":{"$error":"#REF!"}}]
[null,null,null,null,null,null,null,{"$f":"'Item Template'!#REF!","v":{"$error":"#REF!"}}]
[null,null,null,null,null,null,null,{"$f":"'Item Template'!#REF!","v":{"$error":"#REF!"}}]
[null,null,null,null,null,null,null,{"$f":"'Item Template'!#REF!","v":{"$error":"#REF!"}}]
[null,null,null,null,null,null,null,{"$f":"'Item Template'!#REF!","v":{"$error":"#REF!"}}]
[null,null,null,null,null,null,null,{"$f":"'Item Template'!#REF!","v":{"$error":"#REF!"}}]
[null,null,null,null,null,null,null,{"$f":"'Item Template'!#REF!","v":{"$error":"#REF!"}}]
[null,null,null,null,null,null,null,{"$f":"'Item Template'!#REF!","v":{"$error":"#REF!"}}]
[null,null,null,null,null,null,null,{"$f":"'Item Template'!#REF!","v":{"$error":"#REF!"}}]
[null,null,null,null,null,null,null,{"$f":"'Item Template'!#REF!","v":{"$error":"#REF!"}}]
[null,null,null,null,null,null,null,{"$f":"'Item Template'!#REF!","v":{"$error":"#REF!"}}]
[null,null,null,null,null,null,null,{"$f":"'Item Template'!#REF!","v":{"$error":"#REF!"}}]
[null,null,null,null,null,null,null,{"$f":"'Item Template'!#REF!","v":{"$error":"#REF!"}}]
[null,null,null,null,null,null,null,{"$f":"'Item Template'!#REF!","v":{"$error":"#REF!"}}]
[null,null,null,null,null,null,null,{"$f":"'Item Template'!#REF!","v":{"$error":"#REF!"}}]
[null,null,null,null,null,null,null,{"$f":"'Item Template'!#REF!","v":{"$error":"#REF!"}}]
[null,null,null,null,null,null,null,{"$f":"'Item Template'!#REF!","v":{"$error":"#REF!"}}]
[null,null,null,null,null,null,null,{"$f":"'Item Template'!#REF!","v":{"$error":"#REF!"}}]
[null,null,null,null,null,null,null,{"$f":"'Item Template'!#REF!","v":{"$error":"#REF!"}}]
[null,null,null,null,null,null,null,{"$f":"'Item Template'!#REF!","v":{"$error":"#REF!"}}]
[null,null,null,null,null,null,null,{"$f":"'Item Template'!#REF!","v":{"$error":"#REF!"}}]
[null,null,null,null,null,null,null,{"$f":"'Item Template'!#REF!","v":{"$error":"#REF!"}}]
[null,null,null,null,null,null,null,{"$f":"'Item Template'!#REF!","v":{"$error":"#REF!"}}]
[null,null,null,null,null,null,null,{"$f":"'Item Template'!#REF!","v":{"$error":"#REF!"}}]
[null,null,null,null,null,null,null,{"$f":"'Item Template'!#REF!","v":{"$error":"#REF!"}}]
[null,null,null,null,null,null,null,{"$f":"'Item Template'!#REF!","v":{"$error":"#REF!"}}]
[null,null,null,null,null,null,null,{"$f":"'Item Template'!#REF!","v":{"$error":"#REF!"}}]
[null,null,null,null,null,null,null,{"$f":"'Item Template'!#REF!","v":{"$error":"#REF!"}}]
[null,null,null,null,null,null,null,{"$f":"'Item Template'!#REF!","v":{"$error":"#REF!"}}]
[null,null,null,null,null,null,null,{"$f":"'Item Template'!#REF!","v":{"$error":"#REF!"}}]
[null,null,null,null,null,null,null,{"$f":"'Item Template'!#REF!","v":{"$error":"#REF!"}}]
[null,null,null,null,null,null,null,{"$f":"'Item Template'!#REF!","v":{"$error":"#REF!"}}]
[null,null,null,null,null,null,null,{"$f":"'Item Template'!#REF!","v":{"$error":"#REF!"}}]
[null,null,null,null,null,null,null,{"$f":"'Item Template'!#REF!","v":{"$error":"#REF!"}}]
[null,null,null,null,null,null,null,{"$f":"'Item Template'!#REF!","v":{"$error":"#REF!"}}]
[null,null,null,null,null,null,null,{"$f":"'Item Template'!#REF!","v":{"$error":"#REF!"}}]
[null,null,null,null,null,null,null,{"$f":"'Item Template'!#REF!","v":{"$error":"#REF!"}}]
[null,null,null,null,null,null,null,{"$f":"'Item Template'!#REF!","v":{"$error":"#REF!"}}]
[null,null,null,null,null,null,null,{"$f":"'Item Template'!#REF!","v":{"$error":"#REF!"}}]
[null,null,null,null,null,null,null,{"$f":"'Item Template'!#REF!","v":{"$error":"#REF!"}}]
[null,null,null,null,null,null,null,{"$f":"'Item Template'!#REF!","v":{"$error":"#REF!"}}]
[null,null,null,null,null,null,null,{"$f":"'Item Template'!#REF!","v":{"$error":"#REF!"}}]
[null,null,null,null,null,null,null,{"$f":"'Item Template'!#REF!","v":{"$error":"#REF!"}}]
[null,null,null,null,null,null,null,{"$f":"'Item Template'!#REF!","v":{"$error":"#REF!"}}]
[null,null,null,null,null,null,null,{"$f":"'Item Template'!#REF!","v":{"$error":"#REF!"}}]
[null,null,null,null,null,null,null,{"$f":"'Item Template'!#REF!","v":{"$error":"#REF!"}}]
[null,null,null,null,null,null,null,{"$f":"'Item Template'!#REF!","v":{"$error":"#REF!"}}]
[null,null,null,null,null,null,null,{"$f":"'Item Template'!#REF!","v":{"$error":"#REF!"}}]
[null,null,null,null,null,null,null,{"$f":"'Item Template'!#REF!","v":{"$error":"#REF!"}}]
[null,null,null,null,null,null,null,{"$f":"'Item Template'!#REF!","v":{"$error":"#REF!"}}]
[null,null,null,null,null,null,null,{"$f":"'Item Template'!#REF!","v":{"$error":"#REF!"}}]
[null,null,null,null,null,null,null,{"$f":"'Item Template'!#REF!","v":{"$error":"#REF!"}}]
[null,null,null,null,null,null,null,{"$f":"'Item Template'!#REF!","v":{"$error":"#REF!"}}]
[null,null,null,null,null,null,null,{"$f":"'Item Template'!#REF!","v":{"$error":"#REF!"}}]
[null,null,null,null,null,null,null,{"$f":"'Item Template'!#REF!","v":{"$error":"#REF!"}}]
[null,null,null,null,null,null,null,{"$f":"'Item Template'!#REF!","v":{"$error":"#REF!"}}]
[null,null,null,null,null,null,null,{"$f":"'Item Template'!#REF!","v":{"$error":"#REF!"}}]
[null,null,null,null,null,null,null,{"$f":"'Item Template'!#REF!","v":{"$error":"#REF!"}}]
[null,null,null,null,null,null,null,{"$f":"'Item Template'!#REF!","v":{"$error":"#REF!"}}]
[null,null,null,null,null,null,null,{"$f":"'Item Template'!#REF!","v":{"$error":"#REF!"}}]
[null,null,null,null,null,null,null,{"$f":"'Item Template'!#REF!","v":{"$error":"#REF!"}}]
[null,null,null,null,null,null,null,{"$f":"'Item Template'!#REF!","v":{"$error":"#REF!"}}]
[null,null,null,null,null,null,null,{"$f":"'Item Template'!#REF!","v":{"$error":"#REF!"}}]
[null,null,null,null,null,null,null,{"$f":"'Item Template'!#REF!","v":{"$error":"#REF!"}}]
[null,null,null,null,null,null,null,{"$f":"'Item Template'!#REF!","v":{"$error":"#REF!"}}]
[null,null,null,null,null,null,null,{"$f":"'Item Template'!#REF!","v":{"$error":"#REF!"}}]
[null,null,null,null,null,null,null,{"$f":"'Item Template'!#REF!","v":{"$error":"#REF!"}}]
[null,null,null,null,null,null,null,{"$f":"'Item Template'!#REF!","v":{"$error":"#REF!"}}]
[null,null,null,null,null,null,null,{"$f":"'Item Template'!#REF!","v":{"$error":"#REF!"}}]
[null,null,null,null,null,null,null,{"$f":"'Item Template'!#REF!","v":{"$error":"#REF!"}}]
[null,null,null,null,null,null,null,{"$f":"'Item Template'!#REF!","v":{"$error":"#REF!"}}]
[null,null,null,null,null,null,null,{"$f":"'Item Template'!#REF!","v":{"$error":"#REF!"}}]
[null,null,null,null,null,null,null,{"$f":"'Item Template'!#REF!","v":{"$error":"#REF!"}}]
[null,null,null,null,null,null,null,{"$f":"'Item Template'!#REF!","v":{"$error":"#REF!"}}]
[null,null,null,null,null,null,null,{"$f":"'Item Template'!#REF!","v":{"$error":"#REF!"}}]
[null,null,null,null,null,null,null,{"$f":"'Item Template'!#REF!","v":{"$error":"#REF!"}}]
[null,null,null,null,null,null,null,{"$f":"'Item Template'!#REF!","v":{"$error":"#REF!"}}]
[null,null,null,null,null,null,null,{"$f":"'Item Template'!#REF!","v":{"$error":"#REF!"}}]
[null,null,null,null,null,null,null,{"$f":"'Item Template'!#REF!","v":{"$error":"#REF!"}}]
[null,null,null,null,null,null,null,{"$f":"'Item Template'!#REF!","v":{"$error":"#REF!"}}]
[null,null,null,null,null,null,null,{"$f":"'Item Template'!#REF!","v":{"$error":"#REF!"}}]
[null,null,null,null,null,null,null,{"$f":"'Item Template'!#REF!","v":{"$error":"#REF!"}}]
[null,null,null,null,null,null,null,{"$f":"'Item Template'!#REF!","v":{"$error":"#REF!"}}]
[null,null,null,null,null,null,null,{"$f":"'Item Template'!#REF!","v":{"$error":"#REF!"}}]
[null,null,null,null,null,null,null,{"$f":"'Item Template'!#REF!","v":{"$error":"#REF!"}}]
[null,null,null,null,null,null,null,{"$f":"'Item Template'!#REF!","v":{"$error":"#REF!"}}]
[null,null,null,null,null,null,null,{"$f":"'Item Template'!#REF!","v":{"$error":"#REF!"}}]
[null,null,null,null,null,null,null,{"$f":"'Item Template'!#REF!","v":{"$error":"#REF!"}}]
[null,null,null,null,null,null,null,{"$f":"'Item Template'!#REF!","v":{"$error":"#REF!"}}]
[null,null,null,null,null,null,null,{"$f":"'Item Template'!#REF!","v":{"$error":"#REF!"}}]
[null,null,null,null,null,null,null,{"$f":"'Item Template'!#REF!","v":{"$error":"#REF!"}}]
[null,null,null,null,null,null,null,{"$f":"'Item Template'!#REF!","v":{"$error":"#REF!"}}]
[null,null,null,null,null,null,null,{"$f":"'Item Template'!#REF!","v":{"$error":"#REF!"}}]
[null,null,null,null,null,null,null,{"$f":"'Item Template'!#REF!","v":{"$error":"#REF!"}}]
[null,null,null,null,null,null,null,{"$f":"'Item Template'!#REF!","v":{"$error":"#REF!"}}]
[null,null,null,null,null,null,null,{"$f":"'Item Template'!#REF!","v":{"$error":"#REF!"}}]
[null,null,null,null,null,null,null,{"$f":"'Item Template'!#REF!","v":{"$error":"#REF!"}}]
[null,null,null,null,null,null,null,{"$f":"'Item Template'!#REF!","v":{"$error":"#REF!"}}]
[null,null,null,null,null,null,null,{"$f":"'Item Template'!#REF!","v":{"$error":"#REF!"}}]
[null,null,null,null,null,null,null,{"$f":"'Item Template'!#REF!","v":{"$error":"#REF!"}}]
[null,null,null,null,null,null,null,{"$f":"'Item Template'!#REF!","v":{"$error":"#REF!"}}]
[null,null,null,null,null,null,null,{"$f":"'Item Template'!#REF!","v":{"$error":"#REF!"}}]
[null,null,null,null,null,null,null,{"$f":"'Item Template'!#REF!","v":{"$error":"#REF!"}}]
[null,null,null,null,null,null,null,{"$f":"'Item Template'!#REF!","v":{"$error":"#REF!"}}]
[null,null,null,null,null,null,null,{"$f":"'Item Template'!#REF!","v":{"$error":"#REF!"}}]
[null,null,null,null,null,null,null,{"$f":"'Item Template'!#REF!","v":{"$error":"#REF!"}}]
[null,null,null,null,null,null,null,{"$f":"'Item Template'!#REF!","v":{"$error":"#REF!"}}]
[null,null,null,null,null,null,null,{"$f":"'Item Template'!#REF!","v":{"$error":"#REF!"}}]
[null,null,null,null,null,null,null,{"$f":"'Item Template'!#REF!","v":{"$error":"#REF!"}}]
[null,null,null,null,null,null,null,{"$f":"'Item Template'!#REF!","v":{"$error":"#REF!"}}]
[null,null,null,null,null,null,null,{"$f":"'Item Template'!#REF!","v":{"$error":"#REF!"}}]
[null,null,null,null,null,null,null,{"$f":"'Item Template'!#REF!","v":{"$error":"#REF!"}}]
[null,null,null,null,null,null,null,{"$f":"'Item Template'!#REF!","v":{"$error":"#REF!"}}]
[null,null,null,null,null,null,null,{"$f":"'Item Template'!#REF!","v":{"$error":"#REF!"}}]
[null,null,null,null,null,null,null,{"$f":"'Item Template'!#REF!","v":{"$error":"#REF!"}}]
[null,null,null,null,null,null,null,{"$f":"'Item Template'!#REF!","v":{"$error":"#REF!"}}]
[null,null,null,null,null,null,null,{"$f":"'Item Template'!#REF!","v":{"$error":"#REF!"}}]
[null,null,null,null,null,null,null,{"$f":"'Item Template'!#REF!","v":{"$error":"#REF!"}}]
[null,null,null,null,null,null,null,{"$f":"'Item Template'!#REF!","v":{"$error":"#REF!"}}]
[null,null,null,null,null,null,null,{"$f":"'Item Template'!#REF!","v":{"$error":"#REF!"}}]
[null,null,null,null,null,null,null,{"$f":"'Item Template'!#REF!","v":{"$error":"#REF!"}}]
[null,null,null,null,null,null,null,{"$f":"'Item Template'!#REF!","v":{"$error":"#REF!"}}]
[null,null,null,null,null,null,null,{"$f":"'Item Template'!#REF!","v":{"$error":"#REF!"}}]
[null,null,null,null,null,null,null,{"$f":"'Item Template'!#REF!","v":{"$error":"#REF!"}}]
[null,null,null,null,null,null,null,{"$f":"'Item Template'!#REF!","v":{"$error":"#REF!"}}]
[null,null,null,null,null,null,null,{"$f":"'Item Template'!#REF!","v":{"$error":"#REF!"}}]
[null,null,null,null,null,null,null,{"$f":"'Item Template'!#REF!","v":{"$error":"#REF!"}}]
[null,null,null,null,null,null,null,{"$f":"'Item Template'!#REF!","v":{"$error":"#REF!"}}]
[null,null,null,null,null,null,null,{"$f":"'Item Template'!#REF!","v":{"$error":"#REF!"}}]
[null,null,null,null,null,null,null,{"$f":"'Item Template'!#REF!","v":{"$error":"#REF!"}}]
[null,null,null,null,null,null,null,{"$f":"'Item Template'!#REF!","v":{"$error":"#REF!"}}]
[null,null,null,null,null,null,null,{"$f":"'Item Template'!#REF!","v":{"$error":"#REF!"}}]
[null,null,null,null,null,null,null,{"$f":"'Item Template'!#REF!","v":{"$error":"#REF!"}}]
[null,null,null,null,null,null,null,{"$f":"'Item Template'!#REF!","v":{"$error":"#REF!"}}]
[null,null,null,null,null,null,null,{"$f":"'Item Template'!#REF!","v":{"$error":"#REF!"}}]
[null,null,null,null,null,null,null,{"$f":"'Item Template'!#REF!","v":{"$error":"#REF!"}}]
[null,null,null,null,null,null,null,{"$f":"'Item Template'!#REF!","v":{"$error":"#REF!"}}]
[null,null,null,null,null,null,null,{"$f":"'Item Template'!#REF!","v":{"$error":"#REF!"}}]
[null,null,null,null,null,null,null,{"$f":"'Item Template'!#REF!","v":{"$error":"#REF!"}}]
[null,null,null,null,null,null,null,{"$f":"'Item Template'!#REF!","v":{"$error":"#REF!"}}]
[null,null,null,null,null,null,null,{"$f":"'Item Template'!#REF!","v":{"$error":"#REF!"}}]
[null,null,null,null,null,null,null,{"$f":"'Item Template'!#REF!","v":{"$error":"#REF!"}}]
[null,null,null,null,null,null,null,{"$f":"'Item Template'!#REF!","v":{"$error":"#REF!"}}]
[null,null,null,null,null,null,null,{"$f":"'Item Template'!#REF!","v":{"$error":"#REF!"}}]
[null,null,null,null,null,null,null,{"$f":"'Item Template'!#REF!","v":{"$error":"#REF!"}}]
[null,null,null,null,null,null,null,{"$f":"'Item Template'!#REF!","v":{"$error":"#REF!"}}]
[null,null,null,null,null,null,null,{"$f":"'Item Template'!#REF!","v":{"$error":"#REF!"}}]
[null,null,null,null,null,null,null,{"$f":"'Item Template'!#REF!","v":{"$error":"#REF!"}}]
[null,null,null,null,null,null,null,{"$f":"'Item Template'!#REF!","v":{"$error":"#REF!"}}]
[null,null,null,null,null,null,null,{"$f":"'Item Template'!#REF!","v":{"$error":"#REF!"}}]
[null,null,null,null,null,null,null,{"$f":"'Item Template'!#REF!","v":{"$error":"#REF!"}}]
[null,null,null,null,null,null,null,{"$f":"'Item Template'!#REF!","v":{"$error":"#REF!"}}]
[null,null,null,null,null,null,null,{"$f":"'Item Template'!#REF!","v":{"$error":"#REF!"}}]
[null,null,null,null,null,null,null,{"$f":"'Item Template'!#REF!","v":{"$error":"#REF!"}}]
[null,null,null,null,null,null,null,{"$f":"'Item Template'!#REF!","v":{"$error":"#REF!"}}]
[null,null,null,null,null,null,null,{"$f":"'Item Template'!#REF!","v":{"$error":"#REF!"}}]
[null,null,null,null,null,null,null,{"$f":"'Item Template'!#REF!","v":{"$error":"#REF!"}}]
[null,null,null,null,null,null,null,{"$f":"'Item Template'!#REF!","v":{"$error":"#REF!"}}]
[null,null,null,null,null,null,null,{"$f":"'Item Template'!#REF!","v":{"$error":"#REF!"}}]
[null,null,null,null,null,null,null,{"$f":"'Item Template'!#REF!","v":{"$error":"#REF!"}}]
[null,null,null,null,null,null,null,{"$f":"'Item Template'!#REF!","v":{"$error":"#REF!"}}]
[null,null,null,null,null,null,null,{"$f":"'Item Template'!#REF!","v":{"$error":"#REF!"}}]
[null,null,null,null,null,null,null,{"$f":"'Item Template'!#REF!","v":{"$error":"#REF!"}}]
[null,null,null,null,null,null,null,{"$f":"'Item Template'!#REF!","v":{"$error":"#REF!"}}]
[null,null,null,null,null,null,null,{"$f":"'Item Template'!#REF!","v":{"$error":"#REF!"}}]
[null,null,null,null,null,null,null,{"$f":"'Item Template'!#REF!","v":{"$error":"#REF!"}}]
[null,null,null,null,null,null,null,{"$f":"'Item Template'!#REF!","v":{"$error":"#REF!"}}]
[null,null,null,null,null,null,null,{"$f":"'Item Template'!#REF!","v":{"$error":"#REF!"}}]
[null,null,null,null,null,null,null,{"$f":"'Item Template'!#REF!","v":{"$error":"#REF!"}}]
[null,null,null,null,null,null,null,{"$f":"'Item Template'!#REF!","v":{"$error":"#REF!"}}]
[null,null,null,null,null,null,null,{"$f":"'Item Template'!#REF!","v":{"$error":"#REF!"}}]
[null,null,null,null,null,null,null,{"$f":"'Item Template'!#REF!","v":{"$error":"#REF!"}}]
[null,null,null,null,null,null,null,{"$f":"'Item Template'!#REF!","v":{"$error":"#REF!"}}]
[null,null,null,null,null,null,null,{"$f":"'Item Template'!#REF!","v":{"$error":"#REF!"}}]
[null,null,null,null,null,null,null,{"$f":"'Item Template'!#REF!","v":{"$error":"#REF!"}}]
[null,null,null,null,null,null,null,{"$f":"'Item Template'!#REF!","v":{"$error":"#REF!"}}]
[null,null,null,null,null,null,null,{"$f":"'Item Template'!#REF!","v":{"$error":"#REF!"}}]
[null,null,null,null,null,null,null,{"$f":"'Item Template'!#REF!","v":{"$error":"#REF!"}}]
[null,null,null,null,null,null,null,{"$f":"'Item Template'!#REF!","v":{"$error":"#REF!"}}]
[null,null,null,null,null,null,null,{"$f":"'Item Template'!#REF!","v":{"$error":"#REF!"}}]
[null,null,null,null,null,null,null,{"$f":"'Item Template'!#REF!","v":{"$error":"#REF!"}}]
[null,null,null,null,null,null,null,{"$f":"'Item Template'!#REF!","v":{"$error":"#REF!"}}]
[null,null,null,null,null,null,null,{"$f":"'Item Template'!#REF!","v":{"$error":"#REF!"}}]
[null,null,null,null,null,null,null,{"$f":"'Item Template'!#REF!","v":{"$error":"#REF!"}}]
[null,null,null,null,null,null,null,{"$f":"'Item Template'!#REF!","v":{"$error":"#REF!"}}]
[null,null,null,null,null,null,null,{"$f":"'Item Template'!#REF!","v":{"$error":"#REF!"}}]
[null,null,null,null,null,null,null,{"$f":"'Item Template'!#REF!","v":{"$error":"#REF!"}}]
[null,null,null,null,null,null,null,{"$f":"'Item Template'!#REF!","v":{"$error":"#REF!"}}]
[null,null,null,null,null,null,null,{"$f":"'Item Template'!#REF!","v":{"$error":"#REF!"}}]
[null,null,null,null,null,null,null,{"$f":"'Item Template'!#REF!","v":{"$error":"#REF!"}}]
[null,null,null,null,null,null,null,{"$f":"'Item Template'!#REF!","v":{"$error":"#REF!"}}]
[null,null,null,null,null,null,null,{"$f":"'Item Template'!#REF!","v":{"$error":"#REF!"}}]
[null,null,null,null,null,null,null,{"$f":"'Item Template'!#REF!","v":{"$error":"#REF!"}}]
[null,null,null,null,null,null,null,{"$f":"'Item Template'!#REF!","v":{"$error":"#REF!"}}]
[null,null,null,null,null,null,null,{"$f":"'Item Template'!#REF!","v":{"$error":"#REF!"}}]
[null,null,null,null,null,null,null,{"$f":"'Item Template'!#REF!","v":{"$error":"#REF!"}}]
[null,null,null,null,null,null,null,{"$f":"'Item Template'!#REF!","v":{"$error":"#REF!"}}]
[null,null,null,null,null,null,null,{"$f":"'Item Template'!#REF!","v":{"$error":"#REF!"}}]
[null,null,null,null,null,null,null,{"$f":"'Item Template'!#REF!","v":{"$error":"#REF!"}}]
[null,null,null,null,null,null,null,{"$f":"'Item Template'!#REF!","v":{"$error":"#REF!"}}]
[null,null,null,null,null,null,null,{"$f":"'Item Template'!#REF!","v":{"$error":"#REF!"}}]
[null,null,null,null,null,null,null,{"$f":"'Item Template'!#REF!","v":{"$error":"#REF!"}}]
[null,null,null,null,null,null,null,{"$f":"'Item Template'!#REF!","v":{"$error":"#REF!"}}]
[null,null,null,null,null,null,null,{"$f":"'Item Template'!#REF!","v":{"$error":"#REF!"}}]
[null,null,null,null,null,null,null,{"$f":"'Item Template'!#REF!","v":{"$error":"#REF!"}}]
[null,null,null,null,null,null,null,{"$f":"'Item Template'!#REF!","v":{"$error":"#REF!"}}]
[null,null,null,null,null,null,null,{"$f":"'Item Template'!#REF!","v":{"$error":"#REF!"}}]
[null,null,null,null,null,null,null,{"$f":"'Item Template'!#REF!","v":{"$error":"#REF!"}}]
[null,null,null,null,null,null,null,{"$f":"'Item Template'!#REF!","v":{"$error":"#REF!"}}]
[null,null,null,null,null,null,null,{"$f":"'Item Template'!#REF!","v":{"$error":"#REF!"}}]
[null,null,null,null,null,null,null,{"$f":"'Item Template'!#REF!","v":{"$error":"#REF!"}}]
[null,null,null,null,null,null,null,{"$f":"'Item Template'!#REF!","v":{"$error":"#REF!"}}]
[null,null,null,null,null,null,null,{"$f":"'Item Template'!#REF!","v":{"$error":"#REF!"}}]
[null,null,null,null,null,null,null,{"$f":"'Item Template'!#REF!","v":{"$error":"#REF!"}}]
[null,null,null,null,null,null,null,{"$f":"'Item Template'!#REF!","v":{"$error":"#REF!"}}]
[null,null,null,null,null,null,null,{"$f":"'Item Template'!#REF!","v":{"$error":"#REF!"}}]
[null,null,null,null,null,null,null,{"$f":"'Item Template'!#REF!","v":{"$error":"#REF!"}}]
[null,null,null,null,null,null,null,{"$f":"'Item Template'!#REF!","v":{"$error":"#REF!"}}]
[null,null,null,null,null,null,null,{"$f":"'Item Template'!#REF!","v":{"$error":"#REF!"}}]
[null,null,null,null,null,null,null,{"$f":"'Item Template'!#REF!","v":{"$error":"#REF!"}}]
[null,null,null,null,null,null,null,{"$f":"'Item Template'!#REF!","v":{"$error":"#REF!"}}]
[null,null,null,null,null,null,null,{"$f":"'Item Template'!#REF!","v":{"$error":"#REF!"}}]
[null,null,null,null,null,null,null,{"$f":"'Item Template'!#REF!","v":{"$error":"#REF!"}}]
[null,null,null,null,null,null,null,{"$f":"'Item Template'!#REF!","v":{"$error":"#REF!"}}]
[null,null,null,null,null,null,null,{"$f":"'Item Template'!#REF!","v":{"$error":"#REF!"}}]
[null,null,null,null,null,null,null,{"$f":"'Item Template'!#REF!","v":{"$error":"#REF!"}}]
[null,null,null,null,null,null,null,{"$f":"'Item Template'!#REF!","v":{"$error":"#REF!"}}]
[null,null,null,null,null,null,null,{"$f":"'Item Template'!#REF!","v":{"$error":"#REF!"}}]
[null,null,null,null,null,null,null,{"$f":"'Item Template'!#REF!","v":{"$error":"#REF!"}}]
[null,null,null,null,null,null,null,{"$f":"'Item Template'!#REF!","v":{"$error":"#REF!"}}]
[null,null,null,null,null,null,null,{"$f":"'Item Template'!#REF!","v":{"$error":"#REF!"}}]
[null,null,null,null,null,null,null,{"$f":"'Item Template'!#REF!","v":{"$error":"#REF!"}}]
[null,null,null,null,null,null,null,{"$f":"'Item Template'!#REF!","v":{"$error":"#REF!"}}]
[null,null,null,null,null,null,null,{"$f":"'Item Template'!#REF!","v":{"$error":"#REF!"}}]
[null,null,null,null,null,null,null,{"$f":"'Item Template'!#REF!","v":{"$error":"#REF!"}}]
[null,null,null,null,null,null,null,{"$f":"'Item Template'!#REF!","v":{"$error":"#REF!"}}]
[null,null,null,null,null,null,null,{"$f":"'Item Template'!#REF!","v":{"$error":"#REF!"}}]
[null,null,null,null,null,null,null,{"$f":"'Item Template'!#REF!","v":{"$error":"#REF!"}}]
[null,null,null,null,null,null,null,{"$f":"'Item Template'!#REF!","v":{"$error":"#REF!"}}]
[null,null,null,null,null,null,null,{"$f":"'Item Template'!#REF!","v":{"$error":"#REF!"}}]
[null,null,null,null,null,null,null,{"$f":"'Item Template'!#REF!","v":{"$error":"#REF!"}}]
[null,null,null,null,null,null,null,{"$f":"'Item Template'!#REF!","v":{"$error":"#REF!"}}]
[null,null,null,null,null,null,null,{"$f":"'Item Template'!#REF!","v":{"$error":"#REF!"}}]
[null,null,null,null,null,null,null,{"$f":"'Item Template'!#REF!","v":{"$error":"#REF!"}}]
[null,null,null,null,null,null,null,{"$f":"'Item Template'!#REF!","v":{"$error":"#REF!"}}]
[null,null,null,null,null,null,null,{"$f":"'Item Template'!#REF!","v":{"$error":"#REF!"}}]
[null,null,null,null,null,null,null,{"$f":"'Item Template'!#REF!","v":{"$error":"#REF!"}}]
[null,null,null,null,null,null,null,{"$f":"'Item Template'!#REF!","v":{"$error":"#REF!"}}]
[null,null,null,null,null,null,null,{"$f":"'Item Template'!#REF!","v":{"$error":"#REF!"}}]
[null,null,null,null,null,null,null,{"$f":"'Item Template'!#REF!","v":{"$error":"#REF!"}}]
[null,null,null,null,null,null,null,{"$f":"'Item Template'!#REF!","v":{"$error":"#REF!"}}]
[null,null,null,null,null,null,null,{"$f":"'Item Template'!#REF!","v":{"$error":"#REF!"}}]
[null,null,null,null,null,null,null,{"$f":"'Item Template'!#REF!","v":{"$error":"#REF!"}}]
[null,null,null,null,null,null,null,{"$f":"'Item Template'!#REF!","v":{"$error":"#REF!"}}]
[null,null,null,null,null,null,null,{"$f":"'Item Template'!#REF!","v":{"$error":"#REF!"}}]
[null,null,null,null,null,null,null,{"$f":"'Item Template'!#REF!","v":{"$error":"#REF!"}}]
[null,null,null,null,null,null,null,{"$f":"'Item Template'!#REF!","v":{"$error":"#REF!"}}]
[null,null,null,null,null,null,null,{"$f":"'Item Template'!#REF!","v":{"$error":"#REF!"}}]
[null,null,null,null,null,null,null,{"$f":"'Item Template'!#REF!","v":{"$error":"#REF!"}}]
[null,null,null,null,null,null,null,{"$f":"'Item Template'!#REF!","v":{"$error":"#REF!"}}]
[null,null,null,null,null,null,null,{"$f":"'Item Template'!#REF!","v":{"$error":"#REF!"}}]
[null,null,null,null,null,null,null,{"$f":"'Item Template'!#REF!","v":{"$error":"#REF!"}}]
[null,null,null,null,null,null,null,{"$f":"'Item Template'!#REF!","v":{"$error":"#REF!"}}]
[null,null,null,null,null,null,null,{"$f":"'Item Template'!#REF!","v":{"$error":"#REF!"}}]
[null,null,null,null,null,null,null,{"$f":"'Item Template'!#REF!","v":{"$error":"#REF!"}}]
[null,null,null,null,null,null,null,{"$f":"'Item Template'!#REF!","v":{"$error":"#REF!"}}]
[null,null,null,null,null,null,null,{"$f":"'Item Template'!#REF!","v":{"$error":"#REF!"}}]
[null,null,null,null,null,null,null,{"$f":"'Item Template'!#REF!","v":{"$error":"#REF!"}}]
[null,null,null,null,null,null,null,{"$f":"'Item Template'!#REF!","v":{"$error":"#REF!"}}]
[null,null,null,null,null,null,null,{"$f":"'Item Template'!#REF!","v":{"$error":"#REF!"}}]
[null,null,null,null,null,null,null,{"$f":"'Item Template'!#REF!","v":{"$error":"#REF!"}}]
[null,null,null,null,null,null,null,{"$f":"'Item Template'!#REF!","v":{"$error":"#REF!"}}]
[null,null,null,null,null,null,null,{"$f":"'Item Template'!#REF!","v":{"$error":"#REF!"}}]
[null,null,null,null,null,null,null,{"$f":"'Item Template'!#REF!","v":{"$error":"#REF!"}}]
[null,null,null,null,null,null,null,{"$f":"'Item Template'!#REF!","v":{"$error":"#REF!"}}]
[null,null,null,null,null,null,null,{"$f":"'Item Template'!#REF!","v":{"$error":"#REF!"}}]
[null,null,null,null,null,null,null,{"$f":"'Item Template'!#REF!","v":{"$error":"#REF!"}}]
[null,null,null,null,null,null,null,{"$f":"'Item Template'!#REF!","v":{"$error":"#REF!"}}]
[null,null,null,null,null,null,null,{"$f":"'Item Template'!#REF!","v":{"$error":"#REF!"}}]
[null,null,null,null,null,null,null,{"$f":"'Item Template'!#REF!","v":{"$error":"#REF!"}}]
[null,null,null,null,null,null,null,{"$f":"'Item Template'!#REF!","v":{"$error":"#REF!"}}]
[null,null,null,null,null,null,null,{"$f":"'Item Template'!#REF!","v":{"$error":"#REF!"}}]
[null,null,null,null,null,null,null,{"$f":"'Item Template'!#REF!","v":{"$error":"#REF!"}}]
[null,null,null,null,null,null,null,{"$f":"'Item Template'!#REF!","v":{"$error":"#REF!"}}]
[null,null,null,null,null,null,null,{"$f":"'Item Template'!#REF!","v":{"$error":"#REF!"}}]
[null,null,null,null,null,null,null,{"$f":"'Item Template'!#REF!","v":{"$error":"#REF!"}}]
[null,null,null,null,null,null,null,{"$f":"'Item Template'!#REF!","v":{"$error":"#REF!"}}]
[null,null,null,null,null,null,null,{"$f":"'Item Template'!#REF!","v":{"$error":"#REF!"}}]
[null,null,null,null,null,null,null,{"$f":"'Item Template'!#REF!","v":{"$error":"#REF!"}}]
[null,null,null,null,null,null,null,{"$f":"'Item Template'!#REF!","v":{"$error":"#REF!"}}]
[null,null,null,null,null,null,null,{"$f":"'Item Template'!#REF!","v":{"$error":"#REF!"}}]
[null,null,null,null,null,null,null,{"$f":"'Item Template'!#REF!","v":{"$error":"#REF!"}}]
[null,null,null,null,null,null,null,{"$f":"'Item Template'!#REF!","v":{"$error":"#REF!"}}]
[null,null,null,null,null,null,null,{"$f":"'Item Template'!#REF!","v":{"$error":"#REF!"}}]
[null,null,null,null,null,null,null,{"$f":"'Item Template'!#REF!","v":{"$error":"#REF!"}}]
[null,null,null,null,null,null,null,{"$f":"'Item Template'!#REF!","v":{"$error":"#REF!"}}]
[null,null,null,null,null,null,null,{"$f":"'Item Template'!#REF!","v":{"$error":"#REF!"}}]
[null,null,null,null,null,null,null,{"$f":"'Item Template'!#REF!","v":{"$error":"#REF!"}}]
[null,null,null,null,null,null,null,{"$f":"'Item Template'!#REF!","v":{"$error":"#REF!"}}]
[null,null,null,null,null,null,null,{"$f":"'Item Template'!#REF!","v":{"$error":"#REF!"}}]
[null,null,null,null,null,null,null,{"$f":"'Item Template'!#REF!","v":{"$error":"#REF!"}}]
[null,null,null,null,null,null,null,{"$f":"'Item Template'!#REF!","v":{"$error":"#REF!"}}]
[null,null,null,null,null,null,null,{"$f":"'Item Template'!#REF!","v":{"$error":"#REF!"}}]
[null,null,null,null,null,null,null,{"$f":"'Item Template'!#REF!","v":{"$error":"#REF!"}}]
[null,null,null,null,null,null,null,{"$f":"'Item Template'!#REF!","v":{"$error":"#REF!"}}]
[null,null,null,null,null,null,null,{"$f":"'Item Template'!#REF!","v":{"$error":"#REF!"}}]
[null,null,null,null,null,null,null,{"$f":"'Item Template'!#REF!","v":{"$error":"#REF!"}}]
[null,null,null,null,null,null,null,{"$f":"'Item Template'!#REF!","v":{"$error":"#REF!"}}]
[null,null,null,null,null,null,null,{"$f":"'Item Template'!#REF!","v":{"$error":"#REF!"}}]
[null,null,null,null,null,null,null,{"$f":"'Item Template'!#REF!","v":{"$error":"#REF!"}}]
[null,null,null,null,null,null,null,{"$f":"'Item Template'!#REF!","v":{"$error":"#REF!"}}]
[null,null,null,null,null,null,null,{"$f":"'Item Template'!#REF!","v":{"$error":"#REF!"}}]
[null,null,null,null,null,null,null,{"$f":"'Item Template'!#REF!","v":{"$error":"#REF!"}}]
[null,null,null,null,null,null,null,{"$f":"'Item Template'!#REF!","v":{"$error":"#REF!"}}]
[null,null,null,null,null,null,null,{"$f":"'Item Template'!#REF!","v":{"$error":"#REF!"}}]
[null,null,null,null,null,null,null,{"$f":"'Item Template'!#REF!","v":{"$error":"#REF!"}}]
[null,null,null,null,null,null,null,{"$f":"'Item Template'!#REF!","v":{"$error":"#REF!"}}]
[null,null,null,null,null,null,null,{"$f":"'Item Template'!#REF!","v":{"$error":"#REF!"}}]
[null,null,null,null,null,null,null,{"$f":"'Item Template'!#REF!","v":{"$error":"#REF!"}}]
[null,null,null,null,null,null,null,{"$f":"'Item Template'!#REF!","v":{"$error":"#REF!"}}]
[null,null,null,null,null,null,null,{"$f":"'Item Template'!#REF!","v":{"$error":"#REF!"}}]
[null,null,null,null,null,null,null,{"$f":"'Item Template'!#REF!","v":{"$error":"#REF!"}}]
[null,null,null,null,null,null,null,{"$f":"'Item Template'!#REF!","v":{"$error":"#REF!"}}]
[null,null,null,null,null,null,null,{"$f":"'Item Template'!#REF!","v":{"$error":"#REF!"}}]
[null,null,null,null,null,null,null,{"$f":"'Item Template'!#REF!","v":{"$error":"#REF!"}}]
[null,null,null,null,null,null,null,{"$f":"'Item Template'!#REF!","v":{"$error":"#REF!"}}]
[null,null,null,null,null,null,null,{"$f":"'Item Template'!#REF!","v":{"$error":"#REF!"}}]
[null,null,null,null,null,null,null,{"$f":"'Item Template'!#REF!","v":{"$error":"#REF!"}}]
[null,null,null,null,null,null,null,{"$f":"'Item Template'!#REF!","v":{"$error":"#REF!"}}]
[null,null,null,null,null,null,null,{"$f":"'Item Template'!#REF!","v":{"$error":"#REF!"}}]
[null,null,null,null,null,null,null,{"$f":"'Item Template'!#REF!","v":{"$error":"#REF!"}}]
[null,null,null,null,null,null,null,{"$f":"'Item Template'!#REF!","v":{"$error":"#REF!"}}]
[null,null,null,null,null,null,null,{"$f":"'Item Template'!#REF!","v":{"$error":"#REF!"}}]
[null,null,null,null,null,null,null,{"$f":"'Item Template'!#REF!","v":{"$error":"#REF!"}}]
[null,null,null,null,null,null,null,{"$f":"'Item Template'!#REF!","v":{"$error":"#REF!"}}]
[null,null,null,null,null,null,null,{"$f":"'Item Template'!#REF!","v":{"$error":"#REF!"}}]
[null,null,null,null,null,null,null,{"$f":"'Item Template'!#REF!","v":{"$error":"#REF!"}}]
[null,null,null,null,null,null,null,{"$f":"'Item Template'!#REF!","v":{"$error":"#REF!"}}]
[null,null,null,null,null,null,null,{"$f":"'Item Template'!#REF!","v":{"$error":"#REF!"}}]
[null,null,null,null,null,null,null,{"$f":"'Item Template'!#REF!","v":{"$error":"#REF!"}}]
[null,null,null,null,null,null,null,{"$f":"'Item Template'!#REF!","v":{"$error":"#REF!"}}]
[null,null,null,null,null,null,null,{"$f":"'Item Template'!#REF!","v":{"$error":"#REF!"}}]
[null,null,null,null,null,null,null,{"$f":"'Item Template'!#REF!","v":{"$error":"#REF!"}}]
[null,null,null,null,null,null,null,{"$f":"'Item Template'!#REF!","v":{"$error":"#REF!"}}]
[null,null,null,null,null,null,null,{"$f":"'Item Template'!#REF!","v":{"$error":"#REF!"}}]
[null,null,null,null,null,null,null,{"$f":"'Item Template'!#REF!","v":{"$error":"#REF!"}}]
[null,null,null,null,null,null,null,{"$f":"'Item Template'!#REF!","v":{"$error":"#REF!"}}]
[null,null,null,null,null,null,null,{"$f":"'Item Template'!#REF!","v":{"$error":"#REF!"}}]
[null,null,null,null,null,null,null,{"$f":"'Item Template'!#REF!","v":{"$error":"#REF!"}}]
[null,null,null,null,null,null,null,{"$f":"'Item Template'!#REF!","v":{"$error":"#REF!"}}]
[null,null,null,null,null,null,null,{"$f":"'Item Template'!#REF!","v":{"$error":"#REF!"}}]
[null,null,null,null,null,null,null,{"$f":"'Item Template'!#REF!","v":{"$error":"#REF!"}}]
[null,null,null,null,null,null,null,{"$f":"'Item Template'!#REF!","v":{"$error":"#REF!"}}]
[null,null,null,null,null,null,null,{"$f":"'Item Template'!#REF!","v":{"$error":"#REF!"}}]
[null,null,null,null,null,null,null,{"$f":"'Item Template'!#REF!","v":{"$error":"#REF!"}}]
[null,null,null,null,null,null,null,{"$f":"'Item Template'!#REF!","v":{"$error":"#REF!"}}]
[null,null,null,null,null,null,null,{"$f":"'Item Template'!#REF!","v":{"$error":"#REF!"}}]
[null,null,null,null,null,null,null,{"$f":"'Item Template'!#REF!","v":{"$error":"#REF!"}}]
[null,null,null,null,null,null,null,{"$f":"'Item Template'!#REF!","v":{"$error":"#REF!"}}]
[null,null,null,null,null,null,null,{"$f":"'Item Template'!#REF!","v":{"$error":"#REF!"}}]
[null,null,null,null,null,null,null,{"$f":"'Item Template'!#REF!","v":{"$error":"#REF!"}}]
[null,null,null,null,null,null,null,{"$f":"'Item Template'!#REF!","v":{"$error":"#REF!"}}]
[null,null,null,null,null,null,null,{"$f":"'Item Template'!#REF!","v":{"$error":"#REF!"}}]
[null,null,null,null,null,null,null,{"$f":"'Item Template'!#REF!","v":{"$error":"#REF!"}}]
[null,null,null,null,null,null,null,{"$f":"'Item Template'!#REF!","v":{"$error":"#REF!"}}]
[null,null,null,null,null,null,null,{"$f":"'Item Template'!#REF!","v":{"$error":"#REF!"}}]
[null,null,null,null,null,null,null,{"$f":"'Item Template'!#REF!","v":{"$error":"#REF!"}}]
[null,null,null,null,null,null,null,{"$f":"'Item Template'!#REF!","v":{"$error":"#REF!"}}]
[null,null,null,null,null,null,null,{"$f":"'Item Template'!#REF!","v":{"$error":"#REF!"}}]
[null,null,null,null,null,null,null,{"$f":"'Item Template'!#REF!","v":{"$error":"#REF!"}}]
[null,null,null,null,null,null,null,{"$f":"'Item Template'!#REF!","v":{"$error":"#REF!"}}]
[null,null,null,null,null,null,null,{"$f":"'Item Template'!#REF!","v":{"$error":"#REF!"}}]
[null,null,null,null,null,null,null,{"$f":"'Item Template'!#REF!","v":{"$error":"#REF!"}}]
[null,null,null,null,null,null,null,{"$f":"'Item Template'!#REF!","v":{"$error":"#REF!"}}]
[null,null,null,null,null,null,null,{"$f":"'Item Template'!#REF!","v":{"$error":"#REF!"}}]
[null,null,null,null,null,null,null,{"$f":"'Item Template'!#REF!","v":{"$error":"#REF!"}}]
[null,null,null,null,null,null,null,{"$f":"'Item Template'!#REF!","v":{"$error":"#REF!"}}]
[null,null,null,null,null,null,null,{"$f":"'Item Template'!#REF!","v":{"$error":"#REF!"}}]
[null,null,null,null,null,null,null,{"$f":"'Item Template'!#REF!","v":{"$error":"#REF!"}}]
[null,null,null,null,null,null,null,{"$f":"'Item Template'!#REF!","v":{"$error":"#REF!"}}]
[null,null,null,null,null,null,null,{"$f":"'Item Template'!#REF!","v":{"$error":"#REF!"}}]
[null,null,null,null,null,null,null,{"$f":"'Item Template'!#REF!","v":{"$error":"#REF!"}}]
[null,null,null,null,null,null,null,{"$f":"'Item Template'!#REF!","v":{"$error":"#REF!"}}]
[null,null,null,null,null,null,null,{"$f":"'Item Template'!#REF!","v":{"$error":"#REF!"}}]
[null,null,null,null,null,null,null,{"$f":"'Item Template'!#REF!","v":{"$error":"#REF!"}}]
[null,null,null,null,null,null,null,{"$f":"'Item Template'!#REF!","v":{"$error":"#REF!"}}]
[null,null,null,null,null,null,null,{"$f":"'Item Template'!#REF!","v":{"$error":"#REF!"}}]
[null,null,null,null,null,null,null,{"$f":"'Item Template'!#REF!","v":{"$error":"#REF!"}}]
[null,null,null,null,null,null,null,{"$f":"'Item Template'!#REF!","v":{"$error":"#REF!"}}]
[null,null,null,null,null,null,null,{"$f":"'Item Template'!#REF!","v":{"$error":"#REF!"}}]
[null,null,null,null,null,null,null,{"$f":"'Item Template'!#REF!","v":{"$error":"#REF!"}}]
[null,null,null,null,null,null,null,{"$f":"'Item Template'!#REF!","v":{"$error":"#REF!"}}]
[null,null,null,null,null,null,null,{"$f":"'Item Template'!#REF!","v":{"$error":"#REF!"}}]
[null,null,null,null,null,null,null,{"$f":"'Item Template'!#REF!","v":{"$error":"#REF!"}}]
[null,null,null,null,null,null,null,{"$f":"'Item Template'!#REF!","v":{"$error":"#REF!"}}]
[null,null,null,null,null,null,null,{"$f":"'Item Template'!#REF!","v":{"$error":"#REF!"}}]
[null,null,null,null,null,null,null,{"$f":"'Item Template'!#REF!","v":{"$error":"#REF!"}}]
[null,null,null,null,null,null,null,{"$f":"'Item Template'!#REF!","v":{"$error":"#REF!"}}]
[null,null,null,null,null,null,null,{"$f":"'Item Template'!#REF!","v":{"$error":"#REF!"}}]
[null,null,null,null,null,null,null,{"$f":"'Item Template'!#REF!","v":{"$error":"#REF!"}}]
[null,null,null,null,null,null,null,{"$f":"'Item Template'!#REF!","v":{"$error":"#REF!"}}]
[null,null,null,null,null,null,null,{"$f":"'Item Template'!#REF!","v":{"$error":"#REF!"}}]
[null,null,null,null,null,null,null,{"$f":"'Item Template'!#REF!","v":{"$error":"#REF!"}}]
[null,null,null,null,null,null,null,{"$f":"'Item Template'!#REF!","v":{"$error":"#REF!"}}]
[null,null,null,null,null,null,null,{"$f":"'Item Template'!#REF!","v":{"$error":"#REF!"}}]
[null,null,null,null,null,null,null,{"$f":"'Item Template'!#REF!","v":{"$error":"#REF!"}}]
[null,null,null,null,null,null,null,{"$f":"'Item Template'!#REF!","v":{"$error":"#REF!"}}]
[null,null,null,null,null,null,null,{"$f":"'Item Template'!#REF!","v":{"$error":"#REF!"}}]
[null,null,null,null,null,null,null,{"$f":"'Item Template'!#REF!","v":{"$error":"#REF!"}}]
[null,null,null,null,null,null,null,{"$f":"'Item Template'!#REF!","v":{"$error":"#REF!"}}]
[null,null,null,null,null,null,null,{"$f":"'Item Template'!#REF!","v":{"$error":"#REF!"}}]
[null,null,null,null,null,null,null,{"$f":"'Item Template'!#REF!","v":{"$error":"#REF!"}}]
[null,null,null,null,null,null,null,{"$f":"'Item Template'!#REF!","v":{"$error":"#REF!"}}]
[null,null,null,null,null,null,null,{"$f":"'Item Template'!#REF!","v":{"$error":"#REF!"}}]
[null,null,null,null,null,null,null,{"$f":"'Item Template'!#REF!","v":{"$error":"#REF!"}}]
[null,null,null,null,null,null,null,{"$f":"'Item Template'!#REF!","v":{"$error":"#REF!"}}]
[null,null,null,null,null,null,null,{"$f":"'Item Template'!#REF!","v":{"$error":"#REF!"}}]
[null,null,null,null,null,null,null,{"$f":"'Item Template'!#REF!","v":{"$error":"#REF!"}}]
[null,null,null,null,null,null,null,{"$f":"'Item Template'!#REF!","v":{"$error":"#REF!"}}]
[null,null,null,null,null,null,null,{"$f":"'Item Template'!#REF!","v":{"$error":"#REF!"}}]
[null,null,null,null,null,null,null,{"$f":"'Item Template'!#REF!","v":{"$error":"#REF!"}}]
[null,null,null,null,null,null,null,{"$f":"'Item Template'!#REF!","v":{"$error":"#REF!"}}]
[null,null,null,null,null,null,null,{"$f":"'Item Template'!#REF!","v":{"$error":"#REF!"}}]
[null,null,null,null,null,null,null,{"$f":"'Item Template'!#REF!","v":{"$error":"#REF!"}}]
[null,null,null,null,null,null,null,{"$f":"'Item Template'!#REF!","v":{"$error":"#REF!"}}]
[null,null,null,null,null,null,null,{"$f":"'Item Template'!#REF!","v":{"$error":"#REF!"}}]
[null,null,null,null,null,null,null,{"$f":"'Item Template'!#REF!","v":{"$error":"#REF!"}}]
[null,null,null,null,null,null,null,{"$f":"'Item Template'!#REF!","v":{"$error":"#REF!"}}]
[null,null,null,null,null,null,null,{"$f":"'Item Template'!#REF!","v":{"$error":"#REF!"}}]
[null,null,null,null,null,null,null,{"$f":"'Item Template'!#REF!","v":{"$error":"#REF!"}}]
[null,null,null,null,null,null,null,{"$f":"'Item Template'!#REF!","v":{"$error":"#REF!"}}]
[null,null,null,null,null,null,null,{"$f":"'Item Template'!#REF!","v":{"$error":"#REF!"}}]
[null,null,null,null,null,null,null,{"$f":"'Item Template'!#REF!","v":{"$error":"#REF!"}}]
[null,null,null,null,null,null,null,{"$f":"'Item Template'!#REF!","v":{"$error":"#REF!"}}]
[null,null,null,null,null,null,null,{"$f":"'Item Template'!#REF!","v":{"$error":"#REF!"}}]
[null,null,null,null,null,null,null,{"$f":"'Item Template'!#REF!","v":{"$error":"#REF!"}}]
[null,null,null,null,null,null,null,{"$f":"'Item Template'!#REF!","v":{"$error":"#REF!"}}]
[null,null,null,null,null,null,null,{"$f":"'Item Template'!#REF!","v":{"$error":"#REF!"}}]
[null,null,null,null,null,null,null,{"$f":"'Item Template'!#REF!","v":{"$error":"#REF!"}}]
[null,null,null,null,null,null,null,{"$f":"'Item Template'!#REF!","v":{"$error":"#REF!"}}]
[null,null,null,null,null,null,null,{"$f":"'Item Template'!#REF!","v":{"$error":"#REF!"}}]
[null,null,null,null,null,null,null,{"$f":"'Item Template'!#REF!","v":{"$error":"#REF!"}}]
[null,null,null,null,null,null,null,{"$f":"'Item Template'!#REF!","v":{"$error":"#REF!"}}]
[null,null,null,null,null,null,null,{"$f":"'Item Template'!#REF!","v":{"$error":"#REF!"}}]
[null,null,null,null,null,null,null,{"$f":"'Item Template'!#REF!","v":{"$error":"#REF!"}}]
[null,null,null,null,null,null,null,{"$f":"'Item Template'!#REF!","v":{"$error":"#REF!"}}]
[null,null,null,null,null,null,null,{"$f":"'Item Template'!#REF!","v":{"$error":"#REF!"}}]
[null,null,null,null,null,null,null,{"$f":"'Item Template'!#REF!","v":{"$error":"#REF!"}}]
[null,null,null,null,null,null,null,{"$f":"'Item Template'!#REF!","v":{"$error":"#REF!"}}]
[null,null,null,null,null,null,null,{"$f":"'Item Template'!#REF!","v":{"$error":"#REF!"}}]
[null,null,null,null,null,null,null,{"$f":"'Item Template'!#REF!","v":{"$error":"#REF!"}}]
[null,null,null,null,null,null,null,{"$f":"'Item Template'!#REF!","v":{"$error":"#REF!"}}]
[null,null,null,null,null,null,null,{"$f":"'Item Template'!#REF!","v":{"$error":"#REF!"}}]
[null,null,null,null,null,null,null,{"$f":"'Item Template'!#REF!","v":{"$error":"#REF!"}}]
[null,null,null,null,null,null,null,{"$f":"'Item Template'!#REF!","v":{"$error":"#REF!"}}]
[null,null,null,null,null,null,null,{"$f":"'Item Template'!#REF!","v":{"$error":"#REF!"}}]
[null,null,null,null,null,null,null,{"$f":"'Item Template'!#REF!","v":{"$error":"#REF!"}}]
[null,null,null,null,null,null,null,{"$f":"'Item Template'!#REF!","v":{"$error":"#REF!"}}]
[null,null,null,null,null,null,null,{"$f":"'Item Template'!#REF!","v":{"$error":"#REF!"}}]
[null,null,null,null,null,null,null,{"$f":"'Item Template'!#REF!","v":{"$error":"#REF!"}}]
[null,null,null,null,null,null,null,{"$f":"'Item Template'!#REF!","v":{"$error":"#REF!"}}]
[null,null,null,null,null,null,null,{"$f":"'Item Template'!#REF!","v":{"$error":"#REF!"}}]
[null,null,null,null,null,null,null,{"$f":"'Item Template'!#REF!","v":{"$error":"#REF!"}}]
[null,null,null,null,null,null,null,{"$f":"'Item Template'!#REF!","v":{"$error":"#REF!"}}]
[null,null,null,null,null,null,null,{"$f":"'Item Template'!#REF!","v":{"$error":"#REF!"}}]
[null,null,null,null,null,null,null,{"$f":"'Item Template'!#REF!","v":{"$error":"#REF!"}}]
[null,null,null,null,null,null,null,{"$f":"'Item Template'!#REF!","v":{"$error":"#REF!"}}]
[null,null,null,null,null,null,null,{"$f":"'Item Template'!#REF!","v":{"$error":"#REF!"}}]
[null,null,null,null,null,null,null,{"$f":"'Item Template'!#REF!","v":{"$error":"#REF!"}}]
[null,null,null,null,null,null,null,{"$f":"'Item Template'!#REF!","v":{"$error":"#REF!"}}]
[null,null,null,null,null,null,null,{"$f":"'Item Template'!#REF!","v":{"$error":"#REF!"}}]
[null,null,null,null,null,null,null,{"$f":"'Item Template'!#REF!","v":{"$error":"#REF!"}}]
[null,null,null,null,null,null,null,{"$f":"'Item Template'!#REF!","v":{"$error":"#REF!"}}]
[null,null,null,null,null,null,null,{"$f":"'Item Template'!#REF!","v":{"$error":"#REF!"}}]
[null,null,null,null,null,null,null,{"$f":"'Item Template'!#REF!","v":{"$error":"#REF!"}}]
[null,null,null,null,null,null,null,{"$f":"'Item Template'!#REF!","v":{"$error":"#REF!"}}]
[null,null,null,null,null,null,null,{"$f":"'Item Template'!#REF!","v":{"$error":"#REF!"}}]
[null,null,null,null,null,null,null,{"$f":"'Item Template'!#REF!","v":{"$error":"#REF!"}}]
[null,null,null,null,null,null,null,{"$f":"'Item Template'!#REF!","v":{"$error":"#REF!"}}]
[null,null,null,null,null,null,null,{"$f":"'Item Template'!#REF!","v":{"$error":"#REF!"}}]
[null,null,null,null,null,null,null,{"$f":"'Item Template'!#REF!","v":{"$error":"#REF!"}}]
[null,null,null,null,null,null,null,{"$f":"'Item Template'!#REF!","v":{"$error":"#REF!"}}]
[null,null,null,null,null,null,null,{"$f":"'Item Template'!#REF!","v":{"$error":"#REF!"}}]
[null,null,null,null,null,null,null,{"$f":"'Item Template'!#REF!","v":{"$error":"#REF!"}}]
[null,null,null,null,null,null,null,{"$f":"'Item Template'!#REF!","v":{"$error":"#REF!"}}]
[null,null,null,null,null,null,null,{"$f":"'Item Template'!#REF!","v":{"$error":"#REF!"}}]
[null,null,null,null,null,null,null,{"$f":"'Item Template'!#REF!","v":{"$error":"#REF!"}}]
[null,null,null,null,null,null,null,{"$f":"'Item Template'!#REF!","v":{"$error":"#REF!"}}]
[null,null,null,null,null,null,null,{"$f":"'Item Template'!#REF!","v":{"$error":"#REF!"}}]
[null,null,null,null,null,null,null,{"$f":"'Item Template'!#REF!","v":{"$error":"#REF!"}}]
[null,null,null,null,null,null,null,{"$f":"'Item Template'!#REF!","v":{"$error":"#REF!"}}]
[null,null,null,null,null,null,null,{"$f":"'Item Template'!#REF!","v":{"$error":"#REF!"}}]
[null,null,null,null,null,null,null,{"$f":"'Item Template'!#REF!","v":{"$error":"#REF!"}}]
[null,null,null,null,null,null,null,{"$f":"'Item Template'!#REF!","v":{"$error":"#REF!"}}]
[null,null,null,null,null,null,null,{"$f":"'Item Template'!#REF!","v":{"$error":"#REF!"}}]
[null,null,null,null,null,null,null,{"$f":"'Item Template'!#REF!","v":{"$error":"#REF!"}}]
[null,null,null,null,null,null,null,{"$f":"'Item Template'!#REF!","v":{"$error":"#REF!"}}]
[null,null,null,null,null,null,null,{"$f":"'Item Template'!#REF!","v":{"$error":"#REF!"}}]
[null,null,null,null,null,null,null,{"$f":"'Item Template'!#REF!","v":{"$error":"#REF!"}}]
[null,null,null,null,null,null,null,{"$f":"'Item Template'!#REF!","v":{"$error":"#REF!"}}]
[null,null,null,null,null,null,null,{"$f":"'Item Template'!#REF!","v":{"$error":"#REF!"}}]
[null,null,null,null,null,null,null,{"$f":"'Item Template'!#REF!","v":{"$error":"#REF!"}}]
[null,null,null,null,null,null,null,{"$f":"'Item Template'!#REF!","v":{"$error":"#REF!"}}]
[null,null,null,null,null,null,null,{"$f":"'Item Template'!#REF!","v":{"$error":"#REF!"}}]
[null,null,null,null,null,null,null,{"$f":"'Item Template'!#REF!","v":{"$error":"#REF!"}}]
[null,null,null,null,null,null,null,{"$f":"'Item Template'!#REF!","v":{"$error":"#REF!"}}]
[null,null,null,null,null,null,null,{"$f":"'Item Template'!#REF!","v":{"$error":"#REF!"}}]
[null,null,null,null,null,null,null,{"$f":"'Item Template'!#REF!","v":{"$error":"#REF!"}}]
[null,null,null,null,null,null,null,{"$f":"'Item Template'!#REF!","v":{"$error":"#REF!"}}]
[null,null,null,null,null,null,null,{"$f":"'Item Template'!#REF!","v":{"$error":"#REF!"}}]
[null,null,null,null,null,null,null,{"$f":"'Item Template'!#REF!","v":{"$error":"#REF!"}}]
[null,null,null,null,null,null,null,{"$f":"'Item Template'!#REF!","v":{"$error":"#REF!"}}]
[null,null,null,null,null,null,null,{"$f":"'Item Template'!#REF!","v":{"$error":"#REF!"}}]
[null,null,null,null,null,null,null,{"$f":"'Item Template'!#REF!","v":{"$error":"#REF!"}}]
[null,null,null,null,null,null,null,{"$f":"'Item Template'!#REF!","v":{"$error":"#REF!"}}]
[null,null,null,null,null,null,null,{"$f":"'Item Template'!#REF!","v":{"$error":"#REF!"}}]
[null,null,null,null,null,null,null,{"$f":"'Item Template'!#REF!","v":{"$error":"#REF!"}}]
[null,null,null,null,null,null,null,{"$f":"'Item Template'!#REF!","v":{"$error":"#REF!"}}]
[null,null,null,null,null,null,null,{"$f":"'Item Template'!#REF!","v":{"$error":"#REF!"}}]
[null,null,null,null,null,null,null,{"$f":"'Item Template'!#REF!","v":{"$error":"#REF!"}}]
[null,null,null,null,null,null,null,{"$f":"'Item Template'!#REF!","v":{"$error":"#REF!"}}]
[null,null,null,null,null,null,null,{"$f":"'Item Template'!#REF!","v":{"$error":"#REF!"}}]
[null,null,null,null,null,null,null,{"$f":"'Item Template'!#REF!","v":{"$error":"#REF!"}}]
[null,null,null,null,null,null,null,{"$f":"'Item Template'!A22","v":0}]
[null,null,null,null,null,null,null,{"$f":"'Item Template'!A23","v":0}]
[null,null,null,null,null,null,null,{"$f":"'Item Template'!A24","v":0}]
[null,null,null,null,null,null,null,{"$f":"'Item Template'!A25","v":0}]
[null,null,null,null,null,null,null,{"$f":"'Item Template'!A26","v":0}]
[null,null,null,null,null,null,null,{"$f":"'Item Template'!A27","v":0}]
[null,null,null,null,null,null,null,{"$f":"'Item Template'!A28","v":0}]
[null,null,null,null,null,null,null,{"$f":"'Item Template'!A29","v":0}]
[null,null,null,null,null,null,null,{"$f":"'Item Template'!A30","v":0}]
[null,null,null,null,null,null,null,{"$f":"'Item Template'!A31","v":0}]
[null,null,null,null,null,null,null,{"$f":"'Item Template'!A32","v":0}]
[null,null,null,null,null,null,null,{"$f":"'Item Template'!A33","v":0}]
[null,null,null,null,null,null,null,{"$f":"'Item Template'!A34","v":0}]
[null,null,null,null,null,null,null,{"$f":"'Item Template'!A35","v":0}]
[null,null,null,null,null,null,null,{"$f":"'Item Template'!A36","v":0}]
[null,null,null,null,null,null,null,{"$f":"'Item Template'!A37","v":0}]
[null,null,null,null,null,null,null,{"$f":"'Item Template'!A38","v":0}]
[null,null,null,null,null,null,null,{"$f":"'Item Template'!A39","v":0}]
[null,null,null,null,null,null,null,{"$f":"'Item Template'!A40","v":0}]
[null,null,null,null,null,null,null,{"$f":"'Item Template'!A41","v":0}]
[null,null,null,null,null,null,null,{"$f":"'Item Template'!A42","v":0}]
[null,null,null,null,null,null,null,{"$f":"'Item Template'!A43","v":0}]
[null,null,null,null,null,null,null,{"$f":"'Item Template'!A44","v":0}]
[null,null,null,null,null,null,null,{"$f":"'Item Template'!A45","v":0}]
[null,null,null,null,null,null,null,{"$f":"'Item Template'!A46","v":0}]
[null,null,null,null,null,null,null,{"$f":"'Item Template'!A47","v":0}]
[null,null,null,null,null,null,null,{"$f":"'Item Template'!A48","v":0}]
[null,null,null,null,null,null,null,{"$f":"'Item Template'!A49","v":0}]
[null,null,null,null,null,null,null,{"$f":"'Item Template'!A50","v":0}]
[null,null,null,null,null,null,null,{"$f":"'Item Template'!A51","v":0}]
[null,null,null,null,null,null,null,{"$f":"'Item Template'!A52","v":0}]
[null,null,null,null,null,null,null,{"$f":"'Item Template'!A53","v":0}]
[null,null,null,null,null,null,null,{"$f":"'Item Template'!A54","v":0}]
[null,null,null,null,null,null,null,{"$f":"'Item Template'!A55","v":0}]
[null,null,null,null,null,null,null,{"$f":"'Item Template'!A56","v":0}]
[null,null,null,null,null,null,null,{"$f":"'Item Template'!A57","v":0}]
[null,null,null,null,null,null,null,{"$f":"'Item Template'!A58","v":0}]
[null,null,null,null,null,null,null,{"$f":"'Item Template'!A59","v":0}]
[null,null,null,null,null,null,null,{"$f":"'Item Template'!A60","v":0}]
[null,null,null,null,null,null,null,{"$f":"'Item Template'!A61","v":0}]
[null,null,null,null,null,null,null,{"$f":"'Item Template'!A62","v":0}]
[null,null,null,null,null,null,null,{"$f":"'Item Template'!A63","v":0}]
[null,null,null,null,null,null,null,{"$f":"'Item Template'!A64","v":0}]
[null,null,null,null,null,null,null,{"$f":"'Item Template'!A65","v":0}]
[null,null,null,null,null,null,null,{"$f":"'Item Template'!A66","v":0}]
[null,null,null,null,null,null,null,{"$f":"'Item Template'!A67","v":0}]
[null,null,null,null,null,null,null,{"$f":"'Item Template'!A68","v":0}]
[null,null,null,null,null,null,null,{"$f":"'Item Template'!A69","v":0}]
[null,null,null,null,null,null,null,{"$f":"'Item Template'!A70","v":0}]
[null,null,null,null,null,null,null,{"$f":"'Item Template'!A71","v":0}]
[null,null,null,null,null,null,null,{"$f":"'Item Template'!A72","v":0}]
[null,null,null,null,null,null,null,{"$f":"'Item Template'!A73","v":0}]
[null,null,null,null,null,null,null,{"$f":"'Item Template'!A74","v":0}]
[null,null,null,null,null,null,null,{"$f":"'Item Template'!A75","v":0}]
[null,null,null,null,null,null,null,{"$f":"'Item Template'!A76","v":0}]
[null,null,null,null,null,null,null,{"$f":"'Item Template'!A77","v":0}]
[null,null,null,null,null,null,null,{"$f":"'Item Template'!A78","v":0}]
[null,null,null,null,null,null,null,{"$f":"'Item Template'!A79","v":0}]
[null,null,null,null,null,null,null,{"$f":"'Item Template'!A80","v":0}]
[null,null,null,null,null,null,null,{"$f":"'Item Template'!A81","v":0}]
[null,null,null,null,null,null,null,{"$f":"'Item Template'!A82","v":0}]
[null,null,null,null,null,null,null,{"$f":"'Item Template'!A83","v":0}]
[null,null,null,null,null,null,null,{"$f":"'Item Template'!A84","v":0}]
[null,null,null,null,null,null,null,{"$f":"'Item Template'!A85","v":0}]
[null,null,null,null,null,null,null,{"$f":"'Item Template'!A86","v":0}]
[null,null,null,null,null,null,null,{"$f":"'Item Template'!A87","v":0}]
[null,null,null,null,null,null,null,{"$f":"'Item Template'!A88","v":0}]
[null,null,null,null,null,null,null,{"$f":"'Item Template'!A89","v":0}]
[null,null,null,null,null,null,null,{"$f":"'Item Template'!A90","v":0}]
[null,null,null,null,null,null,null,{"$f":"'Item Template'!A91","v":0}]
[null,null,null,null,null,null,null,{"$f":"'Item Template'!A92","v":0}]
[null,null,null,null,null,null,null,{"$f":"'Item Template'!A93","v":0}]
[null,null,null,null,null,null,null,{"$f":"'Item Template'!A94","v":0}]
[null,null,null,null,null,null,null,{"$f":"'Item Template'!A95","v":0}]
[null,null,null,null,null,null,null,{"$f":"'Item Template'!A96","v":0}]
[null,null,null,null,null,null,null,{"$f":"'Item Template'!A97","v":0}]
[null,null,null,null,null,null,null,{"$f":"'Item Template'!A98","v":0}]
[null,null,null,null,null,null,null,{"$f":"'Item Template'!A99","v":0}]
[null,null,null,null,null,null,null,{"$f":"'Item Template'!A100","v":0}]
[null,null,null,null,null,null,null,{"$f":"'Item Template'!A101","v":0}]
[null,null,null,null,null,null,null,{"$f":"'Item Template'!A102","v":0}]
[null,null,null,null,null,null,null,{"$f":"'Item Template'!A103","v":0}]
[null,null,null,null,null,null,null,{"$f":"'Item Template'!A104","v":0}]
[null,null,null,null,null,null,null,{"$f":"'Item Template'!A105","v":0}]
[null,null,null,null,null,null,null,{"$f":"'Item Template'!A106","v":0}]
[null,null,null,null,null,null,null,{"$f":"'Item Template'!A107","v":0}]
[null,null,null,null,null,null,null,{"$f":"'Item Template'!A108","v":0}]
[null,null,null,null,null,null,null,{"$f":"'Item Template'!A109","v":0}]
[null,null,null,null,null,null,null,{"$f":"'Item Template'!A110","v":0}]
[null,null,null,null,null,null,null,{"$f":"'Item Template'!A111","v":0}]
[null,null,null,null,null,null,null,{"$f":"'Item Template'!A112","v":0}]
[null,null,null,null,null,null,null,{"$f":"'Item Template'!A113","v":0}]
[null,null,null,null,null,null,null,{"$f":"'Item Template'!A114","v":0}]
[null,null,null,null,null,null,null,{"$f":"'Item Template'!A115","v":0}]
[null,null,null,null,null,null,null,{"$f":"'Item Template'!A116","v":0}]
[null,null,null,null,null,null,null,{"$f":"'Item Template'!A117","v":0}]
[null,null,null,null,null,null,null,{"$f":"'Item Template'!A118","v":0}]
[null,null,null,null,null,null,null,{"$f":"'Item Template'!A119","v":0}]
[null,null,null,null,null,null,null,{"$f":"'Item Template'!A120","v":0}]
[null,null,null,null,null,null,null,{"$f":"'Item Template'!A121","v":0}]
[null,null,null,null,null,null,null,{"$f":"'Item Template'!A122","v":0}]
[null,null,null,null,null,null,null,{"$f":"'Item Template'!A123","v":0}]
[null,null,null,null,null,null,null,{"$f":"'Item Template'!A124","v":0}]
[null,null,null,null,null,null,null,{"$f":"'Item Template'!A125","v":0}]
[null,null,null,null,null,null,null,{"$f":"'Item Template'!A126","v":0}]
[null,null,null,null,null,null,null,{"$f":"'Item Template'!A127","v":0}]
[null,null,null,null,null,null,null,{"$f":"'Item Template'!A128","v":0}]
[null,null,null,null,null,null,null,{"$f":"'Item Template'!A129","v":0}]
[null,null,null,null,null,null,null,{"$f":"'Item Template'!A130","v":0}]
[null,null,null,null,null,null,null,{"$f":"'Item Template'!A131","v":0}]
[null,null,null,null,null,null,null,{"$f":"'Item Template'!A132","v":0}]
[null,null,null,null,null,null,null,{"$f":"'Item Template'!A133","v":0}]
[null,null,null,null,null,null,null,{"$f":"'Item Template'!A134","v":0}]
[null,null,null,null,null,null,null,{"$f":"'Item Template'!A135","v":0}]
[null,null,null,null,null,null,null,{"$f":"'Item Template'!A136","v":0}]
[null,null,null,null,null,null,null,{"$f":"'Item Template'!A137","v":0}]
[null,null,null,null,null,null,null,{"$f":"'Item Template'!A138","v":0}]
[null,null,null,null,null,null,null,{"$f":"'Item Template'!A139","v":0}]
[null,null,null,null,null,null,null,{"$f":"'Item Template'!A140","v":0}]
[null,null,null,null,null,null,null,{"$f":"'Item Template'!A141","v":0}]
[null,null,null,null,null,null,null,{"$f":"'Item Template'!A142","v":0}]
[null,null,null,null,null,null,null,{"$f":"'Item Template'!A143","v":0}]
[null,null,null,null,null,null,null,{"$f":"'Item Template'!A144","v":0}]
[null,null,null,null,null,null,null,{"$f":"'Item Template'!A145","v":0}]
[null,null,null,null,null,null,null,{"$f":"'Item Template'!A146","v":0}]
[null,null,null,null,null,null,null,{"$f":"'Item Template'!A147","v":0}]
[null,null,null,null,null,null,null,{"$f":"'Item Template'!A148","v":0}]
[null,null,null,null,null,null,null,{"$f":"'Item Template'!A149","v":0}]
[null,null,null,null,null,null,null,{"$f":"'Item Template'!A150","v":0}]
[null,null,null,null,null,null,null,{"$f":"'Item Template'!A151","v":0}]
[null,null,null,null,null,null,null,{"$f":"'Item Template'!A152","v":0}]
[null,null,null,null,null,null,null,{"$f":"'Item Template'!A153","v":0}]
[null,null,null,null,null,null,null,{"$f":"'Item Template'!A154","v":0}]
[null,null,null,null,null,null,null,{"$f":"'Item Template'!A155","v":0}]
[null,null,null,null,null,null,null,{"$f":"'Item Template'!A156","v":0}]
[null,null,null,null,null,null,null,{"$f":"'Item Template'!A157","v":0}]
[null,null,null,null,null,null,null,{"$f":"'Item Template'!A158","v":0}]
[null,null,null,null,null,null,null,{"$f":"'Item Template'!A159","v":0}]
[null,null,null,null,null,null,null,{"$f":"'Item Template'!A160","v":0}]
[null,null,null,null,null,null,null,{"$f":"'Item Template'!A161","v":0}]
[null,null,null,null,null,null,null,{"$f":"'Item Template'!A162","v":0}]
[null,null,null,null,null,null,null,{"$f":"'Item Template'!A163","v":0}]
[null,null,null,null,null,null,null,{"$f":"'Item Template'!A164","v":0}]
[null,null,null,null,null,null,null,{"$f":"'Item Template'!A165","v":0}]
[null,null,null,null,null,null,null,{"$f":"'Item Template'!A166","v":0}]
[null,null,null,null,null,null,null,{"$f":"'Item Template'!A167","v":0}]
[null,null,null,null,null,null,null,{"$f":"'Item Template'!A168","v":0}]
[null,null,null,null,null,null,null,{"$f":"'Item Template'!A169","v":0}]
[null,null,null,null,null,null,null,{"$f":"'Item Template'!A170","v":0}]
[null,null,null,null,null,null,null,{"$f":"'Item Template'!A171","v":0}]
[null,null,null,null,null,null,null,{"$f":"'Item Template'!A172","v":0}]
[null,null,null,null,null,null,null,{"$f":"'Item Template'!A173","v":0}]
[null,null,null,null,null,null,null,{"$f":"'Item Template'!A174","v":0}]
[null,null,null,null,null,null,null,{"$f":"'Item Template'!A175","v":0}]
[null,null,null,null,null,null,null,{"$f":"'Item Template'!A176","v":0}]
[null,null,null,null,null,null,null,{"$f":"'Item Template'!A177","v":0}]
[null,null,null,null,null,null,null,{"$f":"'Item Template'!A178","v":0}]
[null,null,null,null,null,null,null,{"$f":"'Item Template'!A179","v":0}]
[null,null,null,null,null,null,null,{"$f":"'Item Template'!A180","v":0}]
[null,null,null,null,null,null,null,{"$f":"'Item Template'!A181","v":0}]
[null,null,null,null,null,null,null,{"$f":"'Item Template'!A182","v":0}]
[null,null,null,null,null,null,null,{"$f":"'Item Template'!A183","v":0}]
[null,null,null,null,null,null,null,{"$f":"'Item Template'!A184","v":0}]
[null,null,null,null,null,null,null,{"$f":"'Item Template'!A185","v":0}]
[null,null,null,null,null,null,null,{"$f":"'Item Template'!A186","v":0}]
[null,null,null,null,null,null,null,{"$f":"'Item Template'!A187","v":0}]
[null,null,null,null,null,null,null,{"$f":"'Item Template'!A188","v":0}]
[null,null,null,null,null,null,null,{"$f":"'Item Template'!A189","v":0}]
[null,null,null,null,null,null,null,{"$f":"'Item Template'!A190","v":0}]
[null,null,null,null,null,null,null,{"$f":"'Item Template'!A191","v":0}]
[null,null,null,null,null,null,null,{"$f":"'Item Template'!A192","v":0}]
[null,null,null,null,null,null,null,{"$f":"'Item Template'!A193","v":0}]
[null,null,null,null,null,null,null,{"$f":"'Item Template'!A194","v":0}]
[null,null,null,null,null,null,null,{"$f":"'Item Template'!A195","v":0}]
[null,null,null,null,null,null,null,{"$f":"'Item Template'!A196","v":0}]
[null,null,null,null,null,null,null,{"$f":"'Item Template'!A197","v":0}]
[null,null,null,null,null,null,null,{"$f":"'Item Template'!A198","v":0}]
[null,null,null,null,null,null,null,{"$f":"'Item Template'!A199","v":0}]
[null,null,null,null,null,null,null,{"$f":"'Item Template'!A200","v":0}]
[null,null,null,null,null,null,null,{"$f":"'Item Template'!A201","v":0}]
[null,null,null,null,null,null,null,{"$f":"'Item Template'!A202","v":0}]
[null,null,null,null,null,null,null,{"$f":"'Item Template'!A203","v":0}]
[null,null,null,null,null,null,null,{"$f":"'Item Template'!A204","v":0}]
[null,null,null,null,null,null,null,{"$f":"'Item Template'!A205","v":0}]
[null,null,null,null,null,null,null,{"$f":"'Item Template'!A206","v":0}]
[null,null,null,null,null,null,null,{"$f":"'Item Template'!A207","v":0}]
[null,null,null,null,null,null,null,{"$f":"'Item Template'!A208","v":0}]
[null,null,null,null,null,null,null,{"$f":"'Item Template'!A209","v":0}]
[null,null,null,null,null,null,null,{"$f":"'Item Template'!A210","v":0}]
[null,null,null,null,null,null,null,{"$f":"'Item Template'!A211","v":0}]
[null,null,null,null,null,null,null,{"$f":"'Item Template'!A212","v":0}]
[null,null,null,null,null,null,null,{"$f":"'Item Template'!A213","v":0}]
[null,null,null,null,null,null,null,{"$f":"'Item Template'!A214","v":0}]
[null,null,null,null,null,null,null,{"$f":"'Item Template'!A215","v":0}]
[null,null,null,null,null,null,null,{"$f":"'Item Template'!A216","v":0}]
[null,null,null,null,null,null,null,{"$f":"'Item Template'!A217","v":0}]
[null,null,null,null,null,null,null,{"$f":"'Item Template'!A218","v":0}]
[null,null,null,null,null,null,null,{"$f":"'Item Template'!A219","v":0}]
[null,null,null,null,null,null,null,{"$f":"'Item Template'!A220","v":0}]
[null,null,null,null,null,null,null,{"$f":"'Item Template'!A221","v":0}]
[null,null,null,null,null,null,null,{"$f":"'Item Template'!A222","v":0}]
[null,null,null,null,null,null,null,{"$f":"'Item Template'!A223","v":0}]
[null,null,null,null,null,null,null,{"$f":"'Item Template'!A224","v":0}]
[null,null,null,null,null,null,null,{"$f":"'Item Template'!A225","v":0}]
[null,null,null,null,null,null,null,{"$f":"'Item Template'!A226","v":0}]
[null,null,null,null,null,null,null,{"$f":"'Item Template'!A227","v":0}]
[null,null,null,null,null,null,null,{"$f":"'Item Template'!A228","v":0}]
[null,null,null,null,null,null,null,{"$f":"'Item Template'!A229","v":0}]
[null,null,null,null,null,null,null,{"$f":"'Item Template'!A230","v":0}]
[null,null,null,null,null,null,null,{"$f":"'Item Template'!A231","v":0}]
[null,null,null,null,null,null,null,{"$f":"'Item Template'!A232","v":0}]
[null,null,null,null,null,null,null,{"$f":"'Item Template'!A233","v":0}]
[null,null,null,null,null,null,null,{"$f":"'Item Template'!A234","v":0}]
[null,null,null,null,null,null,null,{"$f":"'Item Template'!A235","v":0}]
[null,null,null,null,null,null,null,{"$f":"'Item Template'!A236","v":0}]
[null,null,null,null,null,null,null,{"$f":"'Item Template'!A237","v":0}]
[null,null,null,null,null,null,null,{"$f":"'Item Template'!A238","v":0}]
[null,null,null,null,null,null,null,{"$f":"'Item Template'!A239","v":0}]
[null,null,null,null,null,null,null,{"$f":"'Item Template'!A240","v":0}]
[null,null,null,null,null,null,null,{"$f":"'Item Template'!A241","v":0}]
[null,null,null,null,null,null,null,{"$f":"'Item Template'!A242","v":0}]
[null,null,null,null,null,null,null,{"$f":"'Item Template'!A243","v":0}]
[null,null,null,null,null,null,null,{"$f":"'Item Template'!A244","v":0}]
[null,null,null,null,null,null,null,{"$f":"'Item Template'!A245","v":0}]
[null,null,null,null,null,null,null,{"$f":"'Item Template'!A246","v":0}]
[null,null,null,null,null,null,null,{"$f":"'Item Template'!A247","v":0}]
[null,null,null,null,null,null,null,{"$f":"'Item Template'!A248","v":0}]
[null,null,null,null,null,null,null,{"$f":"'Item Template'!A249","v":0}]
[null,null,null,null,null,null,null,{"$f":"'Item Template'!A250","v":0}]
[null,null,null,null,null,null,null,{"$f":"'Item Template'!A251","v":0}]
[null,null,null,null,null,null,null,{"$f":"'Item Template'!A252","v":0}]
[null,null,null,null,null,null,null,{"$f":"'Item Template'!A253","v":0}]
[null,null,null,null,null,null,null,{"$f":"'Item Template'!A254","v":0}]
[null,null,null,null,null,null,null,{"$f":"'Item Template'!A255","v":0}]
[null,null,null,null,null,null,null,{"$f":"'Item Template'!A256","v":0}]
[null,null,null,null,null,null,null,{"$f":"'Item Template'!A257","v":0}]
[null,null,null,null,null,null,null,{"$f":"'Item Template'!A258","v":0}]
[null,null,null,null,null,null,null,{"$f":"'Item Template'!A259","v":0}]
[null,null,null,null,null,null,null,{"$f":"'Item Template'!A260","v":0}]
[null,null,null,null,null,null,null,{"$f":"'Item Template'!A261","v":0}]
[null,null,null,null,null,null,null,{"$f":"'Item Template'!A262","v":0}]
[null,null,null,null,null,null,null,{"$f":"'Item Template'!A263","v":0}]
[null,null,null,null,null,null,null,{"$f":"'Item Template'!A264","v":0}]
[null,null,null,null,null,null,null,{"$f":"'Item Template'!A265","v":0}]
[null,null,null,null,null,null,null,{"$f":"'Item Template'!A266","v":0}]
[null,null,null,null,null,null,null,{"$f":"'Item Template'!A267","v":0}]
[null,null,null,null,null,null,null,{"$f":"'Item Template'!A268","v":0}]
[null,null,null,null,null,null,null,{"$f":"'Item Template'!A269","v":0}]
[null,null,null,null,null,null,null,{"$f":"'Item Template'!A270","v":0}]
[null,null,null,null,null,null,null,{"$f":"'Item Template'!A271","v":0}]
[null,null,null,null,null,null,null,{"$f":"'Item Template'!A272","v":0}]
[null,null,null,null,null,null,null,{"$f":"'Item Template'!A273","v":0}]
[null,null,null,null,null,null,null,{"$f":"'Item Template'!A274","v":0}]
[null,null,null,null,null,null,null,{"$f":"'Item Template'!A275","v":0}]
[null,null,null,null,null,null,null,{"$f":"'Item Template'!A276","v":0}]
[null,null,null,null,null,null,null,{"$f":"'Item Template'!A277","v":0}]
[null,null,null,null,null,null,null,{"$f":"'Item Template'!A278","v":0}]
[null,null,null,null,null,null,null,{"$f":"'Item Template'!A279","v":0}]
[null,null,null,null,null,null,null,{"$f":"'Item Template'!A280","v":0}]
[null,null,null,null,null,null,null,{"$f":"'Item Template'!A281","v":0}]
[null,null,null,null,null,null,null,{"$f":"'Item Template'!A282","v":0}]
[null,null,null,null,null,null,null,{"$f":"'Item Template'!A283","v":0}]
[null,null,null,null,null,null,null,{"$f":"'Item Template'!A284","v":0}]
[null,null,null,null,null,null,null,{"$f":"'Item Template'!A285","v":0}]
[null,null,null,null,null,null,null,{"$f":"'Item Template'!A286","v":0}]
[null,null,null,null,null,null,null,{"$f":"'Item Template'!A287","v":0}]
[null,null,null,null,null,null,null,{"$f":"'Item Template'!A288","v":0}]
[null,null,null,null,null,null,null,{"$f":"'Item Template'!A289","v":0}]
[null,null,null,null,null,null,null,{"$f":"'Item Template'!A290","v":0}]
[null,null,null,null,null,null,null,{"$f":"'Item Template'!A291","v":0}]
[null,null,null,null,null,null,null,{"$f":"'Item Template'!A292","v":0}]
[null,null,null,null,null,null,null,{"$f":"'Item Template'!A293","v":0}]
[null,null,null,null,null,null,null,{"$f":"'Item Template'!A294","v":0}]
[null,null,null,null,null,null,null,{"$f":"'Item Template'!A295","v":0}]
[null,null,null,null,null,null,null,{"$f":"'Item Template'!A296","v":0}]
[null,null,null,null,null,null,null,{"$f":"'Item Template'!A297","v":0}]
[null,null,null,null,null,null,null,{"$f":"'Item Template'!A298","v":0}]
[null,null,null,null,null,null,null,{"$f":"'Item Template'!A299","v":0}]
[null,null,null,null,null,null,null,{"$f":"'Item Template'!A300","v":0}]
[null,null,null,null,null,null,null,{"$f":"'Item Template'!A301","v":0}]
[null,null,null,null,null,null,null,{"$f":"'Item Template'!A302","v":0}]
[null,null,null,null,null,null,null,{"$f":"'Item Template'!A303","v":0}]
[null,null,null,null,null,null,null,{"$f":"'Item Template'!A304","v":0}]
[null,null,null,null,null,null,null,{"$f":"'Item Template'!A305","v":0}]
[null,null,null,null,null,null,null,{"$f":"'Item Template'!A306","v":0}]
[null,null,null,null,null,null,null,{"$f":"'Item Template'!A307","v":0}]
[null,null,null,null,null,null,null,{"$f":"'Item Template'!A308","v":0}]
[null,null,null,null,null,null,null,{"$f":"'Item Template'!A309","v":0}]
[null,null,null,null,null,null,null,{"$f":"'Item Template'!A310","v":0}]
[null,null,null,null,null,null,null,{"$f":"'Item Template'!A311","v":0}]
[null,null,null,null,null,null,null,{"$f":"'Item Template'!A312","v":0}]
[null,null,null,null,null,null,null,{"$f":"'Item Template'!A313","v":0}]
[null,null,null,null,null,null,null,{"$f":"'Item Template'!A314","v":0}]
[null,null,null,null,null,null,null,{"$f":"'Item Template'!A315","v":0}]
[null,null,null,null,null,null,null,{"$f":"'Item Template'!A316","v":0}]
[null,null,null,null,null,null,null,{"$f":"'Item Template'!A317","v":0}]
[null,null,null,null,null,null,null,{"$f":"'Item Template'!A318","v":0}]
[null,null,null,null,null,null,null,{"$f":"'Item Template'!A319","v":0}]
[null,null,null,null,null,null,null,{"$f":"'Item Template'!A320","v":0}]
[null,null,null,null,null,null,null,{"$f":"'Item Template'!A321","v":0}]
[null,null,null,null,null,null,null,{"$f":"'Item Template'!A322","v":0}]
[null,null,null,null,null,null,null,{"$f":"'Item Template'!A323","v":0}]
[null,null,null,null,null,null,null,{"$f":"'Item Template'!A324","v":0}]
[null,null,null,null,null,null,null,{"$f":"'Item Template'!A325","v":0}]
[null,null,null,null,null,null,null,{"$f":"'Item Template'!A326","v":0}]
[null,null,null,null,null,null,null,{"$f":"'Item Template'!A327","v":0}]
[null,null,null,null,null,null,null,{"$f":"'Item Template'!A328","v":0}]
[null,null,null,null,null,null,null,{"$f":"'Item Template'!A329","v":0}]
[null,null,null,null,null,null,null,{"$f":"'Item Template'!A330","v":0}]
[null,null,null,null,null,null,null,{"$f":"'Item Template'!A331","v":0}]
[null,null,null,null,null,null,null,{"$f":"'Item Template'!A332","v":0}]
[null,null,null,null,null,null,null,{"$f":"'Item Template'!A333","v":0}]
[null,null,null,null,null,null,null,{"$f":"'Item Template'!A334","v":0}]
[null,null,null,null,null,null,null,{"$f":"'Item Template'!A335","v":0}]
[null,null,null,null,null,null,null,{"$f":"'Item Template'!A336","v":0}]
[null,null,null,null,null,null,null,{"$f":"'Item Template'!A337","v":0}]
[null,null,null,null,null,null,null,{"$f":"'Item Template'!A338","v":0}]
[null,null,null,null,null,null,null,{"$f":"'Item Template'!A339","v":0}]
[null,null,null,null,null,null,null,{"$f":"'Item Template'!A340","v":0}]
[null,null,null,null,null,null,null,{"$f":"'Item Template'!A341","v":0}]
[null,null,null,null,null,null,null,{"$f":"'Item Template'!A342","v":0}]
[null,null,null,null,null,null,null,{"$f":"'Item Template'!A343","v":0}]
[null,null,null,null,null,null,null,{"$f":"'Item Template'!A344","v":0}]
[null,null,null,null,null,null,null,{"$f":"'Item Template'!A345","v":0}]
[null,null,null,null,null,null,null,{"$f":"'Item Template'!A346","v":0}]
[null,null,null,null,null,null,null,{"$f":"'Item Template'!A347","v":0}]
[null,null,null,null,null,null,null,{"$f":"'Item Template'!A348","v":0}]
[null,null,null,null,null,null,null,{"$f":"'Item Template'!A349","v":0}]
[null,null,null,null,null,null,null,{"$f":"'Item Template'!A350","v":0}]
[null,null,null,null,null,null,null,{"$f":"'Item Template'!A351","v":0}]
[null,null,null,null,null,null,null,{"$f":"'Item Template'!A352","v":0}]
[null,null,null,null,null,null,null,{"$f":"'Item Template'!A353","v":0}]
[null,null,null,null,null,null,null,{"$f":"'Item Template'!A354","v":0}]
[null,null,null,null,null,null,null,{"$f":"'Item Template'!A355","v":0}]
[null,null,null,null,null,null,null,{"$f":"'Item Template'!A356","v":0}]
[null,null,null,null,null,null,null,{"$f":"'Item Template'!A357","v":0}]
[null,null,null,null,null,null,null,{"$f":"'Item Template'!A358","v":0}]
[null,null,null,null,null,null,null,{"$f":"'Item Template'!A359","v":0}]
[null,null,null,null,null,null,null,{"$f":"'Item Template'!A360","v":0}]
[null,null,null,null,null,null,null,{"$f":"'Item Template'!A361","v":0}]
[null,null,null,null,null,null,null,{"$f":"'Item Template'!A362","v":0}]
[null,null,null,null,null,null,null,{"$f":"'Item Template'!A363","v":0}]
[null,null,null,null,null,null,null,{"$f":"'Item Template'!A364","v":0}]
[null,null,null,null,null,null,null,{"$f":"'Item Template'!A365","v":0}]
[null,null,null,null,null,null,null,{"$f":"'Item Template'!A366","v":0}]
[null,null,null,null,null,null,null,{"$f":"'Item Template'!A367","v":0}]
[null,null,null,null,null,null,null,{"$f":"'Item Template'!A368","v":0}]
[null,null,null,null,null,null,null,{"$f":"'Item Template'!A369","v":0}]
[null,null,null,null,null,null,null,{"$f":"'Item Template'!A370","v":0}]
[null,null,null,null,null,null,null,{"$f":"'Item Template'!A371","v":0}]
[null,null,null,null,null,null,null,{"$f":"'Item Template'!A372","v":0}]
[null,null,null,null,null,null,null,{"$f":"'Item Template'!A373","v":0}]
[null,null,null,null,null,null,null,{"$f":"'Item Template'!A374","v":0}]
[null,null,null,null,null,null,null,{"$f":"'Item Template'!A375","v":0}]
[null,null,null,null,null,null,null,{"$f":"'Item Template'!A376","v":0}]
[null,null,null,null,null,null,null,{"$f":"'Item Template'!A377","v":0}]
[null,null,null,null,null,null,null,{"$f":"'Item Template'!A378","v":0}]
[null,null,null,null,null,null,null,{"$f":"'Item Template'!A379","v":0}]
[null,null,null,null,null,null,null,{"$f":"'Item Template'!A380","v":0}]
[null,null,null,null,null,null,null,{"$f":"'Item Template'!A381","v":0}]
[null,null,null,null,null,null,null,{"$f":"'Item Template'!A382","v":0}]
[null,null,null,null,null,null,null,{"$f":"'Item Template'!A383","v":0}]
[null,null,null,null,null,null,null,{"$f":"'Item Template'!A384","v":0}]
[null,null,null,null,null,null,null,{"$f":"'Item Template'!A385","v":0}]
[null,null,null,null,null,null,null,{"$f":"'Item Template'!A386","v":0}]
[null,null,null,null,null,null,null,{"$f":"'Item Template'!A387","v":0}]
[null,null,null,null,null,null,null,{"$f":"'Item Template'!A388","v":0}]
[null,null,null,null,null,null,null,{"$f":"'Item Template'!A389","v":0}]
[null,null,null,null,null,null,null,{"$f":"'Item Template'!A390","v":0}]
[null,null,null,null,null,null,null,{"$f":"'Item Template'!A391","v":0}]
[null,null,null,null,null,null,null,{"$f":"'Item Template'!A392","v":0}]
[null,null,null,null,null,null,null,{"$f":"'Item Template'!A393","v":0}]
[null,null,null,null,null,null,null,{"$f":"'Item Template'!A394","v":0}]
[null,null,null,null,null,null,null,{"$f":"'Item Template'!A395","v":0}]
[null,null,null,null,null,null,null,{"$f":"'Item Template'!A396","v":0}]
[null,null,null,null,null,null,null,{"$f":"'Item Template'!A397","v":0}]
[null,null,null,null,null,null,null,{"$f":"'Item Template'!A398","v":0}]
[null,null,null,null,null,null,null,{"$f":"'Item Template'!A399","v":0}]
[null,null,null,null,null,null,null,{"$f":"'Item Template'!A400","v":0}]
[null,null,null,null,null,null,null,{"$f":"'Item Template'!A401","v":0}]
[null,null,null,null,null,null,null,{"$f":"'Item Template'!A402","v":0}]
[null,null,null,null,null,null,null,{"$f":"'Item Template'!A403","v":0}]
[null,null,null,null,null,null,null,{"$f":"'Item Template'!A404","v":0}]
[null,null,null,null,null,null,null,{"$f":"'Item Template'!A405","v":0}]
[null,null,null,null,null,null,null,{"$f":"'Item Template'!A406","v":0}]
[null,null,null,null,null,null,null,{"$f":"'Item Template'!A407","v":0}]
[null,null,null,null,null,null,null,{"$f":"'Item Template'!A408","v":0}]
[null,null,null,null,null,null,null,{"$f":"'Item Template'!A409","v":0}]
[null,null,null,null,null,null,null,{"$f":"'Item Template'!A410","v":0}]
[null,null,null,null,null,null,null,{"$f":"'Item Template'!A411","v":0}]
[null,null,null,null,null,null,null,{"$f":"'Item Template'!A412","v":0}]
[null,null,null,null,null,null,null,{"$f":"'Item Template'!A413","v":0}]
[null,null,null,null,null,null,null,{"$f":"'Item Template'!A414","v":0}]
[null,null,null,null,null,null,null,{"$f":"'Item Template'!A415","v":0}]
[null,null,null,null,null,null,null,{"$f":"'Item Template'!A416","v":0}]
[null,null,null,null,null,null,null,{"$f":"'Item Template'!A417","v":0}]
[null,null,null,null,null,null,null,{"$f":"'Item Template'!A418","v":0}]
[null,null,null,null,null,null,null,{"$f":"'Item Template'!A419","v":0}]
[null,null,null,null,null,null,null,{"$f":"'Item Template'!A420","v":0}]
[null,null,null,null,null,null,null,{"$f":"'Item Template'!A421","v":0}]
[null,null,null,null,null,null,null,{"$f":"'Item Template'!A422","v":0}]
[null,null,null,null,null,null,null,{"$f":"'Item Template'!A423","v":0}]
[null,null,null,null,null,null,null,{"$f":"'Item Template'!A424","v":0}]
[null,null,null,null,null,null,null,{"$f":"'Item Template'!A425","v":0}]
[null,null,null,null,null,null,null,{"$f":"'Item Template'!A426","v":0}]
[null,null,null,null,null,null,null,{"$f":"'Item Template'!A427","v":0}]
[null,null,null,null,null,null,null,{"$f":"'Item Template'!A428","v":0}]
[null,null,null,null,null,null,null,{"$f":"'Item Template'!A429","v":0}]
[null,null,null,null,null,null,null,{"$f":"'Item Template'!A430","v":0}]
[null,null,null,null,null,null,null,{"$f":"'Item Template'!A431","v":0}]
[null,null,null,null,null,null,null,{"$f":"'Item Template'!A432","v":0}]
[null,null,null,null,null,null,null,{"$f":"'Item Template'!A433","v":0}]
[null,null,null,null,null,null,null,{"$f":"'Item Template'!A434","v":0}]
[null,null,null,null,null,null,null,{"$f":"'Item Template'!A435","v":0}]
[null,null,null,null,null,null,null,{"$f":"'Item Template'!A436","v":0}]
[null,null,null,null,null,null,null,{"$f":"'Item Template'!A437","v":0}]
[null,null,null,null,null,null,null,{"$f":"'Item Template'!A438","v":0}]
[null,null,null,null,null,null,null,{"$f":"'Item Template'!A439","v":0}]
[null,null,null,null,null,null,null,{"$f":"'Item Template'!A440","v":0}]
[null,null,null,null,null,null,null,{"$f":"'Item Template'!A441","v":0}]
[null,null,null,null,null,null,null,{"$f":"'Item Template'!A442","v":0}]
[null,null,null,null,null,null,null,{"$f":"'Item Template'!A443","v":0}]
[null,null,null,null,null,null,null,{"$f":"'Item Template'!A444","v":0}]
[null,null,null,null,null,null,null,{"$f":"'Item Template'!A445","v":0}]
[null,null,null,null,null,null,null,{"$f":"'Item Template'!A446","v":0}]
[null,null,null,null,null,null,null,{"$f":"'Item Template'!A447","v":0}]
[null,null,null,null,null,null,null,{"$f":"'Item Template'!A448","v":0}]
[null,null,null,null,null,null,null,{"$f":"'Item Template'!A449","v":0}]
[null,null,null,null,null,null,null,{"$f":"'Item Template'!A450","v":0}]
[null,null,null,null,null,null,null,{"$f":"'Item Template'!A451","v":0}]
[null,null,null,null,null,null,null,{"$f":"'Item Template'!A452","v":0}]
[null,null,null,null,null,null,null,{"$f":"'Item Template'!A453","v":0}]
[null,null,null,null,null,null,null,{"$f":"'Item Template'!A454","v":0}]
[null,null,null,null,null,null,null,{"$f":"'Item Template'!A455","v":0}]
[null,null,null,null,null,null,null,{"$f":"'Item Template'!A456","v":0}]
[null,null,null,null,null,null,null,{"$f":"'Item Template'!A457","v":0}]
[null,null,null,null,null,null,null,{"$f":"'Item Template'!A458","v":0}]
[null,null,null,null,null,null,null,{"$f":"'Item Template'!A459","v":0}]
[null,null,null,null,null,null,null,{"$f":"'Item Template'!A460","v":0}]
[null,null,null,null,null,null,null,{"$f":"'Item Template'!A461","v":0}]
[null,null,null,null,null,null,null,{"$f":"'Item Template'!A462","v":0}]
[null,null,null,null,null,null,null,{"$f":"'Item Template'!A463","v":0}]
[null,null,null,null,null,null,null,{"$f":"'Item Template'!A464","v":0}]
[null,null,null,null,null,null,null,{"$f":"'Item Template'!A465","v":0}]
[null,null,null,null,null,null,null,{"$f":"'Item Template'!A466","v":0}]
[null,null,null,null,null,null,null,{"$f":"'Item Template'!A467","v":0}]
[null,null,null,null,null,null,null,{"$f":"'Item Template'!A468","v":0}]
[null,null,null,null,null,null,null,{"$f":"'Item Template'!A469","v":0}]
[null,null,null,null,null,null,null,{"$f":"'Item Template'!A470","v":0}]
[null,null,null,null,null,null,null,{"$f":"'Item Template'!A471","v":0}]
[null,null,null,null,null,null,null,{"$f":"'Item Template'!A472","v":0}]
[null,null,null,null,null,null,null,{"$f":"'Item Template'!A473","v":0}]
[null,null,null,null,null,null,null,{"$f":"'Item Template'!A474","v":0}]
[null,null,null,null,null,null,null,{"$f":"'Item Template'!A475","v":0}]
[null,null,null,null,null,null,null,{"$f":"'Item Template'!A476","v":0}]
[null,null,null,null,null,null,null,{"$f":"'Item Template'!A477","v":0}]
[null,null,null,null,null,null,null,{"$f":"'Item Template'!A478","v":0}]
[null,null,null,null,null,null,null,{"$f":"'Item Template'!A479","v":0}]
[null,null,null,null,null,null,null,{"$f":"'Item Template'!A480","v":0}]
[null,null,null,null,null,null,null,{"$f":"'Item Template'!A481","v":0}]
[null,null,null,null,null,null,null,{"$f":"'Item Template'!A482","v":0}]
[null,null,null,null,null,null,null,{"$f":"'Item Template'!A483","v":0}]
[null,null,null,null,null,null,null,{"$f":"'Item Template'!A484","v":0}]
[null,null,null,null,null,null,null,{"$f":"'Item Template'!A485","v":0}]
[null,null,null,null,null,null,null,{"$f":"'Item Template'!A486","v":0}]
[null,null,null,null,null,null,null,{"$f":"'Item Template'!A487","v":0}]
[null,null,null,null,null,null,null,{"$f":"'Item Template'!A488","v":0}]
[null,null,null,null,null,null,null,{"$f":"'Item Template'!A489","v":0}]
[null,null,null,null,null,null,null,{"$f":"'Item Template'!A490","v":0}]
[null,null,null,null,null,null,null,{"$f":"'Item Template'!A491","v":0}]
[null,null,null,null,null,null,null,{"$f":"'Item Template'!A492","v":0}]
[null,null,null,null,null,null,null,{"$f":"'Item Template'!A493","v":0}]
[null,null,null,null,null,null,null,{"$f":"'Item Template'!A494","v":0}]
[null,null,null,null,null,null,null,{"$f":"'Item Template'!A495","v":0}]
[null,null,null,null,null,null,null,{"$f":"'Item Template'!A496","v":0}]
[null,null,null,null,null,null,null,{"$f":"'Item Template'!A497","v":0}]
[null,null,null,null,null,null,null,{"$f":"'Item Template'!A498","v":0}]
[null,null,null,null,null,null,null,{"$f":"'Item Template'!A499","v":0}]
[null,null,null,null,null,null,null,{"$f":"'Item Template'!A500","v":0}]
[null,null,null,null,null,null,null,{"$f":"'Item Template'!A501","v":0}]
[null,null,null,null,null,null,null,{"$f":"'Item Template'!A502","v":0}]
[null,null,null,null,null,null,null,{"$f":"'Item Template'!A503","v":0}]
[null,null,null,null,null,null,null,{"$f":"'Item Template'!A504","v":0}]
[null,null,null,null,null,null,null,{"$f":"'Item Template'!A505","v":0}]
[null,null,null,null,null,null,null,{"$f":"'Item Template'!A506","v":0}]
[null,null,null,null,null,null,null,{"$f":"'Item Template'!A507","v":0}]
[null,null,null,null,null,null,null,{"$f":"'Item Template'!A508","v":0}]
[null,null,null,null,null,null,null,{"$f":"'Item Template'!A509","v":0}]
[null,null,null,null,null,null,null,{"$f":"'Item Template'!A510","v":0}]
[null,null,null,null,null,null,null,{"$f":"'Item Template'!A511","v":0}]
[null,null,null,null,null,null,null,{"$f":"'Item Template'!A512","v":0}]
[null,null,null,null,null,null,null,{"$f":"'Item Template'!A513","v":0}]
[null,null,null,null,null,null,null,{"$f":"'Item Template'!A514","v":0}]
[null,null,null,null,null,null,null,{"$f":"'Item Template'!A515","v":0}]
[null,null,null,null,null,null,null,{"$f":"'Item Template'!A516","v":0}]
[null,null,null,null,null,null,null,{"$f":"'Item Template'!A517","v":0}]
[null,null,null,null,null,null,null,{"$f":"'Item Template'!A518","v":0}]
[null,null,null,null,null,null,null,{"$f":"'Item Template'!A519","v":0}]
[null,null,null,null,null,null,null,{"$f":"'Item Template'!A520","v":0}]
[null,null,null,null,null,null,null,{"$f":"'Item Template'!A521","v":0}]
[null,null,null,null,null,null,null,{"$f":"'Item Template'!A522","v":0}]
[null,null,null,null,null,null,null,{"$f":"'Item Template'!A523","v":0}]
[null,null,null,null,null,null,null,{"$f":"'Item Template'!A524","v":0}]
[null,null,null,null,null,null,null,{"$f":"'Item Template'!A525","v":0}]
[null,null,null,null,null,null,null,{"$f":"'Item Template'!A526","v":0}]
[null,null,null,null,null,null,null,{"$f":"'Item Template'!A527","v":0}]
[null,null,null,null,null,null,null,{"$f":"'Item Template'!A528","v":0}]
[null,null,null,null,null,null,null,{"$f":"'Item Template'!A529","v":0}]
[null,null,null,null,null,null,null,{"$f":"'Item Template'!A530","v":0}]
[null,null,null,null,null,null,null,{"$f":"'Item Template'!A531","v":0}]
[null,null,null,null,null,null,null,{"$f":"'Item Template'!A532","v":0}]
[null,null,null,null,null,null,null,{"$f":"'Item Template'!A533","v":0}]
[null,null,null,null,null,null,null,{"$f":"'Item Template'!A534","v":0}]
[null,null,null,null,null,null,null,{"$f":"'Item Template'!A535","v":0}]
[null,null,null,null,null,null,null,{"$f":"'Item Template'!A536","v":0}]
[null,null,null,null,null,null,null,{"$f":"'Item Template'!A537","v":0}]
[null,null,null,null,null,null,null,{"$f":"'Item Template'!A538","v":0}]
[null,null,null,null,null,null,null,{"$f":"'Item Template'!A539","v":0}]
[null,null,null,null,null,null,null,{"$f":"'Item Template'!A540","v":0}]
[null,null,null,null,null,null,null,{"$f":"'Item Template'!A541","v":0}]
[null,null,null,null,null,null,null,{"$f":"'Item Template'!A542","v":0}]
[null,null,null,null,null,null,null,{"$f":"'Item Template'!A543","v":0}]
[null,null,null,null,null,null,null,{"$f":"'Item Template'!A544","v":0}]
[null,null,null,null,null,null,null,{"$f":"'Item Template'!A545","v":0}]
[null,null,null,null,null,null,null,{"$f":"'Item Template'!A546","v":0}]
[null,null,null,null,null,null,null,{"$f":"'Item Template'!A547","v":0}]
[null,null,null,null,null,null,null,{"$f":"'Item Template'!A548","v":0}]
[null,null,null,null,null,null,null,{"$f":"'Item Template'!A549","v":0}]
[null,null,null,null,null,null,null,{"$f":"'Item Template'!A550","v":0}]
[null,null,null,null,null,null,null,{"$f":"'Item Template'!A551","v":0}]
[null,null,null,null,null,null,null,{"$f":"'Item Template'!A552","v":0}]
[null,null,null,null,null,null,null,{"$f":"'Item Template'!A553","v":0}]
[null,null,null,null,null,null,null,{"$f":"'Item Template'!A554","v":0}]
[null,null,null,null,null,null,null,{"$f":"'Item Template'!A555","v":0}]
[null,null,null,null,null,null,null,{"$f":"'Item Template'!A556","v":0}]
[null,null,null,null,null,null,null,{"$f":"'Item Template'!A557","v":0}]
[null,null,null,null,null,null,null,{"$f":"'Item Template'!A558","v":0}]
[null,null,null,null,null,null,null,{"$f":"'Item Template'!A559","v":0}]
[null,null,null,null,null,null,null,{"$f":"'Item Template'!A560","v":0}]
[null,null,null,null,null,null,null,{"$f":"'Item Template'!A561","v":0}]
[null,null,null,null,null,null,null,{"$f":"'Item Template'!A562","v":0}]
[null,null,null,null,null,null,null,{"$f":"'Item Template'!A563","v":0}]
[null,null,null,null,null,null,null,{"$f":"'Item Template'!A564","v":0}]
[null,null,null,null,null,null,null,{"$f":"'Item Template'!A565","v":0}]
[null,null,null,null,null,null,null,{"$f":"'Item Template'!A566","v":0}]
[null,null,null,null,null,null,null,{"$f":"'Item Template'!A567","v":0}]
[null,null,null,null,null,null,null,{"$f":"'Item Template'!A568","v":0}]
[null,null,null,null,null,null,null,{"$f":"'Item Template'!A569","v":0}]
[null,null,null,null,null,null,null,{"$f":"'Item Template'!A570","v":0}]
[null,null,null,null,null,null,null,{"$f":"'Item Template'!A571","v":0}]
[null,null,null,null,null,null,null,{"$f":"'Item Template'!A572","v":0}]
[null,null,null,null,null,null,null,{"$f":"'Item Template'!A573","v":0}]
[null,null,null,null,null,null,null,{"$f":"'Item Template'!A574","v":0}]
[null,null,null,null,null,null,null,{"$f":"'Item Template'!A575","v":0}]
[null,null,null,null,null,null,null,{"$f":"'Item Template'!A576","v":0}]
[null,null,null,null,null,null,null,{"$f":"'Item Template'!A577","v":0}]
[null,null,null,null,null,null,null,{"$f":"'Item Template'!A578","v":0}]
[null,null,null,null,null,null,null,{"$f":"'Item Template'!A579","v":0}]
[null,null,null,null,null,null,null,{"$f":"'Item Template'!A580","v":0}]
[null,null,null,null,null,null,null,{"$f":"'Item Template'!A581","v":0}]
[null,null,null,null,null,null,null,{"$f":"'Item Template'!A582","v":0}]
[null,null,null,null,null,null,null,{"$f":"'Item Template'!A583","v":0}]
[null,null,null,null,null,null,null,{"$f":"'Item Template'!A584","v":0}]
[null,null,null,null,null,null,null,{"$f":"'Item Template'!A585","v":0}]
[null,null,null,null,null,null,null,{"$f":"'Item Template'!A586","v":0}]
[null,null,null,null,null,null,null,{"$f":"'Item Template'!A587","v":0}]
[null,null,null,null,null,null,null,{"$f":"'Item Template'!A588","v":0}]
[null,null,null,null,null,null,null,{"$f":"'Item Template'!A589","v":0}]
[null,null,null,null,null,null,null,{"$f":"'Item Template'!A590","v":0}]
[null,null,null,null,null,null,null,{"$f":"'Item Template'!A591","v":0}]
[null,null,null,null,null,null,null,{"$f":"'Item Template'!A592","v":0}]
[null,null,null,null,null,null,null,{"$f":"'Item Template'!A593","v":0}]
[null,null,null,null,null,null,null,{"$f":"'Item Template'!A594","v":0}]
[null,null,null,null,null,null,null,{"$f":"'Item Template'!A595","v":0}]
[null,null,null,null,null,null,null,{"$f":"'Item Template'!A596","v":0}]
[null,null,null,null,null,null,null,{"$f":"'Item Template'!A597","v":0}]
[null,null,null,null,null,null,null,{"$f":"'Item Template'!A598","v":0}]
[null,null,null,null,null,null,null,{"$f":"'Item Template'!A599","v":0}]
[null,null,null,null,null,null,null,{"$f":"'Item Template'!A600","v":0}]
[null,null,null,null,null,null,null,{"$f":"'Item Template'!A601","v":0}]
[null,null,null,null,null,null,null,{"$f":"'Item Template'!A602","v":0}]
[null,null,null,null,null,null,null,{"$f":"'Item Template'!A603","v":0}]
[null,null,null,null,null,null,null,{"$f":"'Item Template'!A604","v":0}]
[null,null,null,null,null,null,null,{"$f":"'Item Template'!A605","v":0}]
[null,null,null,null,null,null,null,{"$f":"'Item Template'!A606","v":0}]
[null,null,null,null,null,null,null,{"$f":"'Item Template'!A607","v":0}]
[null,null,null,null,null,null,null,{"$f":"'Item Template'!A608","v":0}]
[null,null,null,null,null,null,null,{"$f":"'Item Template'!A609","v":0}]
[null,null,null,null,null,null,null,{"$f":"'Item Template'!A610","v":0}]
[null,null,null,null,null,null,null,{"$f":"'Item Template'!A611","v":0}]
[null,null,null,null,null,null,null,{"$f":"'Item Template'!A612","v":0}]
[null,null,null,null,null,null,null,{"$f":"'Item Template'!A613","v":0}]
[null,null,null,null,null,null,null,{"$f":"'Item Template'!A614","v":0}]
[null,null,null,null,null,null,null,{"$f":"'Item Template'!A615","v":0}]
[null,null,null,null,null,null,null,{"$f":"'Item Template'!A616","v":0}]
[null,null,null,null,null,null,null,{"$f":"'Item Template'!A617","v":0}]
[null,null,null,null,null,null,null,{"$f":"'Item Template'!A618","v":0}]
[null,null,null,null,null,null,null,{"$f":"'Item Template'!A619","v":0}]
[null,null,null,null,null,null,null,{"$f":"'Item Template'!A620","v":0}]
[null,null,null,null,null,null,null,{"$f":"'Item Template'!A621","v":0}]
[null,null,null,null,null,null,null,{"$f":"'Item Template'!A622","v":0}]
[null,null,null,null,null,null,null,{"$f":"'Item Template'!A623","v":0}]
[null,null,null,null,null,null,null,{"$f":"'Item Template'!A624","v":0}]
[null,null,null,null,null,null,null,{"$f":"'Item Template'!A625","v":0}]
[null,null,null,null,null,null,null,{"$f":"'Item Template'!A626","v":0}]
[null,null,null,null,null,null,null,{"$f":"'Item Template'!A627","v":0}]
[null,null,null,null,null,null,null,{"$f":"'Item Template'!A628","v":0}]
[null,null,null,null,null,null,null,{"$f":"'Item Template'!A629","v":0}]
[null,null,null,null,null,null,null,{"$f":"'Item Template'!A630","v":0}]
[null,null,null,null,null,null,null,{"$f":"'Item Template'!A631","v":0}]
[null,null,null,null,null,null,null,{"$f":"'Item Template'!A632","v":0}]
[null,null,null,null,null,null,null,{"$f":"'Item Template'!A633","v":0}]
[null,null,null,null,null,null,null,{"$f":"'Item Template'!A634","v":0}]
[null,null,null,null,null,null,null,{"$f":"'Item Template'!A635","v":0}]
[null,null,null,null,null,null,null,{"$f":"'Item Template'!A636","v":0}]
[null,null,null,null,null,null,null,{"$f":"'Item Template'!A637","v":0}]
[null,null,null,null,null,null,null,{"$f":"'Item Template'!A638","v":0}]
[null,null,null,null,null,null,null,{"$f":"'Item Template'!A639","v":0}]
[null,null,null,null,null,null,null,{"$f":"'Item Template'!A640","v":0}]
[null,null,null,null,null,null,null,{"$f":"'Item Template'!A641","v":0}]
[null,null,null,null,null,null,null,{"$f":"'Item Template'!A642","v":0}]
[null,null,null,null,null,null,null,{"$f":"'Item Template'!A643","v":0}]
[null,null,null,null,null,null,null,{"$f":"'Item Template'!A644","v":0}]
[null,null,null,null,null,null,null,{"$f":"'Item Template'!A645","v":0}]
[null,null,null,null,null,null,null,{"$f":"'Item Template'!A646","v":0}]
[null,null,null,null,null,null,null,{"$f":"'Item Template'!A647","v":0}]
[null,null,null,null,null,null,null,{"$f":"'Item Template'!A648","v":0}]
[null,null,null,null,null,null,null,{"$f":"'Item Template'!A649","v":0}]
[null,null,null,null,null,null,null,{"$f":"'Item Template'!A650","v":0}]
[null,null,null,null,null,null,null,{"$f":"'Item Template'!A651","v":0}]
[null,null,null,null,null,null,null,{"$f":"'Item Template'!A652","v":0}]
[null,null,null,null,null,null,null,{"$f":"'Item Template'!A653","v":0}]
[null,null,null,null,null,null,null,{"$f":"'Item Template'!A654","v":0}]
[null,null,null,null,null,null,null,{"$f":"'Item Template'!A655","v":0}]
[null,null,null,null,null,null,null,{"$f":"'Item Template'!A656","v":0}]
[null,null,null,null,null,null,null,{"$f":"'Item Template'!A657","v":0}]
[null,null,null,null,null,null,null,{"$f":"'Item Template'!A658","v":0}]
[null,null,null,null,null,null,null,{"$f":"'Item Template'!A659","v":0}]
[null,null,null,null,null,null,null,{"$f":"'Item Template'!A660","v":0}]
[null,null,null,null,null,null,null,{"$f":"'Item Template'!A661","v":0}]
[null,null,null,null,null,null,null,{"$f":"'Item Template'!A662","v":0}]
[null,null,null,null,null,null,null,{"$f":"'Item Template'!A663","v":0}]
[null,null,null,null,null,null,null,{"$f":"'Item Template'!A664","v":0}]
[null,null,null,null,null,null,null,{"$f":"'Item Template'!A665","v":0}]
[null,null,null,null,null,null,null,{"$f":"'Item Template'!A666","v":0}]
[null,null,null,null,null,null,null,{"$f":"'Item Template'!A667","v":0}]
[null,null,null,null,null,null,null,{"$f":"'Item Template'!A668","v":0}]
[null,null,null,null,null,null,null,{"$f":"'Item Template'!A669","v":0}]
[null,null,null,null,null,null,null,{"$f":"'Item Template'!A670","v":0}]
[null,null,null,null,null,null,null,{"$f":"'Item Template'!A671","v":0}]
[null,null,null,null,null,null,null,{"$f":"'Item Template'!A672","v":0}]
[null,null,null,null,null,null,null,{"$f":"'Item Template'!A673","v":0}]
[null,null,null,null,null,null,null,{"$f":"'Item Template'!A674","v":0}]
[null,null,null,null,null,null,null,{"$f":"'Item Template'!A675","v":0}]
[null,null,null,null,null,null,null,{"$f":"'Item Template'!A676","v":0}]
[null,null,null,null,null,null,null,{"$f":"'Item Template'!A677","v":0}]
[null,null,null,null,null,null,null,{"$f":"'Item Template'!A678","v":0}]
[null,null,null,null,null,null,null,{"$f":"'Item Template'!A679","v":0}]
[null,null,null,null,null,null,null,{"$f":"'Item Template'!A680","v":0}]
[null,null,null,null,null,null,null,{"$f":"'Item Template'!A681","v":0}]
[null,null,null,null,null,null,null,{"$f":"'Item Template'!A682","v":0}]
[null,null,null,null,null,null,null,{"$f":"'Item Template'!A683","v":0}]
[null,null,null,null,null,null,null,{"$f":"'Item Template'!A684","v":0}]
[null,null,null,null,null,null,null,{"$f":"'Item Template'!A685","v":0}]
[null,null,null,null,null,null,null,{"$f":"'Item Template'!A686","v":0}]
[null,null,null,null,null,null,null,{"$f":"'Item Template'!A687","v":0}]
[null,null,null,null,null,null,null,{"$f":"'Item Template'!A688","v":0}]
[null,null,null,null,null,null,null,{"$f":"'Item Template'!A689","v":0}]
[null,null,null,null,null,null,null,{"$f":"'Item Template'!A690","v":0}]
[null,null,null,null,null,null,null,{"$f":"'Item Template'!A691","v":0}]
[null,null,null,null,null,null,null,{"$f":"'Item Template'!A692","v":0}]
[null,null,null,null,null,null,null,{"$f":"'Item Template'!A693","v":0}]
[null,null,null,null,null,null,null,{"$f":"'Item Template'!A694","v":0}]
[null,null,null,null,null,null,null,{"$f":"'Item Template'!A695","v":0}]
[null,null,null,null,null,null,null,{"$f":"'Item Template'!A696","v":0}]
[null,null,null,null,null,null,null,{"$f":"'Item Template'!A697","v":0}]
[null,null,null,null,null,null,null,{"$f":"'Item Template'!A698","v":0}]
[null,null,null,null,null,null,null,{"$f":"'Item Template'!A699","v":0}]
[null,null,null,null,null,null,null,{"$f":"'Item Template'!A700","v":0}]
[null,null,null,null,null,null,null,{"$f":"'Item Template'!A701","v":0}]
[null,null,null,null,null,null,null,{"$f":"'Item Template'!A702","v":0}]
[null,null,null,null,null,null,null,{"$f":"'Item Template'!A703","v":0}]
[null,null,null,null,null,null,null,{"$f":"'Item Template'!A704","v":0}]
[null,null,null,null,null,null,null,{"$f":"'Item Template'!A705","v":0}]
[null,null,null,null,null,null,null,{"$f":"'Item Template'!A706","v":0}]
[null,null,null,null,null,null,null,{"$f":"'Item Template'!A707","v":0}]
[null,null,null,null,null,null,null,{"$f":"'Item Template'!A708","v":0}]
[null,null,null,null,null,null,null,{"$f":"'Item Template'!A709","v":0}]
[null,null,null,null,null,null,null,{"$f":"'Item Template'!A710","v":0}]
[null,null,null,null,null,null,null,{"$f":"'Item Template'!A711","v":0}]
[null,null,null,null,null,null,null,{"$f":"'Item Template'!A712","v":0}]
[null,null,null,null,null,null,null,{"$f":"'Item Template'!A713","v":0}]
[null,null,null,null,null,null,null,{"$f":"'Item Template'!A714","v":0}]
[null,null,null,null,null,null,null,{"$f":"'Item Template'!A715","v":0}]
[null,null,null,null,null,null,null,{"$f":"'Item Template'!A716","v":0}]
[null,null,null,null,null,null,null,{"$f":"'Item Template'!A717","v":0}]
[null,null,null,null,null,null,null,{"$f":"'Item Template'!A718","v":0}]
[null,null,null,null,null,null,null,{"$f":"'Item Template'!A719","v":0}]
[null,null,null,null,null,null,null,{"$f":"'Item Template'!A720","v":0}]
[null,null,null,null,null,null,null,{"$f":"'Item Template'!A721","v":0}]
[null,null,null,null,null,null,null,{"$f":"'Item Template'!A722","v":0}]
[null,null,null,null,null,null,null,{"$f":"'Item Template'!A723","v":0}]
[null,null,null,null,null,null,null,{"$f":"'Item Template'!A724","v":0}]
[null,null,null,null,null,null,null,{"$f":"'Item Template'!A725","v":0}]
[null,null,null,null,null,null,null,{"$f":"'Item Template'!A726","v":0}]
[null,null,null,null,null,null,null,{"$f":"'Item Template'!A727","v":0}]
[null,null,null,null,null,null,null,{"$f":"'Item Template'!A728","v":0}]
[null,null,null,null,null,null,null,{"$f":"'Item Template'!A729","v":0}]
[null,null,null,null,null,null,null,{"$f":"'Item Template'!A730","v":0}]
[null,null,null,null,null,null,null,{"$f":"'Item Template'!A731","v":0}]
[null,null,null,null,null,null,null,{"$f":"'Item Template'!A732","v":0}]
[null,null,null,null,null,null,null,{"$f":"'Item Template'!A733","v":0}]
[null,null,null,null,null,null,null,{"$f":"'Item Template'!A734","v":0}]
[null,null,null,null,null,null,null,{"$f":"'Item Template'!A735","v":0}]
[null,null,null,null,null,null,null,{"$f":"'Item Template'!A736","v":0}]
[null,null,null,null,null,null,null,{"$f":"'Item Template'!A737","v":0}]
[null,null,null,null,null,null,null,{"$f":"'Item Template'!A738","v":0}]
[null,null,null,null,null,null,null,{"$f":"'Item Template'!A739","v":0}]
[null,null,null,null,null,null,null,{"$f":"'Item Template'!A740","v":0}]
[null,null,null,null,null,null,null,{"$f":"'Item Template'!A741","v":0}]
[null,null,null,null,null,null,null,{"$f":"'Item Template'!A742","v":0}]
[null,null,null,null,null,null,null,{"$f":"'Item Template'!A743","v":0}]
[null,null,null,null,null,null,null,{"$f":"'Item Template'!A744","v":0}]
[null,null,null,null,null,null,null,{"$f":"'Item Template'!A745","v":0}]
[null,null,null,null,null,null,null,{"$f":"'Item Template'!A746","v":0}]
[null,null,null,null,null,null,null,{"$f":"'Item Template'!A747","v":0}]
[null,null,null,null,null,null,null,{"$f":"'Item Template'!A748","v":0}]
[null,null,null,null,null,null,null,{"$f":"'Item Template'!A749","v":0}]
[null,null,null,null,null,null,null,{"$f":"'Item Template'!A750","v":0}]
[null,null,null,null,null,null,null,{"$f":"'Item Template'!A751","v":0}]
[null,null,null,null,null,null,null,{"$f":"'Item Template'!A752","v":0}]
[null,null,null,null,null,null,null,{"$f":"'Item Template'!A753","v":0}]
[null,null,null,null,null,null,null,{"$f":"'Item Template'!A754","v":0}]
[null,null,null,null,null,null,null,{"$f":"'Item Template'!A755","v":0}]
[null,null,null,null,null,null,null,{"$f":"'Item Template'!A756","v":0}]
[null,null,null,null,null,null,null,{"$f":"'Item Template'!A757","v":0}]
[null,null,null,null,null,null,null,{"$f":"'Item Template'!A758","v":0}]
[null,null,null,null,null,null,null,{"$f":"'Item Template'!A759","v":0}]
[null,null,null,null,null,null,null,{"$f":"'Item Template'!A760","v":0}]
[null,null,null,null,null,null,null,{"$f":"'Item Template'!A761","v":0}]
[null,null,null,null,null,null,null,{"$f":"'Item Template'!A762","v":0}]
[null,null,null,null,null,null,null,{"$f":"'Item Template'!A763","v":0}]
[null,null,null,null,null,null,null,{"$f":"'Item Template'!A764","v":0}]
[null,null,null,null,null,null,null,{"$f":"'Item Template'!A765","v":0}]
[null,null,null,null,null,null,null,{"$f":"'Item Template'!A766","v":0}]
[null,null,null,null,null,null,null,{"$f":"'Item Template'!A767","v":0}]
[null,null,null,null,null,null,null,{"$f":"'Item Template'!A768","v":0}]
[null,null,null,null,null,null,null,{"$f":"'Item Template'!A769","v":0}]
[null,null,null,null,null,null,null,{"$f":"'Item Template'!A770","v":0}]
[null,null,null,null,null,null,null,{"$f":"'Item Template'!A771","v":0}]
[null,null,null,null,null,null,null,{"$f":"'Item Template'!A772","v":0}]
[null,null,null,null,null,null,null,{"$f":"'Item Template'!A773","v":0}]
[null,null,null,null,null,null,null,{"$f":"'Item Template'!A774","v":0}]
[null,null,null,null,null,null,null,{"$f":"'Item Template'!A775","v":0}]
[null,null,null,null,null,null,null,{"$f":"'Item Template'!A776","v":0}]
[null,null,null,null,null,null,null,{"$f":"'Item Template'!A777","v":0}]
[null,null,null,null,null,null,null,{"$f":"'Item Template'!A778","v":0}]
[null,null,null,null,null,null,null,{"$f":"'Item Template'!A779","v":0}]
[null,null,null,null,null,null,null,{"$f":"'Item Template'!A780","v":0}]
[null,null,null,null,null,null,null,{"$f":"'Item Template'!A781","v":0}]
[null,null,null,null,null,null,null,{"$f":"'Item Template'!A782","v":0}]
[null,null,null,null,null,null,null,{"$f":"'Item Template'!A783","v":0}]
[null,null,null,null,null,null,null,{"$f":"'Item Template'!A784","v":0}]
[null,null,null,null,null,null,null,{"$f":"'Item Template'!A785","v":0}]
[null,null,null,null,null,null,null,{"$f":"'Item Template'!A786","v":0}]
[null,null,null,null,null,null,null,{"$f":"'Item Template'!A787","v":0}]
[null,null,null,null,null,null,null,{"$f":"'Item Template'!A788","v":0}]
[null,null,null,null,null,null,null,{"$f":"'Item Template'!A789","v":0}]
[null,null,null,null,null,null,null,{"$f":"'Item Template'!A790","v":0}]
[null,null,null,null,null,null,null,{"$f":"'Item Template'!A791","v":0}]
[null,null,null,null,null,null,null,{"$f":"'Item Template'!A792","v":0}]
[null,null,null,null,null,null,null,{"$f":"'Item Template'!A793","v":0}]
[null,null,null,null,null,null,null,{"$f":"'Item Template'!A794","v":0}]
[null,null,null,null,null,null,null,{"$f":"'Item Template'!A795","v":0}]
[null,null,null,null,null,null,null,{"$f":"'Item Template'!A796","v":0}]
[null,null,null,null,null,null,null,{"$f":"'Item Template'!A797","v":0}]
[null,null,null,null,null,null,null,{"$f":"'Item Template'!A798","v":0}]
[null,null,null,null,null,null,null,{"$f":"'Item Template'!A799","v":0}]
[null,null,null,null,null,null,null,{"$f":"'Item Template'!A800","v":0}]
[null,null,null,null,null,null,null,{"$f":"'Item Template'!A801","v":0}]
[null,null,null,null,null,null,null,{"$f":"'Item Template'!A802","v":0}]
[null,null,null,null,null,null,null,{"$f":"'Item Template'!A803","v":0}]
[null,null,null,null,null,null,null,{"$f":"'Item Template'!A804","v":0}]
[null,null,null,null,null,null,null,{"$f":"'Item Template'!A805","v":0}]
[null,null,null,null,null,null,null,{"$f":"'Item Template'!A806","v":0}]
[null,null,null,null,null,null,null,{"$f":"'Item Template'!A807","v":0}]
[null,null,null,null,null,null,null,{"$f":"'Item Template'!A808","v":0}]
[null,null,null,null,null,null,null,{"$f":"'Item Template'!A809","v":0}]
[null,null,null,null,null,null,null,{"$f":"'Item Template'!A810","v":0}]
[null,null,null,null,null,null,null,{"$f":"'Item Template'!A811","v":0}]
[null,null,null,null,null,null,null,{"$f":"'Item Template'!A812","v":0}]
[null,null,null,null,null,null,null,{"$f":"'Item Template'!A813","v":0}]
[null,null,null,null,null,null,null,{"$f":"'Item Template'!A814","v":0}]
[null,null,null,null,null,null,null,{"$f":"'Item Template'!A815","v":0}]
[null,null,null,null,null,null,null,{"$f":"'Item Template'!A816","v":0}]
[null,null,null,null,null,null,null,{"$f":"'Item Template'!A817","v":0}]
[null,null,null,null,null,null,null,{"$f":"'Item Template'!A818","v":0}]
[null,null,null,null,null,null,null,{"$f":"'Item Template'!A819","v":0}]
[null,null,null,null,null,null,null,{"$f":"'Item Template'!A820","v":0}]
[null,null,null,null,null,null,null,{"$f":"'Item Template'!A821","v":0}]
[null,null,null,null,null,null,null,{"$f":"'Item Template'!A822","v":0}]
[null,null,null,null,null,null,null,{"$f":"'Item Template'!A823","v":0}]
[null,null,null,null,null,null,null,{"$f":"'Item Template'!A824","v":0}]
[null,null,null,null,null,null,null,{"$f":"'Item Template'!A825","v":0}]
[null,null,null,null,null,null,null,{"$f":"'Item Template'!A826","v":0}]
[null,null,null,null,null,null,null,{"$f":"'Item Template'!A827","v":0}]
[null,null,null,null,null,null,null,{"$f":"'Item Template'!A828","v":0}]
[null,null,null,null,null,null,null,{"$f":"'Item Template'!A829","v":0}]
[null,null,null,null,null,null,null,{"$f":"'Item Template'!A830","v":0}]
[null,null,null,null,null,null,null,{"$f":"'Item Template'!A831","v":0}]
[null,null,null,null,null,null,null,{"$f":"'Item Template'!A832","v":0}]
[null,null,null,null,null,null,null,{"$f":"'Item Template'!A833","v":0}]
[null,null,null,null,null,null,null,{"$f":"'Item Template'!A834","v":0}]
[null,null,null,null,null,null,null,{"$f":"'Item Template'!A835","v":0}]
[null,null,null,null,null,null,null,{"$f":"'Item Template'!A836","v":0}]
[null,null,null,null,null,null,null,{"$f":"'Item Template'!A837","v":0}]
[null,null,null,null,null,null,null,{"$f":"'Item Template'!A838","v":0}]
[null,null,null,null,null,null,null,{"$f":"'Item Template'!A839","v":0}]
[null,null,null,null,null,null,null,{"$f":"'Item Template'!A840","v":0}]
[null,null,null,null,null,null,null,{"$f":"'Item Template'!A841","v":0}]
[null,null,null,null,null,null,null,{"$f":"'Item Template'!A842","v":0}]
[null,null,null,null,null,null,null,{"$f":"'Item Template'!A843","v":0}]
[null,null,null,null,null,null,null,{"$f":"'Item Template'!A844","v":0}]
[null,null,null,null,null,null,null,{"$f":"'Item Template'!A845","v":0}]
[null,null,null,null,null,null,null,{"$f":"'Item Template'!A846","v":0}]
[null,null,null,null,null,null,null,{"$f":"'Item Template'!A847","v":0}]
[null,null,null,null,null,null,null,{"$f":"'Item Template'!A848","v":0}]
[null,null,null,null,null,null,null,{"$f":"'Item Template'!A849","v":0}]
[null,null,null,null,null,null,null,{"$f":"'Item Template'!A850","v":0}]
[null,null,null,null,null,null,null,{"$f":"'Item Template'!A851","v":0}]
[null,null,null,null,null,null,null,{"$f":"'Item Template'!A852","v":0}]
[null,null,null,null,null,null,null,{"$f":"'Item Template'!A853","v":0}]
[null,null,null,null,null,null,null,{"$f":"'Item Template'!A854","v":0}]
[null,null,null,null,null,null,null,{"$f":"'Item Template'!A855","v":0}]
[null,null,null,null,null,null,null,{"$f":"'Item Template'!A856","v":0}]
[null,null,null,null,null,null,null,{"$f":"'Item Template'!A857","v":0}]
[null,null,null,null,null,null,null,{"$f":"'Item Template'!A858","v":0}]
[null,null,null,null,null,null,null,{"$f":"'Item Template'!A859","v":0}]
[null,null,null,null,null,null,null,{"$f":"'Item Template'!A860","v":0}]
[null,null,null,null,null,null,null,{"$f":"'Item Template'!A861","v":0}]
[null,null,null,null,null,null,null,{"$f":"'Item Template'!A862","v":0}]
[null,null,null,null,null,null,null,{"$f":"'Item Template'!A863","v":0}]
[null,null,null,null,null,null,null,{"$f":"'Item Template'!A864","v":0}]
[null,null,null,null,null,null,null,{"$f":"'Item Template'!A865","v":0}]
[null,null,null,null,null,null,null,{"$f":"'Item Template'!A866","v":0}]
[null,null,null,null,null,null,null,{"$f":"'Item Template'!A867","v":0}]
[null,null,null,null,null,null,null,{"$f":"'Item Template'!A868","v":0}]
[null,null,null,null,null,null,null,{"$f":"'Item Template'!A869","v":0}]
[null,null,null,null,null,null,null,{"$f":"'Item Template'!A870","v":0}]
[null,null,null,null,null,null,null,{"$f":"'Item Template'!A871","v":0}]
[null,null,null,null,null,null,null,{"$f":"'Item Template'!A872","v":0}]
[null,null,null,null,null,null,null,{"$f":"'Item Template'!A873","v":0}]
[null,null,null,null,null,null,null,{"$f":"'Item Template'!A874","v":0}]
[null,null,null,null,null,null,null,{"$f":"'Item Template'!A875","v":0}]
[null,null,null,null,null,null,null,{"$f":"'Item Template'!A876","v":0}]
[null,null,null,null,null,null,null,{"$f":"'Item Template'!A877","v":0}]
[null,null,null,null,null,null,null,{"$f":"'Item Template'!A878","v":0}]
[null,null,null,null,null,null,null,{"$f":"'Item Template'!A879","v":0}]
[null,null,null,null,null,null,null,{"$f":"'Item Template'!A880","v":0}]
[null,null,null,null,null,null,null,{"$f":"'Item Template'!A881","v":0}]
[null,null,null,null,null,null,null,{"$f":"'Item Template'!A882","v":0}]
[null,null,null,null,null,null,null,{"$f":"'Item Template'!A883","v":0}]
[null,null,null,null,null,null,null,{"$f":"'Item Template'!A884","v":0}]
[null,null,null,null,null,null,null,{"$f":"'Item Template'!A885","v":0}]
[null,null,null,null,null,null,null,{"$f":"'Item Template'!A886","v":0}]
[null,null,null,null,null,null,null,{"$f":"'Item Template'!A887","v":0}]
[null,null,null,null,null,null,null,{"$f":"'Item Template'!A888","v":0}]
[null,null,null,null,null,null,null,{"$f":"'Item Template'!A889","v":0}]
[null,null,null,null,null,null,null,{"$f":"'Item Template'!A890","v":0}]
[null,null,null,null,null,null,null,{"$f":"'Item Template'!A891","v":0}]
[null,null,null,null,null,null,null,{"$f":"'Item Template'!A892","v":0}]
[null,null,null,null,null,null,null,{"$f":"'Item Template'!A893","v":0}]
[null,null,null,null,null,null,null,{"$f":"'Item Template'!A894","v":0}]
[null,null,null,null,null,null,null,{"$f":"'Item Template'!A895","v":0}]
[null,null,null,null,null,null,null,{"$f":"'Item Template'!A896","v":0}]
[null,null,null,null,null,null,null,{"$f":"'Item Template'!A897","v":0}]
[null,null,null,null,null,null,null,{"$f":"'Item Template'!A898","v":0}]
[null,null,null,null,null,null,null,{"$f":"'Item Template'!A899","v":0}]
[null,null,null,null,null,null,null,{"$f":"'Item Template'!A900","v":0}]
[null,null,null,null,null,null,null,{"$f":"'Item Template'!A901","v":0}]
[null,null,null,null,null,null,null,{"$f":"'Item Template'!A902","v":0}]
[null,null,null,null,null,null,null,{"$f":"'Item Template'!A903","v":0}]
[null,null,null,null,null,null,null,{"$f":"'Item Template'!A904","v":0}]
[null,null,null,null,null,null,null,{"$f":"'Item Template'!A905","v":0}]
[null,null,null,null,null,null,null,{"$f":"'Item Template'!A906","v":0}]
[null,null,null,null,null,null,null,{"$f":"'Item Template'!A907","v":0}]
[null,null,null,null,null,null,null,{"$f":"'Item Template'!A908","v":0}]
[null,null,null,null,null,null,null,{"$f":"'Item Template'!A909","v":0}]
[null,null,null,null,null,null,null,{"$f":"'Item Template'!A910","v":0}]
[null,null,null,null,null,null,null,{"$f":"'Item Template'!A911","v":0}]
[null,null,null,null,null,null,null,{"$f":"'Item Template'!A912","v":0}]
[null,null,null,null,null,null,null,{"$f":"'Item Template'!A913","v":0}]
[null,null,null,null,null,null,null,{"$f":"'Item Template'!A914","v":0}]
[null,null,null,null,null,null,null,{"$f":"'Item Template'!A915","v":0}]
[null,null,null,null,null,null,null,{"$f":"'Item Template'!A916","v":0}]
[null,null,null,null,null,null,null,{"$f":"'Item Template'!A917","v":0}]
[null,null,null,null,null,null,null,{"$f":"'Item Template'!A918","v":0}]
[null,null,null,null,null,null,null,{"$f":"'Item Template'!A919","v":0}]
[null,null,null,null,null,null,null,{"$f":"'Item Template'!A920","v":0}]
[null,null,null,null,null,null,null,{"$f":"'Item Template'!A921","v":0}]
[null,null,null,null,null,null,null,{"$f":"'Item Template'!A922","v":0}]
[null,null,null,null,null,null,null,{"$f":"'Item Template'!A923","v":0}]
[null,null,null,null,null,null,null,{"$f":"'Item Template'!A924","v":0}]
[null,null,null,null,null,null,null,{"$f":"'Item Template'!A925","v":0}]
[null,null,null,null,null,null,null,{"$f":"'Item Template'!A926","v":0}]
[null,null,null,null,null,null,null,{"$f":"'Item Template'!A927","v":0}]
[null,null,null,null,null,null,null,{"$f":"'Item Template'!A928","v":0}]
[null,null,null,null,null,null,null,{"$f":"'Item Template'!A929","v":0}]
[null,null,null,null,null,null,null,{"$f":"'Item Template'!A930","v":0}]
[null,null,null,null,null,null,null,{"$f":"'Item Template'!A931","v":0}]
[null,null,null,null,null,null,null,{"$f":"'Item Template'!A932","v":0}]
[null,null,null,null,null,null,null,{"$f":"'Item Template'!A933","v":0}]
[null,null,null,null,null,null,null,{"$f":"'Item Template'!A934","v":0}]
[null,null,null,null,null,null,null,{"$f":"'Item Template'!A935","v":0}]
[null,null,null,null,null,null,null,{"$f":"'Item Template'!A936","v":0}]
[null,null,null,null,null,null,null,{"$f":"'Item Template'!A937","v":0}]
[null,null,null,null,null,null,null,{"$f":"'Item Template'!A938","v":0}]
[null,null,null,null,null,null,null,{"$f":"'Item Template'!A939","v":0}]
[null,null,null,null,null,null,null,{"$f":"'Item Template'!A940","v":0}]
[null,null,null,null,null,null,null,{"$f":"'Item Template'!A941","v":0}]
[null,null,null,null,null,null,null,{"$f":"'Item Template'!A942","v":0}]
[null,null,null,null,null,null,null,{"$f":"'Item Template'!A943","v":0}]
[null,null,null,null,null,null,null,{"$f":"'Item Template'!A944","v":0}]
[null,null,null,null,null,null,null,{"$f":"'Item Template'!A945","v":0}]
[null,null,null,null,null,null,null,{"$f":"'Item Template'!A946","v":0}]
[null,null,null,null,null,null,null,{"$f":"'Item Template'!A947","v":0}]
[null,null,null,null,null,null,null,{"$f":"'Item Template'!A948","v":0}]
[null,null,null,null,null,null,null,{"$f":"'Item Template'!A949","v":0}]
[null,null,null,null,null,null,null,{"$f":"'Item Template'!A950","v":0}]
[null,null,null,null,null,null,null,{"$f":"'Item Template'!A951","v":0}]
[null,null,null,null,null,null,null,{"$f":"'Item Template'!A952","v":0}]
[null,null,null,null,null,null,null,{"$f":"'Item Template'!A953","v":0}]
[null,null,null,null,null,null,null,{"$f":"'Item Template'!A954","v":0}]
[null,null,null,null,null,null,null,{"$f":"'Item Template'!A955","v":0}]
[null,null,null,null,null,null,null,{"$f":"'Item Template'!A956","v":0}]
[null,null,null,null,null,null,null,{"$f":"'Item Template'!A957","v":0}]
[null,null,null,null,null,null,null,{"$f":"'Item Template'!A958","v":0}]
[null,null,null,null,null,null,null,{"$f":"'Item Template'!A959","v":0}]
[null,null,null,null,null,null,null,{"$f":"'Item Template'!A960","v":0}]
[null,null,null,null,null,null,null,{"$f":"'Item Template'!A961","v":0}]
[null,null,null,null,null,null,null,{"$f":"'Item Template'!A962","v":0}]
[null,null,null,null,null,null,null,{"$f":"'Item Template'!A963","v":0}]
[null,null,null,null,null,null,null,{"$f":"'Item Template'!A964","v":0}]
[null,null,null,null,null,null,null,{"$f":"'Item Template'!A965","v":0}]
[null,null,null,null,null,null,null,{"$f":"'Item Template'!A966","v":0}]
[null,null,null,null,null,null,null,{"$f":"'Item Template'!A967","v":0}]
[null,null,null,null,null,null,null,{"$f":"'Item Template'!A968","v":0}]
[null,null,null,null,null,null,null,{"$f":"'Item Template'!A969","v":0}]
[null,null,null,null,null,null,null,{"$f":"'Item Template'!A970","v":0}]
[null,null,null,null,null,null,null,{"$f":"'Item Template'!A971","v":0}]
[null,null,null,null,null,null,null,{"$f":"'Item Template'!A972","v":0}]
[null,null,null,null,null,null,null,{"$f":"'Item Template'!A973","v":0}]
[null,null,null,null,null,null,null,{"$f":"'Item Template'!A974","v":0}]
[null,null,null,null,null,null,null,{"$f":"'Item Template'!A975","v":0}]
[null,null,null,null,null,null,null,{"$f":"'Item Template'!A976","v":0}]
[null,null,null,null,null,null,null,{"$f":"'Item Template'!A977","v":0}]
[null,null,null,null,null,null,null,{"$f":"'Item Template'!A978","v":0}]
[null,null,null,null,null,null,null,{"$f":"'Item Template'!A979","v":0}]
[null,null,null,null,null,null,null,{"$f":"'Item Template'!A980","v":0}]
[null,null,null,null,null,null,null,{"$f":"'Item Template'!A981","v":0}]
[null,null,null,null,null,null,null,{"$f":"'Item Template'!A982","v":0}]
[null,null,null,null,null,null,null,{"$f":"'Item Template'!A983","v":0}]
[null,null,null,null,null,null,null,{"$f":"'Item Template'!A984","v":0}]
[null,null,null,null,null,null,null,{"$f":"'Item Template'!A985","v":0}]
[null,null,null,null,null,null,null,{"$f":"'Item Template'!A986","v":0}]
[null,null,null,null,null,null,null,{"$f":"'Item Template'!A987","v":0}]
[null,null,null,null,null,null,null,{"$f":"'Item Template'!A988","v":0}]
[null,null,null,null,null,null,null,{"$f":"'Item Template'!A989","v":0}]
[null,null,null,null,null,null,null,{"$f":"'Item Template'!A990","v":0}]
[null,null,null,null,null,null,null,{"$f":"'Item Template'!A991","v":0}]
[null,null,null,null,null,null,null,{"$f":"'Item Template'!A992","v":0}]
[null,null,null,null,null,null,null,{"$f":"'Item Template'!A993","v":0}]
[null,null,null,null,null,null,null,{"$f":"'Item Template'!A994","v":0}]
[null,null,null,null,null,null,null,{"$f":"'Item Template'!A995","v":0}]
[null,null,null,null,null,null,null,{"$f":"'Item Template'!A996","v":0}]
[null,null,null,null,null,null,null,{"$f":"'Item Template'!A997","v":0}]
[null,null,null,null,null,null,null,{"$f":"'Item Template'!A998","v":0}]
[null,null,null,null,null,null,null,{"$f":"'Item Template'!A999","v":0}]
[null,null,null,null,null,null,null,{"$f":"'Item Template'!A1000","v":0}]
[null,null,null,null,null,null,null,{"$f":"'Item Template'!A1001","v":0}]
[null,null,null,null,null,null,null,{"$f":"'Item Template'!A1002","v":0}]
[null,null,null,null,null,null,null,{"$f":"'Item Template'!A1003","v":0}]
[null,null,null,null,null,null,null,{"$f":"'Item Template'!A1004","v":0}]
[null,null,null,null,null,null,null,{"$f":"'Item Template'!A1005","v":0}]
[null,null,null,null,null,null,null,{"$f":"'Item Template'!A1006","v":0}]
[null,null,null,null,null,null,null,{"$f":"'Item Template'!A1007","v":0}]
[null,null,null,null,null,null,null,{"$f":"'Item Template'!A1008","v":0}]
[null,null,null,null,null,null,null,{"$f":"'Item Template'!A1009","v":0}]
[null,null,null,null,null,null,null,{"$f":"'Item Template'!A1010","v":0}]
[null,null,null,null,null,null,null,{"$f":"'Item Template'!A1011","v":0}]
[null,null,null,null,null,null,null,{"$f":"'Item Template'!A1012","v":0}]
[null,null,null,null,null,null,null,{"$f":"'Item Template'!A1013","v":0}]
[null,null,null,null,null,null,null,{"$f":"'Item Template'!A1014","v":0}]
[null,null,null,null,null,null,null,{"$f":"'Item Template'!A1015","v":0}]
[null,null,null,null,null,null,null,{"$f":"'Item Template'!A1016","v":0}]
[null,null,null,null,null,null,null,{"$f":"'Item Template'!A1017","v":0}]
[null,null,null,null,null,null,null,{"$f":"'Item Template'!A1018","v":0}]
[null,null,null,null,null,null,null,{"$f":"'Item Template'!A1019","v":0}]
[null,null,null,null,null,null,null,{"$f":"'Item Template'!A1020","v":0}]
[null,null,null,null,null,null,null,{"$f":"'Item Template'!A1021","v":0}]
[null,null,null,null,null,null,null,{"$f":"'Item Template'!A1022","v":0}]
[null,null,null,null,null,null,null,{"$f":"'Item Template'!A1023","v":0}]
[null,null,null,null,null,null,null,{"$f":"'Item Template'!A1024","v":0}]
[null,null,null,null,null,null,null,{"$f":"'Item Template'!A1025","v":0}]
[null,null,null,null,null,null,null,{"$f":"'Item Template'!A1026","v":0}]
[null,null,null,null,null,null,null,{"$f":"'Item Template'!A1027","v":0}]
[null,null,null,null,null,null,null,{"$f":"'Item Template'!A1028","v":0}]
[null,null,null,null,null,null,null,{"$f":"'Item Template'!A1029","v":0}]
[null,null,null,null,null,null,null,{"$f":"'Item Template'!A1030","v":0}]
[null,null,null,null,null,null,null,{"$f":"'Item Template'!A1031","v":0}]
[null,null,null,null,null,null,null,{"$f":"'Item Template'!A1032","v":0}]
[null,null,null,null,null,null,null,{"$f":"'Item Template'!A1033","v":0}]
[null,null,null,null,null,null,null,{"$f":"'Item Template'!A1034","v":0}]
[null,null,null,null,null,null,null,{"$f":"'Item Template'!A1035","v":0}]
[null,null,null,null,null,null,null,{"$f":"'Item Template'!A1036","v":0}]
[null,null,null,null,null,null,null,{"$f":"'Item Template'!A1037","v":0}]
[null,null,null,null,null,null,null,{"$f":"'Item Template'!A1038","v":0}]
[null,null,null,null,null,null,null,{"$f":"'Item Template'!A1039","v":0}]
[null,null,null,null,null,null,null,{"$f":"'Item Template'!A1040","v":0}]
[null,null,null,null,null,null,null,{"$f":"'Item Template'!A1041","v":0}]
[null,null,null,null,null,null,null,{"$f":"'Item Template'!A1042","v":0}]
[null,null,null,null,null,null,null,{"$f":"'Item Template'!A1043","v":0}]
[null,null,null,null,null,null,null,{"$f":"'Item Template'!A1044","v":0}]
[null,null,null,null,null,null,null,{"$f":"'Item Template'!A1045","v":0}]
[null,null,null,null,null,null,null,{"$f":"'Item Template'!A1046","v":0}]
[null,null,null,null,null,null,null,{"$f":"'Item Template'!A1047","v":0}]
[null,null,null,null,null,null,null,{"$f":"'Item Template'!A1048","v":0}]
[null,null,null,null,null,null,null,{"$f":"'Item Template'!A1049","v":0}]
[null,null,null,null,null,null,null,{"$f":"'Item Template'!A1050","v":0}]
[null,null,null,null,null,null,null,{"$f":"'Item Template'!A1051","v":0}]
[null,null,null,null,null,null,null,{"$f":"'Item Template'!A1052","v":0}]
[null,null,null,null,null,null,null,{"$f":"'Item Template'!A1053","v":0}]
[null,null,null,null,null,null,null,{"$f":"'Item Template'!A1054","v":0}]
[null,null,null,null,null,null,null,{"$f":"'Item Template'!A1055","v":0}]
[null,null,null,null,null,null,null,{"$f":"'Item Template'!A1056","v":0}]
[null,null,null,null,null,null,null,{"$f":"'Item Template'!A1057","v":0}]
[null,null,null,null,null,null,null,{"$f":"'Item Template'!A1058","v":0}]
[null,null,null,null,null,null,null,{"$f":"'Item Template'!A1059","v":0}]
[null,null,null,null,null,null,null,{"$f":"'Item Template'!A1060","v":0}]
[null,null,null,null,null,null,null,{"$f":"'Item Template'!A1061","v":0}]
[null,null,null,null,null,null,null,{"$f":"'Item Template'!A1062","v":0}]
[null,null,null,null,null,null,null,{"$f":"'Item Template'!A1063","v":0}]
[null,null,null,null,null,null,null,{"$f":"'Item Template'!A1064","v":0}]
[null,null,null,null,null,null,null,{"$f":"'Item Template'!A1065","v":0}]
[null,null,null,null,null,null,null,{"$f":"'Item Template'!A1066","v":0}]
[null,null,null,null,null,null,null,{"$f":"'Item Template'!A1067","v":0}]
[null,null,null,null,null,null,null,{"$f":"'Item Template'!A1068","v":0}]
[null,null,null,null,null,null,null,{"$f":"'Item Template'!A1069","v":0}]
[null,null,null,null,null,null,null,{"$f":"'Item Template'!A1070","v":0}]
[null,null,null,null,null,null,null,{"$f":"'Item Template'!A1071","v":0}]
[null,null,null,null,null,null,null,{"$f":"'Item Template'!A1072","v":0}]
[null,null,null,null,null,null,null,{"$f":"'Item Template'!A1073","v":0}]
[null,null,null,null,null,null,null,{"$f":"'Item Template'!A1074","v":0}]
[null,null,null,null,null,null,null,{"$f":"'Item Template'!A1075","v":0}]
[null,null,null,null,null,null,null,{"$f":"'Item Template'!A1076","v":0}]
[null,null,null,null,null,null,null,{"$f":"'Item Template'!A1077","v":0}]
[null,null,null,null,null,null,null,{"$f":"'Item Template'!A1078","v":0}]
[null,null,null,null,null,null,null,{"$f":"'Item Template'!A1079","v":0}]
[null,null,null,null,null,null,null,{"$f":"'Item Template'!A1080","v":0}]
[null,null,null,null,null,null,null,{"$f":"'Item Template'!A1081","v":0}]
[null,null,null,null,null,null,null,{"$f":"'Item Template'!A1082","v":0}]
[null,null,null,null,null,null,null,{"$f":"'Item Template'!A1083","v":0}]
[null,null,null,null,null,null,null,{"$f":"'Item Template'!A1084","v":0}]
[null,null,null,null,null,null,null,{"$f":"'Item Template'!A1085","v":0}]
[null,null,null,null,null,null,null,{"$f":"'Item Template'!A1086","v":0}]
[null,null,null,null,null,null,null,{"$f":"'Item Template'!A1087","v":0}]
[null,null,null,null,null,null,null,{"$f":"'Item Template'!A1088","v":0}]
[null,null,null,null,null,null,null,{"$f":"'Item Template'!A1089","v":0}]
[null,null,null,null,null,null,null,{"$f":"'Item Template'!A1090","v":0}]
[null,null,null,null,null,null,null,{"$f":"'Item Template'!A1091","v":0}]
[null,null,null,null,null,null,null,{"$f":"'Item Template'!A1092","v":0}]
[null,null,null,null,null,null,null,{"$f":"'Item Template'!A1093","v":0}]
[null,null,null,null,null,null,null,{"$f":"'Item Template'!A1094","v":0}]
[null,null,null,null,null,null,null,{"$f":"'Item Template'!A1095","v":0}]
[null,null,null,null,null,null,null,{"$f":"'Item Template'!A1096","v":0}]
[null,null,null,null,null,null,null,{"$f":"'Item Template'!A1097","v":0}]
[null,null,null,null,null,null,null,{"$f":"'Item Template'!A1098","v":0}]
[null,null,null,null,null,null,null,{"$f":"'Item Template'!A1099","v":0}]
[null,null,null,null,null,null,null,{"$f":"'Item Template'!A1100","v":0}]
[null,null,null,null,null,null,null,{"$f":"'Item Template'!A1101","v":0}]
[null,null,null,null,null,null,null,{"$f":"'Item Template'!A1102","v":0}]
[null,null,null,null,null,null,null,{"$f":"'Item Template'!A1103","v":0}]
[null,null,null,null,null,null,null,{"$f":"'Item Template'!A1104","v":0}]
[null,null,null,null,null,null,null,{"$f":"'Item Template'!A1105","v":0}]
[null,null,null,null,null,null,null,{"$f":"'Item Template'!A1106","v":0}]
[null,null,null,null,null,null,null,{"$f":"'Item Template'!A1107","v":0}]
[null,null,null,null,null,null,null,{"$f":"'Item Template'!A1108","v":0}]
[null,null,null,null,null,null,null,{"$f":"'Item Template'!A1109","v":0}]
[null,null,null,null,null,null,null,{"$f":"'Item Template'!A1110","v":0}]
[null,null,null,null,null,null,null,{"$f":"'Item Template'!A1111","v":0}]
[null,null,null,null,null,null,null,{"$f":"'Item Template'!A1112","v":0}]
[null,null,null,null,null,null,null,{"$f":"'Item Template'!A1113","v":0}]
[null,null,null,null,null,null,null,{"$f":"'Item Template'!A1114","v":0}]
[null,null,null,null,null,null,null,{"$f":"'Item Template'!A1115","v":0}]
[null,null,null,null,null,null,null,{"$f":"'Item Template'!A1116","v":0}]
[null,null,null,null,null,null,null,{"$f":"'Item Template'!A1117","v":0}]
[null,null,null,null,null,null,null,{"$f":"'Item Template'!A1118","v":0}]
[null,null,null,null,null,null,null,{"$f":"'Item Template'!A1119","v":0}]
[null,null,null,null,null,null,null,{"$f":"'Item Template'!A1120","v":0}]
[null,null,null,null,null,null,null,{"$f":"'Item Template'!A1121","v":0}]
[null,null,null,null,null,null,null,{"$f":"'Item Template'!A1122","v":0}]
[null,null,null,null,null,null,null,{"$f":"'Item Template'!A1123","v":0}]
[null,null,null,null,null,null,null,{"$f":"'Item Template'!A1124","v":0}]
[null,null,null,null,null,null,null,{"$f":"'Item Template'!A1125","v":0}]
[null,null,null,null,null,null,null,{"$f":"'Item Template'!A1126","v":0}]
[null,null,null,null,null,null,null,{"$f":"'Item Template'!A1127","v":0}]
[null,null,null,null,null,null,null,{"$f":"'Item Template'!A1128","v":0}]
[null,null,null,null,null,null,null,{"$f":"'Item Template'!A1129","v":0}]
[null,null,null,null,null,null,null,{"$f":"'Item Template'!A1130","v":0}]
[null,null,null,null,null,null,null,{"$f":"'Item Template'!A1131","v":0}]
[null,null,null,null,null,null,null,{"$f":"'Item Template'!A1132","v":0}]
[null,null,null,null,null,null,null,{"$f":"'Item Template'!A1133","v":0}]
[null,null,null,null,null,null,null,{"$f":"'Item Template'!A1134","v":0}]
[null,null,null,null,null,null,null,{"$f":"'Item Template'!A1135","v":0}]
[null,null,null,null,null,null,null,{"$f":"'Item Template'!A1136","v":0}]
[null,null,null,null,null,null,null,{"$f":"'Item Template'!A1137","v":0}]
[null,null,null,null,null,null,null,{"$f":"'Item Template'!A1138","v":0}]
[null,null,null,null,null,null,null,{"$f":"'Item Template'!A1139","v":0}]
[null,null,null,null,null,null,null,{"$f":"'Item Template'!A1140","v":0}]
[null,null,null,null,null,null,null,{"$f":"'Item Template'!A1141","v":0}]
[null,null,null,null,null,null,null,{"$f":"'Item Template'!A1142","v":0}]
[null,null,null,null,null,null,null,{"$f":"'Item Template'!A1143","v":0}]
[null,null,null,null,null,null,null,{"$f":"'Item Template'!A1144","v":0}]
[null,null,null,null,null,null,null,{"$f":"'Item Template'!A1145","v":0}]
[null,null,null,null,null,null,null,{"$f":"'Item Template'!A1146","v":0}]
[null,null,null,null,null,null,null,{"$f":"'Item Template'!A1147","v":0}]
[null,null,null,null,null,null,null,{"$f":"'Item Template'!A1148","v":0}]
[null,null,null,null,null,null,null,{"$f":"'Item Template'!A1149","v":0}]
[null,null,null,null,null,null,null,{"$f":"'Item Template'!A1150","v":0}]
[null,null,null,null,null,null,null,{"$f":"'Item Template'!A1151","v":0}]
[null,null,null,null,null,null,null,{"$f":"'Item Template'!A1152","v":0}]
[null,null,null,null,null,null,null,{"$f":"'Item Template'!A1153","v":0}]
[null,null,null,null,null,null,null,{"$f":"'Item Template'!A1154","v":0}]
[null,null,null,null,null,null,null,{"$f":"'Item Template'!A1155","v":0}]
[null,null,null,null,null,null,null,{"$f":"'Item Template'!A1156","v":0}]
[null,null,null,null,null,null,null,{"$f":"'Item Template'!A1157","v":0}]
[null,null,null,null,null,null,null,{"$f":"'Item Template'!A1158","v":0}]
[null,null,null,null,null,null,null,{"$f":"'Item Template'!A1159","v":0}]
[null,null,null,null,null,null,null,{"$f":"'Item Template'!A1160","v":0}]
[null,null,null,null,null,null,null,{"$f":"'Item Template'!A1161","v":0}]
[null,null,null,null,null,null,null,{"$f":"'Item Template'!A1162","v":0}]
[null,null,null,null,null,null,null,{"$f":"'Item Template'!A1163","v":0}]
[null,null,null,null,null,null,null,{"$f":"'Item Template'!A1164","v":0}]
[null,null,null,null,null,null,null,{"$f":"'Item Template'!A1165","v":0}]
[null,null,null,null,null,null,null,{"$f":"'Item Template'!A1166","v":0}]
[null,null,null,null,null,null,null,{"$f":"'Item Template'!A1167","v":0}]
[null,null,null,null,null,null,null,{"$f":"'Item Template'!A1168","v":0}]
[null,null,null,null,null,null,null,{"$f":"'Item Template'!A1169","v":0}]
[null,null,null,null,null,null,null,{"$f":"'Item Template'!A1170","v":0}]
[null,null,null,null,null,null,null,{"$f":"'Item Template'!A1171","v":0}]
[null,null,null,null,null,null,null,{"$f":"'Item Template'!A1172","v":0}]
[null,null,null,null,null,null,null,{"$f":"'Item Template'!A1173","v":0}]
[null,null,null,null,null,null,null,{"$f":"'Item Template'!A1174","v":0}]
[null,null,null,null,null,null,null,{"$f":"'Item Template'!A1175","v":0}]
[null,null,null,null,null,null,null,{"$f":"'Item Template'!A1176","v":0}]
[null,null,null,null,null,null,null,{"$f":"'Item Template'!A1177","v":0}]
[null,null,null,null,null,null,null,{"$f":"'Item Template'!A1178","v":0}]
[null,null,null,null,null,null,null,{"$f":"'Item Template'!A1179","v":0}]
[null,null,null,null,null,null,null,{"$f":"'Item Template'!A1180","v":0}]
[null,null,null,null,null,null,null,{"$f":"'Item Template'!A1181","v":0}]
[null,null,null,null,null,null,null,{"$f":"'Item Template'!A1182","v":0}]
[null,null,null,null,null,null,null,{"$f":"'Item Template'!A1183","v":0}]
[null,null,null,null,null,null,null,{"$f":"'Item Template'!A1184","v":0}]
[null,null,null,null,null,null,null,{"$f":"'Item Template'!A1185","v":0}]
[null,null,null,null,null,null,null,{"$f":"'Item Template'!A1186","v":0}]
[null,null,null,null,null,null,null,{"$f":"'Item Template'!A1187","v":0}]
[null,null,null,null,null,null,null,{"$f":"'Item Template'!A1188","v":0}]
[null,null,null,null,null,null,null,{"$f":"'Item Template'!A1189","v":0}]
[null,null,null,null,null,null,null,{"$f":"'Item Template'!A1190","v":0}]
[null,null,null,null,null,null,null,{"$f":"'Item Template'!A1191","v":0}]
[null,null,null,null,null,null,null,{"$f":"'Item Template'!A1192","v":0}]
[null,null,null,null,null,null,null,{"$f":"'Item Template'!A1193","v":0}]
[null,null,null,null,null,null,null,{"$f":"'Item Template'!A1194","v":0}]
[null,null,null,null,null,null,null,{"$f":"'Item Template'!A1195","v":0}]
[null,null,null,null,null,null,null,{"$f":"'Item Template'!A1196","v":0}]
[null,null,null,null,null,null,null,{"$f":"'Item Template'!A1197","v":0}]
[null,null,null,null,null,null,null,{"$f":"'Item Template'!A1198","v":0}]
[null,null,null,null,null,null,null,{"$f":"'Item Template'!A1199","v":0}]
[null,null,null,null,null,null,null,{"$f":"'Item Template'!A1200","v":0}]
[null,null,null,null,null,null,null,{"$f":"'Item Template'!A1201","v":0}]
[null,null,null,null,null,null,null,{"$f":"'Item Template'!A1202","v":0}]
[null,null,null,null,null,null,null,{"$f":"'Item Template'!A1203","v":0}]
[null,null,null,null,null,null,null,{"$f":"'Item Template'!A1204","v":0}]
[null,null,null,null,null,null,null,{"$f":"'Item Template'!A1205","v":0}]
[null,null,null,null,null,null,null,{"$f":"'Item Template'!A1206","v":0}]
[null,null,null,null,null,null,null,{"$f":"'Item Template'!A1207","v":0}]
[null,null,null,null,null,null,null,{"$f":"'Item Template'!A1208","v":0}]
[null,null,null,null,null,null,null,{"$f":"'Item Template'!A1209","v":0}]
[null,null,null,null,null,null,null,{"$f":"'Item Template'!A1210","v":0}]
[null,null,null,null,null,null,null,{"$f":"'Item Template'!A1211","v":0}]
[null,null,null,null,null,null,null,{"$f":"'Item Template'!A1212","v":0}]
[null,null,null,null,null,null,null,{"$f":"'Item Template'!A1213","v":0}]
[null,null,null,null,null,null,null,{"$f":"'Item Template'!A1214","v":0}]
[null,null,null,null,null,null,null,{"$f":"'Item Template'!A1215","v":0}]
[null,null,null,null,null,null,null,{"$f":"'Item Template'!A1216","v":0}]
[null,null,null,null,null,null,null,{"$f":"'Item Template'!A1217","v":0}]
[null,null,null,null,null,null,null,{"$f":"'Item Template'!A1218","v":0}]
[null,null,null,null,null,null,null,{"$f":"'Item Template'!A1219","v":0}]
[null,null,null,null,null,null,null,{"$f":"'Item Template'!A1220","v":0}]
[null,null,null,null,null,null,null,{"$f":"'Item Template'!A1221","v":0}]
[null,null,null,null,null,null,null,{"$f":"'Item Template'!A1222","v":0}]
[null,null,null,null,null,null,null,{"$f":"'Item Template'!A1223","v":0}]
[null,null,null,null,null,null,null,{"$f":"'Item Template'!A1224","v":0}]
[null,null,null,null,null,null,null,{"$f":"'Item Template'!A1225","v":0}]
[null,null,null,null,null,null,null,{"$f":"'Item Template'!A1226","v":0}]
[null,null,null,null,null,null,null,{"$f":"'Item Template'!A1227","v":0}]
[null,null,null,null,null,null,null,{"$f":"'Item Template'!A1228","v":0}]
[null,null,null,null,null,null,null,{"$f":"'Item Template'!A1229","v":0}]
[null,null,null,null,null,null,null,{"$f":"'Item Template'!A1230","v":0}]
[null,null,null,null,null,null,null,{"$f":"'Item Template'!A1231","v":0}]
[null,null,null,null,null,null,null,{"$f":"'Item Template'!A1232","v":0}]
[null,null,null,null,null,null,null,{"$f":"'Item Template'!A1233","v":0}]
[null,null,null,null,null,null,null,{"$f":"'Item Template'!A1234","v":0}]
[null,null,null,null,null,null,null,{"$f":"'Item Template'!A1235","v":0}]
[null,null,null,null,null,null,null,{"$f":"'Item Template'!A1236","v":0}]
[null,null,null,null,null,null,null,{"$f":"'Item Template'!A1237","v":0}]
[null,null,null,null,null,null,null,{"$f":"'Item Template'!A1238","v":0}]
[null,null,null,null,null,null,null,{"$f":"'Item Template'!A1239","v":0}]
[null,null,null,null,null,null,null,{"$f":"'Item Template'!A1240","v":0}]
[null,null,null,null,null,null,null,{"$f":"'Item Template'!A1241","v":0}]
[null,null,null,null,null,null,null,{"$f":"'Item Template'!A1242","v":0}]
[null,null,null,null,null,null,null,{"$f":"'Item Template'!A1243","v":0}]
[null,null,null,null,null,null,null,{"$f":"'Item Template'!A1244","v":0}]
[null,null,null,null,null,null,null,{"$f":"'Item Template'!A1245","v":0}]
[null,null,null,null,null,null,null,{"$f":"'Item Template'!A1246","v":0}]
[null,null,null,null,null,null,null,{"$f":"'Item Template'!A1247","v":0}]
[null,null,null,null,null,null,null,{"$f":"'Item Template'!A1248","v":0}]
[null,null,null,null,null,null,null,{"$f":"'Item Template'!A1249","v":0}]
[null,null,null,null,null,null,null,{"$f":"'Item Template'!A1250","v":0}]
[null,null,null,null,null,null,null,{"$f":"'Item Template'!A1251","v":0}]
[null,null,null,null,null,null,null,{"$f":"'Item Template'!A1252","v":0}]
[null,null,null,null,null,null,null,{"$f":"'Item Template'!A1253","v":0}]
[null,null,null,null,null,null,null,{"$f":"'Item Template'!A1254","v":0}]
[null,null,null,null,null,null,null,{"$f":"'Item Template'!A1255","v":0}]
[null,null,null,null,null,null,null,{"$f":"'Item Template'!A1256","v":0}]
[null,null,null,null,null,null,null,{"$f":"'Item Template'!A1257","v":0}]
[null,null,null,null,null,null,null,{"$f":"'Item Template'!A1258","v":0}]
[null,null,null,null,null,null,null,{"$f":"'Item Template'!A1259","v":0}]
[null,null,null,null,null,null,null,{"$f":"'Item Template'!A1260","v":0}]
[null,null,null,null,null,null,null,{"$f":"'Item Template'!A1261","v":0}]
[null,null,null,null,null,null,null,{"$f":"'Item Template'!A1262","v":0}]
[null,null,null,null,null,null,null,{"$f":"'Item Template'!A1263","v":0}]
[null,null,null,null,null,null,null,{"$f":"'Item Template'!A1264","v":0}]
[null,null,null,null,null,null,null,{"$f":"'Item Template'!A1265","v":0}]
[null,null,null,null,null,null,null,{"$f":"'Item Template'!A1266","v":0}]
[null,null,null,null,null,null,null,{"$f":"'Item Template'!A1267","v":0}]
[null,null,null,null,null,null,null,{"$f":"'Item Template'!A1268","v":0}]
[null,null,null,null,null,null,null,{"$f":"'Item Template'!A1269","v":0}]
[null,null,null,null,null,null,null,{"$f":"'Item Template'!A1270","v":0}]
[null,null,null,null,null,null,null,{"$f":"'Item Template'!A1271","v":0}]
[null,null,null,null,null,null,null,{"$f":"'Item Template'!A1272","v":0}]
[null,null,null,null,null,null,null,{"$f":"'Item Template'!A1273","v":0}]
[null,null,null,null,null,null,null,{"$f":"'Item Template'!A1274","v":0}]
[null,null,null,null,null,null,null,{"$f":"'Item Template'!A1275","v":0}]
[null,null,null,null,null,null,null,{"$f":"'Item Template'!A1276","v":0}]
[null,null,null,null,null,null,null,{"$f":"'Item Template'!A1277","v":0}]
[null,null,null,null,null,null,null,{"$f":"'Item Template'!A1278","v":0}]
[null,null,null,null,null,null,null,{"$f":"'Item Template'!A1279","v":0}]
[null,null,null,null,null,null,null,{"$f":"'Item Template'!A1280","v":0}]
[null,null,null,null,null,null,null,{"$f":"'Item Template'!A1281","v":0}]
[null,null,null,null,null,null,null,{"$f":"'Item Template'!A1282","v":0}]
[null,null,null,null,null,null,null,{"$f":"'Item Template'!A1283","v":0}]
[null,null,null,null,null,null,null,{"$f":"'Item Template'!A1284","v":0}]
[null,null,null,null,null,null,null,{"$f":"'Item Template'!A1285","v":0}]
[null,null,null,null,null,null,null,{"$f":"'Item Template'!A1286","v":0}]
[null,null,null,null,null,null,null,{"$f":"'Item Template'!A1287","v":0}]
[null,null,null,null,null,null,null,{"$f":"'Item Template'!A1288","v":0}]
[null,null,null,null,null,null,null,{"$f":"'Item Template'!A1289","v":0}]
[null,null,null,null,null,null,null,{"$f":"'Item Template'!A1290","v":0}]
[null,null,null,null,null,null,null,{"$f":"'Item Template'!A1291","v":0}]
[null,null,null,null,null,null,null,{"$f":"'Item Template'!A1292","v":0}]
[null,null,null,null,null,null,null,{"$f":"'Item Template'!A1293","v":0}]
[null,null,null,null,null,null,null,{"$f":"'Item Template'!A1294","v":0}]
[null,null,null,null,null,null,null,{"$f":"'Item Template'!A1295","v":0}]
[null,null,null,null,null,null,null,{"$f":"'Item Template'!A1296","v":0}]
[null,null,null,null,null,null,null,{"$f":"'Item Template'!A1297","v":0}]
[null,null,null,null,null,null,null,{"$f":"'Item Template'!A1298","v":0}]
[null,null,null,null,null,null,null,{"$f":"'Item Template'!A1299","v":0}]
[null,null,null,null,null,null,null,{"$f":"'Item Template'!A1300","v":0}]
[null,null,null,null,null,null,null,{"$f":"'Item Template'!A1301","v":0}]
[null,null,null,null,null,null,null,{"$f":"'Item Template'!A1302","v":0}]
[null,null,null,null,null,null,null,{"$f":"'Item Template'!A1303","v":0}]
[null,null,null,null,null,null,null,{"$f":"'Item Template'!A1304","v":0}]
[null,null,null,null,null,null,null,{"$f":"'Item Template'!A1305","v":0}]
[null,null,null,null,null,null,null,{"$f":"'Item Template'!A1306","v":0}]
[null,null,null,null,null,null,null,{"$f":"'Item Template'!A1307","v":0}]
[null,null,null,null,null,null,null,{"$f":"'Item Template'!A1308","v":0}]
[null,null,null,null,null,null,null,{"$f":"'Item Template'!A1309","v":0}]
[null,null,null,null,null,null,null,{"$f":"'Item Template'!A1310","v":0}]
[null,null,null,null,null,null,null,{"$f":"'Item Template'!A1311","v":0}]
[null,null,null,null,null,null,null,{"$f":"'Item Template'!A1312","v":0}]
[null,null,null,null,null,null,null,{"$f":"'Item Template'!A1313","v":0}]
[null,null,null,null,null,null,null,{"$f":"'Item Template'!A1314","v":0}]
[null,null,null,null,null,null,null,{"$f":"'Item Template'!A1315","v":0}]
[null,null,null,null,null,null,null,{"$f":"'Item Template'!A1316","v":0}]
[null,null,null,null,null,null,null,{"$f":"'Item Template'!A1317","v":0}]
[null,null,null,null,null,null,null,{"$f":"'Item Template'!A1318","v":0}]
[null,null,null,null,null,null,null,{"$f":"'Item Template'!A1319","v":0}]
[null,null,null,null,null,null,null,{"$f":"'Item Template'!A1320","v":0}]
[null,null,null,null,null,null,null,{"$f":"'Item Template'!A1321","v":0}]
[null,null,null,null,null,null,null,{"$f":"'Item Template'!A1322","v":0}]
[null,null,null,null,null,null,null,{"$f":"'Item Template'!A1323","v":0}]
[null,null,null,null,null,null,null,{"$f":"'Item Template'!A1324","v":0}]
[null,null,null,null,null,null,null,{"$f":"'Item Template'!A1325","v":0}]
[null,null,null,null,null,null,null,{"$f":"'Item Template'!A1326","v":0}]
[null,null,null,null,null,null,null,{"$f":"'Item Template'!A1327","v":0}]
[null,null,null,null,null,null,null,{"$f":"'Item Template'!A1328","v":0}]
[null,null,null,null,null,null,null,{"$f":"'Item Template'!A1329","v":0}]
[null,null,null,null,null,null,null,{"$f":"'Item Template'!A1330","v":0}]
[null,null,null,null,null,null,null,{"$f":"'Item Template'!A1331","v":0}]
[null,null,null,null,null,null,null,{"$f":"'Item Template'!A1332","v":0}]
[null,null,null,null,null,null,null,{"$f":"'Item Template'!A1333","v":0}]
[null,null,null,null,null,null,null,{"$f":"'Item Template'!A1334","v":0}]
[null,null,null,null,null,null,null,{"$f":"'Item Template'!A1335","v":0}]
[null,null,null,null,null,null,null,{"$f":"'Item Template'!A1336","v":0}]
[null,null,null,null,null,null,null,{"$f":"'Item Template'!A1337","v":0}]
[null,null,null,null,null,null,null,{"$f":"'Item Template'!A1338","v":0}]
[null,null,null,null,null,null,null,{"$f":"'Item Template'!A1339","v":0}]
[null,null,null,null,null,null,null,{"$f":"'Item Template'!A1340","v":0}]
[null,null,null,null,null,null,null,{"$f":"'Item Template'!A1341","v":0}]
[null,null,null,null,null,null,null,{"$f":"'Item Template'!A1342","v":0}]
[null,null,null,null,null,null,null,{"$f":"'Item Template'!A1343","v":0}]
[null,null,null,null,null,null,null,{"$f":"'Item Template'!A1344","v":0}]
[null,null,null,null,null,null,null,{"$f":"'Item Template'!A1345","v":0}]
[null,null,null,null,null,null,null,{"$f":"'Item Template'!A1346","v":0}]
[null,null,null,null,null,null,null,{"$f":"'Item Template'!A1347","v":0}]
[null,null,null,null,null,null,null,{"$f":"'Item Template'!A1348","v":0}]
[null,null,null,null,null,null,null,{"$f":"'Item Template'!A1349","v":0}]
[null,null,null,null,null,null,null,{"$f":"'Item Template'!A1350","v":0}]
[null,null,null,null,null,null,null,{"$f":"'Item Template'!A1351","v":0}]
[null,null,null,null,null,null,null,{"$f":"'Item Template'!A1352","v":0}]
[null,null,null,null,null,null,null,{"$f":"'Item Template'!A1353","v":0}]
[null,null,null,null,null,null,null,{"$f":"'Item Template'!A1354","v":0}]
[null,null,null,null,null,null,null,{"$f":"'Item Template'!A1355","v":0}]
[null,null,null,null,null,null,null,{"$f":"'Item Template'!A1356","v":0}]
[null,null,null,null,null,null,null,{"$f":"'Item Template'!A1357","v":0}]
[null,null,null,null,null,null,null,{"$f":"'Item Template'!A1358","v":0}]
[null,null,null,null,null,null,null,{"$f":"'Item Template'!A1359","v":0}]
[null,null,null,null,null,null,null,{"$f":"'Item Template'!A1360","v":0}]
[null,null,null,null,null,null,null,{"$f":"'Item Template'!A1361","v":0}]
[null,null,null,null,null,null,null,{"$f":"'Item Template'!A1362","v":0}]
[null,null,null,null,null,null,null,{"$f":"'Item Template'!A1363","v":0}]
[null,null,null,null,null,null,null,{"$f":"'Item Template'!A1364","v":0}]
[null,null,null,null,null,null,null,{"$f":"'Item Template'!A1365","v":0}]
[null,null,null,null,null,null,null,{"$f":"'Item Template'!A1366","v":0}]
[null,null,null,null,null,null,null,{"$f":"'Item Template'!A1367","v":0}]
[null,null,null,null,null,null,null,{"$f":"'Item Template'!A1368","v":0}]
[null,null,null,null,null,null,null,{"$f":"'Item Template'!A1369","v":0}]
[null,null,null,null,null,null,null,{"$f":"'Item Template'!A1370","v":0}]
[null,null,null,null,null,null,null,{"$f":"'Item Template'!A1371","v":0}]
[null,null,null,null,null,null,null,{"$f":"'Item Template'!A1372","v":0}]
[null,null,null,null,null,null,null,{"$f":"'Item Template'!A1373","v":0}]
[null,null,null,null,null,null,null,{"$f":"'Item Template'!A1374","v":0}]
[null,null,null,null,null,null,null,{"$f":"'Item Template'!A1375","v":0}]
[null,null,null,null,null,null,null,{"$f":"'Item Template'!A1376","v":0}]
[null,null,null,null,null,null,null,{"$f":"'Item Template'!A1377","v":0}]
[null,null,null,null,null,null,null,{"$f":"'Item Template'!A1378","v":0}]
[null,null,null,null,null,null,null,{"$f":"'Item Template'!A1379","v":0}]
[null,null,null,null,null,null,null,{"$f":"'Item Template'!A1380","v":0}]
[null,null,null,null,null,null,null,{"$f":"'Item Template'!A1381","v":0}]
[null,null,null,null,null,null,null,{"$f":"'Item Template'!A1382","v":0}]
[null,null,null,null,null,null,null,{"$f":"'Item Template'!A1383","v":0}]
[null,null,null,null,null,null,null,{"$f":"'Item Template'!A1384","v":0}]
[null,null,null,null,null,null,null,{"$f":"'Item Template'!A1385","v":0}]
[null,null,null,null,null,null,null,{"$f":"'Item Template'!A1386","v":0}]
[null,null,null,null,null,null,null,{"$f":"'Item Template'!A1387","v":0}]
[null,null,null,null,null,null,null,{"$f":"'Item Template'!A1388","v":0}]
[null,null,null,null,null,null,null,{"$f":"'Item Template'!A1389","v":0}]
[null,null,null,null,null,null,null,{"$f":"'Item Template'!A1390","v":0}]
[null,null,null,null,null,null,null,{"$f":"'Item Template'!A1391","v":0}]
[null,null,null,null,null,null,null,{"$f":"'Item Template'!A1392","v":0}]
[null,null,null,null,null,null,null,{"$f":"'Item Template'!A1393","v":0}]
[null,null,null,null,null,null,null,{"$f":"'Item Template'!A1394","v":0}]
[null,null,null,null,null,null,null,{"$f":"'Item Template'!A1395","v":0}]
[null,null,null,null,null,null,null,{"$f":"'Item Template'!A1396","v":0}]
[null,null,null,null,null,null,null,{"$f":"'Item Template'!A1397","v":0}]
[null,null,null,null,null,null,null,{"$f":"'Item Template'!A1398","v":0}]
[null,null,null,null,null,null,null,{"$f":"'Item Template'!A1399","v":0}]
[null,null,null,null,null,null,null,{"$f":"'Item Template'!A1400","v":0}]
[null,null,null,null,null,null,null,{"$f":"'Item Template'!A1401","v":0}]
[null,null,null,null,null,null,null,{"$f":"'Item Template'!A1402","v":0}]
[null,null,null,null,null,null,null,{"$f":"'Item Template'!A1403","v":0}]
[null,null,null,null,null,null,null,{"$f":"'Item Template'!A1404","v":0}]
[null,null,null,null,null,null,null,{"$f":"'Item Template'!A1405","v":0}]
[null,null,null,null,null,null,null,{"$f":"'Item Template'!A1406","v":0}]
[null,null,null,null,null,null,null,{"$f":"'Item Template'!A1407","v":0}]
[null,null,null,null,null,null,null,{"$f":"'Item Template'!A1408","v":0}]
[null,null,null,null,null,null,null,{"$f":"'Item Template'!A1409","v":0}]
[null,null,null,null,null,null,null,{"$f":"'Item Template'!A1410","v":0}]
[null,null,null,null,null,null,null,{"$f":"'Item Template'!A1411","v":0}]
[null,null,null,null,null,null,null,{"$f":"'Item Template'!A1412","v":0}]
[null,null,null,null,null,null,null,{"$f":"'Item Template'!A1413","v":0}]
[null,null,null,null,null,null,null,{"$f":"'Item Template'!A1414","v":0}]
[null,null,null,null,null,null,null,{"$f":"'Item Template'!A1415","v":0}]
[null,null,null,null,null,null,null,{"$f":"'Item Template'!A1416","v":0}]
[null,null,null,null,null,null,null,{"$f":"'Item Template'!A1417","v":0}]
[null,null,null,null,null,null,null,{"$f":"'Item Template'!A1418","v":0}]
[null,null,null,null,null,null,null,{"$f":"'Item Template'!A1419","v":0}]
[null,null,null,null,null,null,null,{"$f":"'Item Template'!A1420","v":0}]
[null,null,null,null,null,null,null,{"$f":"'Item Template'!A1421","v":0}]
[null,null,null,null,null,null,null,{"$f":"'Item Template'!A1422","v":0}]
[null,null,null,null,null,null,null,{"$f":"'Item Template'!A1423","v":0}]
[null,null,null,null,null,null,null,{"$f":"'Item Template'!A1424","v":0}]
[null,null,null,null,null,null,null,{"$f":"'Item Template'!A1425","v":0}]
[null,null,null,null,null,null,null,{"$f":"'Item Template'!A1426","v":0}]
[null,null,null,null,null,null,null,{"$f":"'Item Template'!A1427","v":0}]
[null,null,null,null,null,null,null,{"$f":"'Item Template'!A1428","v":0}]
[null,null,null,null,null,null,null,{"$f":"'Item Template'!A1429","v":0}]
[null,null,null,null,null,null,null,{"$f":"'Item Template'!A1430","v":0}]
[null,null,null,null,null,null,null,{"$f":"'Item Template'!A1431","v":0}]
[null,null,null,null,null,null,null,{"$f":"'Item Template'!A1432","v":0}]
[null,null,null,null,null,null,null,{"$f":"'Item Template'!A1433","v":0}]
[null,null,null,null,null,null,null,{"$f":"'Item Template'!A1434","v":0}]
[null,null,null,null,null,null,null,{"$f":"'Item Template'!A1435","v":0}]
[null,null,null,null,null,null,null,{"$f":"'Item Template'!A1436","v":0}]
[null,null,null,null,null,null,null,{"$f":"'Item Template'!A1437","v":0}]
[null,null,null,null,null,null,null,{"$f":"'Item Template'!A1438","v":0}]
[null,null,null,null,null,null,null,{"$f":"'Item Template'!A1439","v":0}]
[null,null,null,null,null,null,null,{"$f":"'Item Template'!A1440","v":0}]
[null,null,null,null,null,null,null,{"$f":"'Item Template'!A1441","v":0}]
[null,null,null,null,null,null,null,{"$f":"'Item Template'!A1442","v":0}]
[null,null,null,null,null,null,null,{"$f":"'Item Template'!A1443","v":0}]
[null,null,null,null,null,null,null,{"$f":"'Item Template'!A1444","v":0}]
[null,null,null,null,null,null,null,{"$f":"'Item Template'!A1445","v":0}]
[null,null,null,null,null,null,null,{"$f":"'Item Template'!A1446","v":0}]
[null,null,null,null,null,null,null,{"$f":"'Item Template'!A1447","v":0}]
[null,null,null,null,null,null,null,{"$f":"'Item Template'!A1448","v":0}]
[null,null,null,null,null,null,null,{"$f":"'Item Template'!A1449","v":0}]
[null,null,null,null,null,null,null,{"$f":"'Item Template'!A1450","v":0}]
[null,null,null,null,null,null,null,{"$f":"'Item Template'!A1451","v":0}]
[null,null,null,null,null,null,null,{"$f":"'Item Template'!A1452","v":0}]
[null,null,null,null,null,null,null,{"$f":"'Item Template'!A1453","v":0}]
[null,null,null,null,null,null,null,{"$f":"'Item Template'!A1454","v":0}]
[null,null,null,null,null,null,null,{"$f":"'Item Template'!A1455","v":0}]
[null,null,null,null,null,null,null,{"$f":"'Item Template'!A1456","v":0}]
[null,null,null,null,null,null,null,{"$f":"'Item Template'!A1457","v":0}]
[null,null,null,null,null,null,null,{"$f":"'Item Template'!A1458","v":0}]
[null,null,null,null,null,null,null,{"$f":"'Item Template'!A1459","v":0}]
[null,null,null,null,null,null,null,{"$f":"'Item Template'!A1460","v":0}]
[null,null,null,null,null,null,null,{"$f":"'Item Template'!A1461","v":0}]
[null,null,null,null,null,null,null,{"$f":"'Item Template'!A1462","v":0}]
[null,null,null,null,null,null,null,{"$f":"'Item Template'!A1463","v":0}]
[null,null,null,null,null,null,null,{"$f":"'Item Template'!A1464","v":0}]
[null,null,null,null,null,null,null,{"$f":"'Item Template'!A1465","v":0}]
[null,null,null,null,null,null,null,{"$f":"'Item Template'!A1466","v":0}]
[null,null,null,null,null,null,null,{"$f":"'Item Template'!A1467","v":0}]
[null,null,null,null,null,null,null,{"$f":"'Item Template'!A1468","v":0}]
[null,null,null,null,null,null,null,{"$f":"'Item Template'!A1469","v":0}]
[null,null,null,null,null,null,null,{"$f":"'Item Template'!A1470","v":0}]
[null,null,null,null,null,null,null,{"$f":"'Item Template'!A1471","v":0}]
[null,null,null,null,null,null,null,{"$f":"'Item Template'!A1472","v":0}]
[null,null,null,null,null,null,null,{"$f":"'Item Template'!A1473","v":0}]
[null,null,null,null,null,null,null,{"$f":"'Item Template'!A1474","v":0}]
[null,null,null,null,null,null,null,{"$f":"'Item Template'!A1475","v":0}]
[null,null,null,null,null,null,null,{"$f":"'Item Template'!A1476","v":0}]
[null,null,null,null,null,null,null,{"$f":"'Item Template'!A1477","v":0}]
[null,null,null,null,null,null,null,{"$f":"'Item Template'!A1478","v":0}]
[null,null,null,null,null,null,null,{"$f":"'Item Template'!A1479","v":0}]
[null,null,null,null,null,null,null,{"$f":"'Item Template'!A1480","v":0}]
[null,null,null,null,null,null,null,{"$f":"'Item Template'!A1481","v":0}]
[null,null,null,null,null,null,null,{"$f":"'Item Template'!A1482","v":0}]
[null,null,null,null,null,null,null,{"$f":"'Item Template'!A1483","v":0}]
[null,null,null,null,null,null,null,{"$f":"'Item Template'!A1484","v":0}]
[null,null,null,null,null,null,null,{"$f":"'Item Template'!A1485","v":0}]
[null,null,null,null,null,null,null,{"$f":"'Item Template'!A1486","v":0}]
[null,null,null,null,null,null,null,{"$f":"'Item Template'!A1487","v":0}]
[null,null,null,null,null,null,null,{"$f":"'Item Template'!A1488","v":0}]
[null,null,null,null,null,null,null,{"$f":"'Item Template'!A1489","v":0}]
[null,null,null,null,null,null,null,{"$f":"'Item Template'!A1490","v":0}]
[null,null,null,null,null,null,null,{"$f":"'Item Template'!A1491","v":0}]
[null,null,null,null,null,null,null,{"$f":"'Item Template'!A1492","v":0}]
[null,null,null,null,null,null,null,{"$f":"'Item Template'!A1493","v":0}]
[null,null,null,null,null,null,null,{"$f":"'Item Template'!A1494","v":0}]
[null,null,null,null,null,null,null,{"$f":"'Item Template'!A1495","v":0}]
[null,null,null,null,null,null,null,{"$f":"'Item Template'!A1496","v":0}]
[null,null,null,null,null,null,null,{"$f":"'Item Template'!A1497","v":0}]
[null,null,null,null,null,null,null,{"$f":"'Item Template'!A1498","v":0}]
[null,null,null,null,null,null,null,{"$f":"'Item Template'!A1499","v":0}]
[null,null,null,null,null,null,null,{"$f":"'Item Template'!A1500","v":0}]
[null,null,null,null,null,null,null,{"$f":"'Item Template'!A1501","v":0}]
[null,null,null,null,null,null,null,{"$f":"'Item Template'!A1502","v":0}]
[null,null,null,null,null,null,null,{"$f":"'Item Template'!A1503","v":0}]
[null,null,null,null,null,null,null,{"$f":"'Item Template'!A1504","v":0}]
[null,null,null,null,null,null,null,{"$f":"'Item Template'!A1505","v":0}]
[null,null,null,null,null,null,null,{"$f":"'Item Template'!A1506","v":0}]
[null,null,null,null,null,null,null,{"$f":"'Item Template'!A1507","v":0}]
[null,null,null,null,null,null,null,{"$f":"'Item Template'!A1508","v":0}]
[null,null,null,null,null,null,null,{"$f":"'Item Template'!A1509","v":0}]
[null,null,null,null,null,null,null,{"$f":"'Item Template'!A1510","v":0}]
[null,null,null,null,null,null,null,{"$f":"'Item Template'!A1511","v":0}]
[null,null,null,null,null,null,null,{"$f":"'Item Template'!A1512","v":0}]
[null,null,null,null,null,null,null,{"$f":"'Item Template'!A1513","v":0}]
[null,null,null,null,null,null,null,{"$f":"'Item Template'!A1514","v":0}]
[null,null,null,null,null,null,null,{"$f":"'Item Template'!A1515","v":0}]
[null,null,null,null,null,null,null,{"$f":"'Item Template'!A1516","v":0}]
[null,null,null,null,null,null,null,{"$f":"'Item Template'!A1517","v":0}]
[null,null,null,null,null,null,null,{"$f":"'Item Template'!A1518","v":0}]
[null,null,null,null,null,null,null,{"$f":"'Item Template'!A1519","v":0}]
[null,null,null,null,null,null,null,{"$f":"'Item Template'!A1520","v":0}]
[null,null,null,null,null,null,null,{"$f":"'Item Template'!A1521","v":0}]
[null,null,null,null,null,null,null,{"$f":"'Item Template'!A1522","v":0}]
[null,null,null,null,null,null,null,{"$f":"'Item Template'!A1523","v":0}]
[null,null,null,null,null,null,null,{"$f":"'Item Template'!A1524","v":0}]
[null,null,null,null,null,null,null,{"$f":"'Item Template'!A1525","v":0}]
[null,null,null,null,null,null,null,{"$f":"'Item Template'!A1526","v":0}]
[null,null,null,null,null,null,null,{"$f":"'Item Template'!A1527","v":0}]
[null,null,null,null,null,null,null,{"$f":"'Item Template'!A1528","v":0}]
[null,null,null,null,null,null,null,{"$f":"'Item Template'!A1529","v":0}]
[null,null,null,null,null,null,null,{"$f":"'Item Template'!A1530","v":0}]
[null,null,null,null,null,null,null,{"$f":"'Item Template'!A1531","v":0}]
[null,null,null,null,null,null,null,{"$f":"'Item Template'!A1532","v":0}]
[null,null,null,null,null,null,null,{"$f":"'Item Template'!A1533","v":0}]
[null,null,null,null,null,null,null,{"$f":"'Item Template'!A1534","v":0}]
[null,null,null,null,null,null,null,{"$f":"'Item Template'!A1535","v":0}]
[null,null,null,null,null,null,null,{"$f":"'Item Template'!A1536","v":0}]
[null,null,null,null,null,null,null,{"$f":"'Item Template'!A1537","v":0}]
[null,null,null,null,null,null,null,{"$f":"'Item Template'!A1538","v":0}]
[null,null,null,null,null,null,null,{"$f":"'Item Template'!A1539","v":0}]
[null,null,null,null,null,null,null,{"$f":"'Item Template'!A1540","v":0}]
[null,null,null,null,null,null,null,{"$f":"'Item Template'!A1541","v":0}]
[null,null,null,null,null,null,null,{"$f":"'Item Template'!A1542","v":0}]
[null,null,null,null,null,null,null,{"$f":"'Item Template'!A1543","v":0}]
[null,null,null,null,null,null,null,{"$f":"'Item Template'!A1544","v":0}]
[null,null,null,null,null,null,null,{"$f":"'Item Template'!A1545","v":0}]
[null,null,null,null,null,null,null,{"$f":"'Item Template'!A1546","v":0}]
[null,null,null,null,null,null,null,{"$f":"'Item Template'!A1547","v":0}]
[null,null,null,null,null,null,null,{"$f":"'Item Template'!A1548","v":0}]
[null,null,null,null,null,null,null,{"$f":"'Item Template'!A1549","v":0}]
[null,null,null,null,null,null,null,{"$f":"'Item Template'!A1550","v":0}]
[null,null,null,null,null,null,null,{"$f":"'Item Template'!A1551","v":0}]
[null,null,null,null,null,null,null,{"$f":"'Item Template'!A1552","v":0}]
[null,null,null,null,null,null,null,{"$f":"'Item Template'!A1553","v":0}]
[null,null,null,null,null,null,null,{"$f":"'Item Template'!A1554","v":0}]
[null,null,null,null,null,null,null,{"$f":"'Item Template'!A1555","v":0}]
[null,null,null,null,null,null,null,{"$f":"'Item Template'!A1556","v":0}]
[null,null,null,null,null,null,null,{"$f":"'Item Template'!A1557","v":0}]
[null,null,null,null,null,null,null,{"$f":"'Item Template'!A1558","v":0}]
[null,null,null,null,null,null,null,{"$f":"'Item Template'!A1559","v":0}]
[null,null,null,null,null,null,null,{"$f":"'Item Template'!A1560","v":0}]
[null,null,null,null,null,null,null,{"$f":"'Item Template'!A1561","v":0}]
[null,null,null,null,null,null,null,{"$f":"'Item Template'!A1562","v":0}]
[null,null,null,null,null,null,null,{"$f":"'Item Template'!A1563","v":0}]
[null,null,null,null,null,null,null,{"$f":"'Item Template'!A1564","v":0}]
[null,null,null,null,null,null,null,{"$f":"'Item Template'!A1565","v":0}]
[null,null,null,null,null,null,null,{"$f":"'Item Template'!A1566","v":0}]
[null,null,null,null,null,null,null,{"$f":"'Item Template'!A1567","v":0}]
[null,null,null,null,null,null,null,{"$f":"'Item Template'!A1568","v":0}]
[null,null,null,null,null,null,null,{"$f":"'Item Template'!A1569","v":0}]
[null,null,null,null,null,null,null,{"$f":"'Item Template'!A1570","v":0}]
[null,null,null,null,null,null,null,{"$f":"'Item Template'!A1571","v":0}]
[null,null,null,null,null,null,null,{"$f":"'Item Template'!A1572","v":0}]
[null,null,null,null,null,null,null,{"$f":"'Item Template'!A1573","v":0}]
[null,null,null,null,null,null,null,{"$f":"'Item Template'!A1574","v":0}]
[null,null,null,null,null,null,null,{"$f":"'Item Template'!A1575","v":0}]
[null,null,null,null,null,null,null,{"$f":"'Item Template'!A1576","v":0}]
[null,null,null,null,null,null,null,{"$f":"'Item Template'!A1577","v":0}]
[null,null,null,null,null,null,null,{"$f":"'Item Template'!A1578","v":0}]
[null,null,null,null,null,null,null,{"$f":"'Item Template'!A1579","v":0}]
[null,null,null,null,null,null,null,{"$f":"'Item Template'!A1580","v":0}]
[null,null,null,null,null,null,null,{"$f":"'Item Template'!A1581","v":0}]
[null,null,null,null,null,null,null,{"$f":"'Item Template'!A1582","v":0}]
[null,null,null,null,null,null,null,{"$f":"'Item Template'!A1583","v":0}]
[null,null,null,null,null,null,null,{"$f":"'Item Template'!A1584","v":0}]
[null,null,null,null,null,null,null,{"$f":"'Item Template'!A1585","v":0}]
[null,null,null,null,null,null,null,{"$f":"'Item Template'!A1586","v":0}]
[null,null,null,null,null,null,null,{"$f":"'Item Template'!A1587","v":0}]
[null,null,null,null,null,null,null,{"$f":"'Item Template'!A1588","v":0}]
[null,null,null,null,null,null,null,{"$f":"'Item Template'!A1589","v":0}]
[null,null,null,null,null,null,null,{"$f":"'Item Template'!A1590","v":0}]
[null,null,null,null,null,null,null,{"$f":"'Item Template'!A1591","v":0}]
[null,null,null,null,null,null,null,{"$f":"'Item Template'!A1592","v":0}]
[null,null,null,null,null,null,null,{"$f":"'Item Template'!A1593","v":0}]
[null,null,null,null,null,null,null,{"$f":"'Item Template'!A1594","v":0}]
[null,null,null,null,null,null,null,{"$f":"'Item Template'!A1595","v":0}]
[null,null,null,null,null,null,null,{"$f":"'Item Template'!A1596","v":0}]
[null,null,null,null,null,null,null,{"$f":"'Item Template'!A1597","v":0}]
[null,null,null,null,null,null,null,{"$f":"'Item Template'!A1598","v":0}]
[null,null,null,null,null,null,null,{"$f":"'Item Template'!A1599","v":0}]
[null,null,null,null,null,null,null,{"$f":"'Item Template'!A1600","v":0}]
[null,null,null,null,null,null,null,{"$f":"'Item Template'!A1601","v":0}]
[null,null,null,null,null,null,null,{"$f":"'Item Template'!A1602","v":0}]
[null,null,null,null,null,null,null,{"$f":"'Item Template'!A1603","v":0}]
[null,null,null,null,null,null,null,{"$f":"'Item Template'!A1604","v":0}]
[null,null,null,null,null,null,null,{"$f":"'Item Template'!A1605","v":0}]
[null,null,null,null,null,null,null,{"$f":"'Item Template'!A1606","v":0}]
[null,null,null,null,null,null,null,{"$f":"'Item Template'!A1607","v":0}]
[null,null,null,null,null,null,null,{"$f":"'Item Template'!A1608","v":0}]
[null,null,null,null,null,null,null,{"$f":"'Item Template'!A1609","v":0}]
[null,null,null,null,null,null,null,{"$f":"'Item Template'!A1610","v":0}]
[null,null,null,null,null,null,null,{"$f":"'Item Template'!A1611","v":0}]
[null,null,null,null,null,null,null,{"$f":"'Item Template'!A1612","v":0}]
[null,null,null,null,null,null,null,{"$f":"'Item Template'!A1613","v":0}]
[null,null,null,null,null,null,null,{"$f":"'Item Template'!A1614","v":0}]
[null,null,null,null,null,null,null,{"$f":"'Item Template'!A1615","v":0}]
[null,null,null,null,null,null,null,{"$f":"'Item Template'!A1616","v":0}]
[null,null,null,null,null,null,null,{"$f":"'Item Template'!A1617","v":0}]
[null,null,null,null,null,null,null,{"$f":"'Item Template'!A1618","v":0}]
[null,null,null,null,null,null,null,{"$f":"'Item Template'!A1619","v":0}]
[null,null,null,null,null,null,null,{"$f":"'Item Template'!A1620","v":0}]
[null,null,null,null,null,null,null,{"$f":"'Item Template'!A1621","v":0}]
[null,null,null,null,null,null,null,{"$f":"'Item Template'!A1622","v":0}]
[null,null,null,null,null,null,null,{"$f":"'Item Template'!A1623","v":0}]
[null,null,null,null,null,null,null,{"$f":"'Item Template'!A1624","v":0}]
[null,null,null,null,null,null,null,{"$f":"'Item Template'!A1625","v":0}]
[null,null,null,null,null,null,null,{"$f":"'Item Template'!A1626","v":0}]
[null,null,null,null,null,null,null,{"$f":"'Item Template'!A1627","v":0}]
[null,null,null,null,null,null,null,{"$f":"'Item Template'!A1628","v":0}]
[null,null,null,null,null,null,null,{"$f":"'Item Template'!A1629","v":0}]
[null,null,null,null,null,null,null,{"$f":"'Item Template'!A1630","v":0}]
[null,null,null,null,null,null,null,{"$f":"'Item Template'!A1631","v":0}]
[null,null,null,null,null,null,null,{"$f":"'Item Template'!A1632","v":0}]
[null,null,null,null,null,null,null,{"$f":"'Item Template'!A1633","v":0}]
[null,null,null,null,null,null,null,{"$f":"'Item Template'!A1634","v":0}]
[null,null,null,null,null,null,null,{"$f":"'Item Template'!A1635","v":0}]
[null,null,null,null,null,null,null,{"$f":"'Item Template'!A1636","v":0}]
[null,null,null,null,null,null,null,{"$f":"'Item Template'!A1637","v":0}]
[null,null,null,null,null,null,null,{"$f":"'Item Template'!A1638","v":0}]
[null,null,null,null,null,null,null,{"$f":"'Item Template'!A1639","v":0}]
[null,null,null,null,null,null,null,{"$f":"'Item Template'!A1640","v":0}]
[null,null,null,null,null,null,null,{"$f":"'Item Template'!A1641","v":0}]
[null,null,null,null,null,null,null,{"$f":"'Item Template'!A1642","v":0}]
[null,null,null,null,null,null,null,{"$f":"'Item Template'!A1643","v":0}]
[null,null,null,null,null,null,null,{"$f":"'Item Template'!A1644","v":0}]
[null,null,null,null,null,null,null,{"$f":"'Item Template'!A1645","v":0}]
[null,null,null,null,null,null,null,{"$f":"'Item Template'!A1646","v":0}]
[null,null,null,null,null,null,null,{"$f":"'Item Template'!A1647","v":0}]
[null,null,null,null,null,null,null,{"$f":"'Item Template'!A1648","v":0}]
[null,null,null,null,null,null,null,{"$f":"'Item Template'!A1649","v":0}]
[null,null,null,null,null,null,null,{"$f":"'Item Template'!A1650","v":0}]
[null,null,null,null,null,null,null,{"$f":"'Item Template'!A1651","v":0}]
[null,null,null,null,null,null,null,{"$f":"'Item Template'!A1652","v":0}]
[null,null,null,null,null,null,null,{"$f":"'Item Template'!A1653","v":0}]
[null,null,null,null,null,null,null,{"$f":"'Item Template'!A1654","v":0}]
[null,null,null,null,null,null,null,{"$f":"'Item Template'!A1655","v":0}]
[null,null,null,null,null,null,null,{"$f":"'Item Template'!A1656","v":0}]
[null,null,null,null,null,null,null,{"$f":"'Item Template'!A1657","v":0}]
[null,null,null,null,null,null,null,{"$f":"'Item Template'!A1658","v":0}]
[null,null,null,null,null,null,null,{"$f":"'Item Template'!A1659","v":0}]
[null,null,null,null,null,null,null,{"$f":"'Item Template'!A1660","v":0}]
[null,null,null,null,null,null,null,{"$f":"'Item Template'!A1661","v":0}]
[null,null,null,null,null,null,null,{"$f":"'Item Template'!A1662","v":0}]
[null,null,null,null,null,null,null,{"$f":"'Item Template'!A1663","v":0}]
[null,null,null,null,null,null,null,{"$f":"'Item Template'!A1664","v":0}]
[null,null,null,null,null,null,null,{"$f":"'Item Template'!A1665","v":0}]
[null,null,null,null,null,null,null,{"$f":"'Item Template'!A1666","v":0}]
[null,null,null,null,null,null,null,{"$f":"'Item Template'!A1667","v":0}]
[null,null,null,null,null,null,null,{"$f":"'Item Template'!A1668","v":0}]
[null,null,null,null,null,null,null,{"$f":"'Item Template'!A1669","v":0}]
[null,null,null,null,null,null,null,{"$f":"'Item Template'!A1670","v":0}]
[null,null,null,null,null,null,null,{"$f":"'Item Template'!A1671","v":0}]
[null,null,null,null,null,null,null,{"$f":"'Item Template'!A1672","v":0}]
[null,null,null,null,null,null,null,{"$f":"'Item Template'!A1673","v":0}]
[null,null,null,null,null,null,null,{"$f":"'Item Template'!A1674","v":0}]
[null,null,null,null,null,null,null,{"$f":"'Item Template'!A1675","v":0}]
[null,null,null,null,null,null,null,{"$f":"'Item Template'!A1676","v":0}]
[null,null,null,null,null,null,null,{"$f":"'Item Template'!A1677","v":0}]
[null,null,null,null,null,null,null,{"$f":"'Item Template'!A1678","v":0}]
[null,null,null,null,null,null,null,{"$f":"'Item Template'!A1679","v":0}]
[null,null,null,null,null,null,null,{"$f":"'Item Template'!A1680","v":0}]
[null,null,null,null,null,null,null,{"$f":"'Item Template'!A1681","v":0}]
[null,null,null,null,null,null,null,{"$f":"'Item Template'!A1682","v":0}]
[null,null,null,null,null,null,null,{"$f":"'Item Template'!A1683","v":0}]
[null,null,null,null,null,null,null,{"$f":"'Item Template'!A1684","v":0}]
[null,null,null,null,null,null,null,{"$f":"'Item Template'!A1685","v":0}]
[null,null,null,null,null,null,null,{"$f":"'Item Template'!A1686","v":0}]
[null,null,null,null,null,null,null,{"$f":"'Item Template'!A1687","v":0}]
[null,null,null,null,null,null,null,{"$f":"'Item Template'!A1688","v":0}]
[null,null,null,null,null,null,null,{"$f":"'Item Template'!A1689","v":0}]
[null,null,null,null,null,null,null,{"$f":"'Item Template'!A1690","v":0}]
[null,null,null,null,null,null,null,{"$f":"'Item Template'!A1691","v":0}]
[null,null,null,null,null,null,null,{"$f":"'Item Template'!A1692","v":0}]
[null,null,null,null,null,null,null,{"$f":"'Item Template'!A1693","v":0}]
[null,null,null,null,null,null,null,{"$f":"'Item Template'!A1694","v":0}]
[null,null,null,null,null,null,null,{"$f":"'Item Template'!A1695","v":0}]
[null,null,null,null,null,null,null,{"$f":"'Item Template'!A1696","v":0}]
[null,null,null,null,null,null,null,{"$f":"'Item Template'!A1697","v":0}]
[null,null,null,null,null,null,null,{"$f":"'Item Template'!A1698","v":0}]
[null,null,null,null,null,null,null,{"$f":"'Item Template'!A1699","v":0}]
[null,null,null,null,null,null,null,{"$f":"'Item Template'!A1700","v":0}]
[null,null,null,null,null,null,null,{"$f":"'Item Template'!A1701","v":0}]
[null,null,null,null,null,null,null,{"$f":"'Item Template'!A1702","v":0}]
[null,null,null,null,null,null,null,{"$f":"'Item Template'!A1703","v":0}]
[null,null,null,null,null,null,null,{"$f":"'Item Template'!A1704","v":0}]
[null,null,null,null,null,null,null,{"$f":"'Item Template'!A1705","v":0}]
[null,null,null,null,null,null,null,{"$f":"'Item Template'!A1706","v":0}]
[null,null,null,null,null,null,null,{"$f":"'Item Template'!A1707","v":0}]
[null,null,null,null,null,null,null,{"$f":"'Item Template'!A1708","v":0}]
[null,null,null,null,null,null,null,{"$f":"'Item Template'!A1709","v":0}]
[null,null,null,null,null,null,null,{"$f":"'Item Template'!A1710","v":0}]
[null,null,null,null,null,null,null,{"$f":"'Item Template'!A1711","v":0}]
[null,null,null,null,null,null,null,{"$f":"'Item Template'!A1712","v":0}]
[null,null,null,null,null,null,null,{"$f":"'Item Template'!A1713","v":0}]
[null,null,null,null,null,null,null,{"$f":"'Item Template'!A1714","v":0}]
[null,null,null,null,null,null,null,{"$f":"'Item Template'!A1715","v":0}]
[null,null,null,null,null,null,null,{"$f":"'Item Template'!A1716","v":0}]
[null,null,null,null,null,null,null,{"$f":"'Item Template'!A1717","v":0}]
[null,null,null,null,null,null,null,{"$f":"'Item Template'!A1718","v":0}]
[null,null,null,null,null,null,null,{"$f":"'Item Template'!A1719","v":0}]
[null,null,null,null,null,null,null,{"$f":"'Item Template'!A1720","v":0}]
[null,null,null,null,null,null,null,{"$f":"'Item Template'!A1721","v":0}]
[null,null,null,null,null,null,null,{"$f":"'Item Template'!A1722","v":0}]
[null,null,null,null,null,null,null,{"$f":"'Item Template'!A1723","v":0}]
[null,null,null,null,null,null,null,{"$f":"'Item Template'!A1724","v":0}]
[null,null,null,null,null,null,null,{"$f":"'Item Template'!A1725","v":0}]
[null,null,null,null,null,null,null,{"$f":"'Item Template'!A1726","v":0}]
[null,null,null,null,null,null,null,{"$f":"'Item Template'!A1727","v":0}]
[null,null,null,null,null,null,null,{"$f":"'Item Template'!A1728","v":0}]
[null,null,null,null,null,null,null,{"$f":"'Item Template'!A1729","v":0}]
[null,null,null,null,null,null,null,{"$f":"'Item Template'!A1730","v":0}]
[null,null,null,null,null,null,null,{"$f":"'Item Template'!A1731","v":0}]
[null,null,null,null,null,null,null,{"$f":"'Item Template'!A1732","v":0}]
[null,null,null,null,null,null,null,{"$f":"'Item Template'!A1733","v":0}]
[null,null,null,null,null,null,null,{"$f":"'Item Template'!A1734","v":0}]
[null,null,null,null,null,null,null,{"$f":"'Item Template'!A1735","v":0}]
[null,null,null,null,null,null,null,{"$f":"'Item Template'!A1736","v":0}]
[null,null,null,null,null,null,null,{"$f":"'Item Template'!A1737","v":0}]
[null,null,null,null,null,null,null,{"$f":"'Item Template'!A1738","v":0}]
[null,null,null,null,null,null,null,{"$f":"'Item Template'!A1739","v":0}]
[null,null,null,null,null,null,null,{"$f":"'Item Template'!A1740","v":0}]
[null,null,null,null,null,null,null,{"$f":"'Item Template'!A1741","v":0}]
[null,null,null,null,null,null,null,{"$f":"'Item Template'!A1742","v":0}]
[null,null,null,null,null,null,null,{"$f":"'Item Template'!A1743","v":0}]
[null,null,null,null,null,null,null,{"$f":"'Item Template'!A1744","v":0}]
[null,null,null,null,null,null,null,{"$f":"'Item Template'!A1745","v":0}]
[null,null,null,null,null,null,null,{"$f":"'Item Template'!A1746","v":0}]
[null,null,null,null,null,null,null,{"$f":"'Item Template'!A1747","v":0}]
[null,null,null,null,null,null,null,{"$f":"'Item Template'!A1748","v":0}]
[null,null,null,null,null,null,null,{"$f":"'Item Template'!A1749","v":0}]
[null,null,null,null,null,null,null,{"$f":"'Item Template'!A1750","v":0}]
[null,null,null,null,null,null,null,{"$f":"'Item Template'!A1751","v":0}]
[null,null,null,null,null,null,null,{"$f":"'Item Template'!A1752","v":0}]
[null,null,null,null,null,null,null,{"$f":"'Item Template'!A1753","v":0}]
[null,null,null,null,null,null,null,{"$f":"'Item Template'!A1754","v":0}]
[null,null,null,null,null,null,null,{"$f":"'Item Template'!A1755","v":0}]
[null,null,null,null,null,null,null,{"$f":"'Item Template'!A1756","v":0}]
[null,null,null,null,null,null,null,{"$f":"'Item Template'!A1757","v":0}]
[null,null,null,null,null,null,null,{"$f":"'Item Template'!A1758","v":0}]
[null,null,null,null,null,null,null,{"$f":"'Item Template'!A1759","v":0}]
[null,null,null,null,null,null,null,{"$f":"'Item Template'!A1760","v":0}]
[null,null,null,null,null,null,null,{"$f":"'Item Template'!A1761","v":0}]
[null,null,null,null,null,null,null,{"$f":"'Item Template'!A1762","v":0}]
[null,null,null,null,null,null,null,{"$f":"'Item Template'!A1763","v":0}]
[null,null,null,null,null,null,null,{"$f":"'Item Template'!A1764","v":0}]
[null,null,null,null,null,null,null,{"$f":"'Item Template'!A1765","v":0}]
[null,null,null,null,null,null,null,{"$f":"'Item Template'!A1766","v":0}]
[null,null,null,null,null,null,null,{"$f":"'Item Template'!A1767","v":0}]
[null,null,null,null,null,null,null,{"$f":"'Item Template'!A1768","v":0}]
[null,null,null,null,null,null,null,{"$f":"'Item Template'!A1769","v":0}]
[null,null,null,null,null,null,null,{"$f":"'Item Template'!A1770","v":0}]
[null,null,null,null,null,null,null,{"$f":"'Item Template'!A1771","v":0}]
[null,null,null,null,null,null,null,{"$f":"'Item Template'!A1772","v":0}]
[null,null,null,null,null,null,null,{"$f":"'Item Template'!A1773","v":0}]
[null,null,null,null,null,null,null,{"$f":"'Item Template'!A1774","v":0}]
[null,null,null,null,null,null,null,{"$f":"'Item Template'!A1775","v":0}]
[null,null,null,null,null,null,null,{"$f":"'Item Template'!A1776","v":0}]
[null,null,null,null,null,null,null,{"$f":"'Item Template'!A1777","v":0}]
[null,null,null,null,null,null,null,{"$f":"'Item Template'!A1778","v":0}]
[null,null,null,null,null,null,null,{"$f":"'Item Template'!A1779","v":0}]
[null,null,null,null,null,null,null,{"$f":"'Item Template'!A1780","v":0}]
[null,null,null,null,null,null,null,{"$f":"'Item Template'!A1781","v":0}]
[null,null,null,null,null,null,null,{"$f":"'Item Template'!A1782","v":0}]
[null,null,null,null,null,null,null,{"$f":"'Item Template'!A1783","v":0}]
[null,null,null,null,null,null,null,{"$f":"'Item Template'!A1784","v":0}]
[null,null,null,null,null,null,null,{"$f":"'Item Template'!A1785","v":0}]
[null,null,null,null,null,null,null,{"$f":"'Item Template'!A1786","v":0}]
[null,null,null,null,null,null,null,{"$f":"'Item Template'!A1787","v":0}]
[null,null,null,null,null,null,null,{"$f":"'Item Template'!A1788","v":0}]
[null,null,null,null,null,null,null,{"$f":"'Item Template'!A1789","v":0}]
[null,null,null,null,null,null,null,{"$f":"'Item Template'!A1790","v":0}]
[null,null,null,null,null,null,null,{"$f":"'Item Template'!A1791","v":0}]
[null,null,null,null,null,null,null,{"$f":"'Item Template'!A1792","v":0}]
[null,null,null,null,null,null,null,{"$f":"'Item Template'!A1793","v":0}]
[null,null,null,null,null,null,null,{"$f":"'Item Template'!A1794","v":0}]
[null,null,null,null,null,null,null,{"$f":"'Item Template'!A1795","v":0}]
[null,null,null,null,null,null,null,{"$f":"'Item Template'!A1796","v":0}]
[null,null,null,null,null,null,null,{"$f":"'Item Template'!A1797","v":0}]
[null,null,null,null,null,null,null,{"$f":"'Item Template'!A1798","v":0}]
[null,null,null,null,null,null,null,{"$f":"'Item Template'!A1799","v":0}]
[null,null,null,null,null,null,null,{"$f":"'Item Template'!A1800","v":0}]
[null,null,null,null,null,null,null,{"$f":"'Item Template'!A1801","v":0}]
[null,null,null,null,null,null,null,{"$f":"'Item Template'!A1802","v":0}]
[null,null,null,null,null,null,null,{"$f":"'Item Template'!A1803","v":0}]
[null,null,null,null,null,null,null,{"$f":"'Item Template'!A1804","v":0}]
[null,null,null,null,null,null,null,{"$f":"'Item Template'!A1805","v":0}]
[null,null,null,null,null,null,null,{"$f":"'Item Template'!A1806","v":0}]
[null,null,null,null,null,null,null,{"$f":"'Item Template'!A1807","v":0}]
[null,null,null,null,null,null,null,{"$f":"'Item Template'!A1808","v":0}]
[null,null,null,null,null,null,null,{"$f":"'Item Template'!A1809","v":0}]
[null,null,null,null,null,null,null,{"$f":"'Item Template'!A1810","v":0}]
[null,null,null,null,null,null,null,{"$f":"'Item Template'!A1811","v":0}]
[null,null,null,null,null,null,null,{"$f":"'Item Template'!A1812","v":0}]
[null,null,null,null,null,null,null,{"$f":"'Item Template'!A1813","v":0}]
[null,null,null,null,null,null,null,{"$f":"'Item Template'!A1814","v":0}]
[null,null,null,null,null,null,null,{"$f":"'Item Template'!A1815","v":0}]
[null,null,null,null,null,null,null,{"$f":"'Item Template'!A1816","v":0}]
[null,null,null,null,null,null,null,{"$f":"'Item Template'!A1817","v":0}]
[null,null,null,null,null,null,null,{"$f":"'Item Template'!A1818","v":0}]
[null,null,null,null,null,null,null,{"$f":"'Item Template'!A1819","v":0}]
[null,null,null,null,null,null,null,{"$f":"'Item Template'!A1820","v":0}]
[null,null,null,null,null,null,null,{"$f":"'Item Template'!A1821","v":0}]
[null,null,null,null,null,null,null,{"$f":"'Item Template'!A1822","v":0}]
[null,null,null,null,null,null,null,{"$f":"'Item Template'!A1823","v":0}]
[null,null,null,null,null,null,null,{"$f":"'Item Template'!A1824","v":0}]
[null,null,null,null,null,null,null,{"$f":"'Item Template'!A1825","v":0}]
[null,null,null,null,null,null,null,{"$f":"'Item Template'!A1826","v":0}]
[null,null,null,null,null,null,null,{"$f":"'Item Template'!A1827","v":0}]
[null,null,null,null,null,null,null,{"$f":"'Item Template'!A1828","v":0}]
[null,null,null,null,null,null,null,{"$f":"'Item Template'!A1829","v":0}]
[null,null,null,null,null,null,null,{"$f":"'Item Template'!A1830","v":0}]
[null,null,null,null,null,null,null,{"$f":"'Item Template'!A1831","v":0}]
[null,null,null,null,null,null,null,{"$f":"'Item Template'!A1832","v":0}]
[null,null,null,null,null,null,null,{"$f":"'Item Template'!A1833","v":0}]
[null,null,null,null,null,null,null,{"$f":"'Item Template'!A1834","v":0}]
[null,null,null,null,null,null,null,{"$f":"'Item Template'!A1835","v":0}]
[null,null,null,null,null,null,null,{"$f":"'Item Template'!A1836","v":0}]
[null,null,null,null,null,null,null,{"$f":"'Item Template'!A1837","v":0}]
[null,null,null,null,null,null,null,{"$f":"'Item Template'!A1838","v":0}]
[null,null,null,null,null,null,null,{"$f":"'Item Template'!A1839","v":0}]
[null,null,null,null,null,null,null,{"$f":"'Item Template'!A1840","v":0}]
[null,null,null,null,null,null,null,{"$f":"'Item Template'!A1841","v":0}]
[null,null,null,null,null,null,null,{"$f":"'Item Template'!A1842","v":0}]
[null,null,null,null,null,null,null,{"$f":"'Item Template'!A1843","v":0}]
[null,null,null,null,null,null,null,{"$f":"'Item Template'!A1844","v":0}]
[null,null,null,null,null,null,null,{"$f":"'Item Template'!A1845","v":0}]
[null,null,null,null,null,null,null,{"$f":"'Item Template'!A1846","v":0}]
[null,null,null,null,null,null,null,{"$f":"'Item Template'!A1847","v":0}]
[null,null,null,null,null,null,null,{"$f":"'Item Template'!A1848","v":0}]
[null,null,null,null,null,null,null,{"$f":"'Item Template'!A1849","v":0}]
[null,null,null,null,null,null,null,{"$f":"'Item Template'!A1850","v":0}]
[null,null,null,null,null,null,null,{"$f":"'Item Template'!A1851","v":0}]
[null,null,null,null,null,null,null,{"$f":"'Item Template'!A1852","v":0}]
[null,null,null,null,null,null,null,{"$f":"'Item Template'!A1853","v":0}]
[null,null,null,null,null,null,null,{"$f":"'Item Template'!A1854","v":0}]
[null,null,null,null,null,null,null,{"$f":"'Item Template'!A1855","v":0}]
[null,null,null,null,null,null,null,{"$f":"'Item Template'!A1856","v":0}]
[null,null,null,null,null,null,null,{"$f":"'Item Template'!A1857","v":0}]
[null,null,null,null,null,null,null,{"$f":"'Item Template'!A1858","v":0}]
[null,null,null,null,null,null,null,{"$f":"'Item Template'!A1859","v":0}]
[null,null,null,null,null,null,null,{"$f":"'Item Template'!A1860","v":0}]
[null,null,null,null,null,null,null,{"$f":"'Item Template'!A1861","v":0}]
[null,null,null,null,null,null,null,{"$f":"'Item Template'!A1862","v":0}]
[null,null,null,null,null,null,null,{"$f":"'Item Template'!A1863","v":0}]
[null,null,null,null,null,null,null,{"$f":"'Item Template'!A1864","v":0}]
[null,null,null,null,null,null,null,{"$f":"'Item Template'!A1865","v":0}]
[null,null,null,null,null,null,null,{"$f":"'Item Template'!A1866","v":0}]
[null,null,null,null,null,null,null,{"$f":"'Item Template'!A1867","v":0}]
[null,null,null,null,null,null,null,{"$f":"'Item Template'!A1868","v":0}]
[null,null,null,null,null,null,null,{"$f":"'Item Template'!A1869","v":0}]
[null,null,null,null,null,null,null,{"$f":"'Item Template'!A1870","v":0}]
[null,null,null,null,null,null,null,{"$f":"'Item Template'!A1871","v":0}]
[null,null,null,null,null,null,null,{"$f":"'Item Template'!A1872","v":0}]
[null,null,null,null,null,null,null,{"$f":"'Item Template'!A1873","v":0}]
[null,null,null,null,null,null,null,{"$f":"'Item Template'!A1874","v":0}]
[null,null,null,null,null,null,null,{"$f":"'Item Template'!A1875","v":0}]
[null,null,null,null,null,null,null,{"$f":"'Item Template'!A1876","v":0}]
[null,null,null,null,null,null,null,{"$f":"'Item Template'!A1877","v":0}]
[null,null,null,null,null,null,null,{"$f":"'Item Template'!A1878","v":0}]
[null,null,null,null,null,null,null,{"$f":"'Item Template'!A1879","v":0}]
[null,null,null,null,null,null,null,{"$f":"'Item Template'!A1880","v":0}]
[null,null,null,null,null,null,null,{"$f":"'Item Template'!A1881","v":0}]
[null,null,null,null,null,null,null,{"$f":"'Item Template'!A1882","v":0}]
[null,null,null,null,null,null,null,{"$f":"'Item Template'!A1883","v":0}]
[null,null,null,null,null,null,null,{"$f":"'Item Template'!A1884","v":0}]
[null,null,null,null,null,null,null,{"$f":"'Item Template'!A1885","v":0}]
[null,null,null,null,null,null,null,{"$f":"'Item Template'!A1886","v":0}]
[null,null,null,null,null,null,null,{"$f":"'Item Template'!A1887","v":0}]
[null,null,null,null,null,null,null,{"$f":"'Item Template'!A1888","v":0}]
[null,null,null,null,null,null,null,{"$f":"'Item Template'!A1889","v":0}]
[null,null,null,null,null,null,null,{"$f":"'Item Template'!A1890","v":0}]
[null,null,null,null,null,null,null,{"$f":"'Item Template'!A1891","v":0}]
[null,null,null,null,null,null,null,{"$f":"'Item Template'!A1892","v":0}]
[null,null,null,null,null,null,null,{"$f":"'Item Template'!A1893","v":0}]
[null,null,null,null,null,null,null,{"$f":"'Item Template'!A1894","v":0}]
[null,null,null,null,null,null,null,{"$f":"'Item Template'!A1895","v":0}]
[null,null,null,null,null,null,null,{"$f":"'Item Template'!A1896","v":0}]
[null,null,null,null,null,null,null,{"$f":"'Item Template'!A1897","v":0}]
[null,null,null,null,null,null,null,{"$f":"'Item Template'!A1898","v":0}]
[null,null,null,null,null,null,null,{"$f":"'Item Template'!A1899","v":0}]
[null,null,null,null,null,null,null,{"$f":"'Item Template'!A1900","v":0}]
[null,null,null,null,null,null,null,{"$f":"'Item Template'!A1901","v":0}]
[null,null,null,null,null,null,null,{"$f":"'Item Template'!A1902","v":0}]
[null,null,null,null,null,null,null,{"$f":"'Item Template'!A1903","v":0}]
[null,null,null,null,null,null,null,{"$f":"'Item Template'!A1904","v":0}]
[null,null,null,null,null,null,null,{"$f":"'Item Template'!A1905","v":0}]
[null,null,null,null,null,null,null,{"$f":"'Item Template'!A1906","v":0}]
[null,null,null,null,null,null,null,{"$f":"'Item Template'!A1907","v":0}]
[null,null,null,null,null,null,null,{"$f":"'Item Template'!A1908","v":0}]
[null,null,null,null,null,null,null,{"$f":"'Item Template'!A1909","v":0}]
[null,null,null,null,null,null,null,{"$f":"'Item Template'!A1910","v":0}]
[null,null,null,null,null,null,null,{"$f":"'Item Template'!A1911","v":0}]
[null,null,null,null,null,null,null,{"$f":"'Item Template'!A1912","v":0}]
[null,null,null,null,null,null,null,{"$f":"'Item Template'!A1913","v":0}]
[null,null,null,null,null,null,null,{"$f":"'Item Template'!A1914","v":0}]
[null,null,null,null,null,null,null,{"$f":"'Item Template'!A1915","v":0}]
[null,null,null,null,null,null,null,{"$f":"'Item Template'!A1916","v":0}]
[null,null,null,null,null,null,null,{"$f":"'Item Template'!A1917","v":0}]
[null,null,null,null,null,null,null,{"$f":"'Item Template'!A1918","v":0}]
[null,null,null,null,null,null,null,{"$f":"'Item Template'!A1919","v":0}]
[null,null,null,null,null,null,null,{"$f":"'Item Template'!A1920","v":0}]
[null,null,null,null,null,null,null,{"$f":"'Item Template'!A1921","v":0}]
[null,null,null,null,null,null,null,{"$f":"'Item Template'!A1922","v":0}]
[null,null,null,null,null,null,null,{"$f":"'Item Template'!A1923","v":0}]
[null,null,null,null,null,null,null,{"$f":"'Item Template'!A1924","v":0}]
[null,null,null,null,null,null,null,{"$f":"'Item Template'!A1925","v":0}]
[null,null,null,null,null,null,null,{"$f":"'Item Template'!A1926","v":0}]
[null,null,null,null,null,null,null,{"$f":"'Item Template'!A1927","v":0}]
[null,null,null,null,null,null,null,{"$f":"'Item Template'!A1928","v":0}]
[null,null,null,null,null,null,null,{"$f":"'Item Template'!A1929","v":0}]
[null,null,null,null,null,null,null,{"$f":"'Item Template'!A1930","v":0}]
[null,null,null,null,null,null,null,{"$f":"'Item Template'!A1931","v":0}]
[null,null,null,null,null,null,null,{"$f":"'Item Template'!A1932","v":0}]
[null,null,null,null,null,null,null,{"$f":"'Item Template'!A1933","v":0}]
[null,null,null,null,null,null,null,{"$f":"'Item Template'!A1934","v":0}]
[null,null,null,null,null,null,null,{"$f":"'Item Template'!A1935","v":0}]
[null,null,null,null,null,null,null,{"$f":"'Item Template'!A1936","v":0}]
[null,null,null,null,null,null,null,{"$f":"'Item Template'!A1937","v":0}]
[null,null,null,null,null,null,null,{"$f":"'Item Template'!A1938","v":0}]
[null,null,null,null,null,null,null,{"$f":"'Item Template'!A1939","v":0}]
[null,null,null,null,null,null,null,{"$f":"'Item Template'!A1940","v":0}]
[null,null,null,null,null,null,null,{"$f":"'Item Template'!A1941","v":0}]
[null,null,null,null,null,null,null,{"$f":"'Item Template'!A1942","v":0}]
[null,null,null,null,null,null,null,{"$f":"'Item Template'!A1943","v":0}]
[null,null,null,null,null,null,null,{"$f":"'Item Template'!A1944","v":0}]
[null,null,null,null,null,null,null,{"$f":"'Item Template'!A1945","v":0}]
[null,null,null,null,null,null,null,{"$f":"'Item Template'!A1946","v":0}]
[null,null,null,null,null,null,null,{"$f":"'Item Template'!A1947","v":0}]
[null,null,null,null,null,null,null,{"$f":"'Item Template'!A1948","v":0}]
[null,null,null,null,null,null,null,{"$f":"'Item Template'!A1949","v":0}]
[null,null,null,null,null,null,null,{"$f":"'Item Template'!A1950","v":0}]
[null,null,null,null,null,null,null,{"$f":"'Item Template'!A1951","v":0}]
[null,null,null,null,null,null,null,{"$f":"'Item Template'!A1952","v":0}]
[null,null,null,null,null,null,null,{"$f":"'Item Template'!A1953","v":0}]
[null,null,null,null,null,null,null,{"$f":"'Item Template'!A1954","v":0}]
[null,null,null,null,null,null,null,{"$f":"'Item Template'!A1955","v":0}]
[null,null,null,null,null,null,null,{"$f":"'Item Template'!A1956","v":0}]
[null,null,null,null,null,null,null,{"$f":"'Item Template'!A1957","v":0}]
[null,null,null,null,null,null,null,{"$f":"'Item Template'!A1958","v":0}]
[null,null,null,null,null,null,null,{"$f":"'Item Template'!A1959","v":0}]
[null,null,null,null,null,null,null,{"$f":"'Item Template'!A1960","v":0}]
[null,null,null,null,null,null,null,{"$f":"'Item Template'!A1961","v":0}]
[null,null,null,null,null,null,null,{"$f":"'Item Template'!A1962","v":0}]
[null,null,null,null,null,null,null,{"$f":"'Item Template'!A1963","v":0}]
[null,null,null,null,null,null,null,{"$f":"'Item Template'!A1964","v":0}]
[null,null,null,null,null,null,null,{"$f":"'Item Template'!A1965","v":0}]
[null,null,null,null,null,null,null,{"$f":"'Item Template'!A1966","v":0}]
[null,null,null,null,null,null,null,{"$f":"'Item Template'!A1967","v":0}]
[null,null,null,null,null,null,null,{"$f":"'Item Template'!A1968","v":0}]
[null,null,null,null,null,null,null,{"$f":"'Item Template'!A1969","v":0}]
[null,null,null,null,null,null,null,{"$f":"'Item Template'!A1970","v":0}]
[null,null,null,null,null,null,null,{"$f":"'Item Template'!A1971","v":0}]
[null,null,null,null,null,null,null,{"$f":"'Item Template'!A1972","v":0}]
[null,null,null,null,null,null,null,{"$f":"'Item Template'!A1973","v":0}]
[null,null,null,null,null,null,null,{"$f":"'Item Template'!A1974","v":0}]
[null,null,null,null,null,null,null,{"$f":"'Item Template'!A1975","v":0}]
[null,null,null,null,null,null,null,{"$f":"'Item Template'!A1976","v":0}]
[null,null,null,null,null,null,null,{"$f":"'Item Template'!A1977","v":0}]
[null,null,null,null,null,null,null,{"$f":"'Item Template'!A1978","v":0}]
[null,null,null,null,null,null,null,{"$f":"'Item Template'!A1979","v":0}]
[null,null,null,null,null,null,null,{"$f":"'Item Template'!A1980","v":0}]
[null,null,null,null,null,null,null,{"$f":"'Item Template'!A1981","v":0}]
[null,null,null,null,null,null,null,{"$f":"'Item Template'!A1982","v":0}]
[null,null,null,null,null,null,null,{"$f":"'Item Template'!A1983","v":0}]
[null,null,null,null,null,null,null,{"$f":"'Item Template'!A1984","v":0}]
[null,null,null,null,null,null,null,{"$f":"'Item Template'!A1985","v":0}]
[null,null,null,null,null,null,null,{"$f":"'Item Template'!A1986","v":0}]
[null,null,null,null,null,null,null,{"$f":"'Item Template'!A1987","v":0}]
[null,null,null,null,null,null,null,{"$f":"'Item Template'!A1988","v":0}]
[null,null,null,null,null,null,null,{"$f":"'Item Template'!A1989","v":0}]
[null,null,null,null,null,null,null,{"$f":"'Item Template'!A1990","v":0}]
[null,null,null,null,null,null,null,{"$f":"'Item Template'!A1991","v":0}]
[null,null,null,null,null,null,null,{"$f":"'Item Template'!A1992","v":0}]
[null,null,null,null,null,null,null,{"$f":"'Item Template'!A1993","v":0}]
[null,null,null,null,null,null,null,{"$f":"'Item Template'!A1994","v":0}]
[null,null,null,null,null,null,null,{"$f":"'Item Template'!A1995","v":0}]
[null,null,null,null,null,null,null,{"$f":"'Item Template'!A1996","v":0}]
[null,null,null,null,null,null,null,{"$f":"'Item Template'!A1997","v":0}]
[null,null,null,null,null,null,null,{"$f":"'Item Template'!A1998","v":0}]
[null,null,null,null,null,null,null,{"$f":"'Item Template'!A1999","v":0}]
[null,null,null,null,null,null,null,{"$f":"'Item Template'!A2000","v":0}]
[null,null,null,null,null,null,null,{"$f":"'Item Template'!A2001","v":0}]
[null,null,null,null,null,null,null,{"$f":"'Item Template'!A2002","v":0}]
[null,null,null,null,null,null,null,{"$f":"'Item Template'!A2003","v":0}]
[null,null,null,null,null,null,null,{"$f":"'Item Template'!A2004","v":0}]
[null,null,null,null,null,null,null,{"$f":"'Item Template'!A2005","v":0}]
[null,null,null,null,null,null,null,{"$f":"'Item Template'!A2006","v":0}]
[null,null,null,null,null,null,null,{"$f":"'Item Template'!A2007","v":0}]
[null,null,null,null,null,null,null,{"$f":"'Item Template'!A2008","v":0}]
[null,null,null,null,null,null,null,{"$f":"'Item Template'!A2009","v":0}]
[null,null,null,null,null,null,null,{"$f":"'Item Template'!A2010","v":0}]
[null,null,null,null,null,null,null,{"$f":"'Item Template'!A2011","v":0}]
[null,null,null,null,null,null,null,{"$f":"'Item Template'!A2012","v":0}]
[null,null,null,null,null,null,null,{"$f":"'Item Template'!A2013","v":0}]
[null,null,null,null,null,null,null,{"$f":"'Item Template'!A2014","v":0}]
[null,null,null,null,null,null,null,{"$f":"'Item Template'!A2015","v":0}]
[null,null,null,null,null,null,null,{"$f":"'Item Template'!A2016","v":0}]
[null,null,null,null,null,null,null,{"$f":"'Item Template'!A2017","v":0}]
[null,null,null,null,null,null,null,{"$f":"'Item Template'!A2018","v":0}]
[null,null,null,null,null,null,null,{"$f":"'Item Template'!A2019","v":0}]
[null,null,null,null,null,null,null,{"$f":"'Item Template'!A2020","v":0}]
[null,null,null,null,null,null,null,{"$f":"'Item Template'!A2021","v":0}]
[null,null,null,null,null,null,null,{"$f":"'Item Template'!A2022","v":0}]
[null,null,null,null,null,null,null,{"$f":"'Item Template'!A2023","v":0}]
[null,null,null,null,null,null,null,{"$f":"'Item Template'!A2024","v":0}]
[null,null,null,null,null,null,null,{"$f":"'Item Template'!A2025","v":0}]
[null,null,null,null,null,null,null,{"$f":"'Item Template'!A2026","v":0}]
[null,null,null,null,null,null,null,{"$f":"'Item Template'!A2027","v":0}]
[null,null,null,null,null,null,null,{"$f":"'Item Template'!A2028","v":0}]
[null,null,null,null,null,null,null,{"$f":"'Item Template'!A2029","v":0}]
[null,null,null,null,null,null,null,{"$f":"'Item Template'!A2030","v":0}]
[null,null,null,null,null,null,null,{"$f":"'Item Template'!A2031","v":0}]
[null,null,null,null,null,null,null,{"$f":"'Item Template'!A2032","v":0}]
[null,null,null,null,null,null,null,{"$f":"'Item Template'!A2033","v":0}]
[null,null,null,null,null,null,null,{"$f":"'Item Template'!A2034","v":0}]
[null,null,null,null,null,null,null,{"$f":"'Item Template'!A2035","v":0}]
[null,null,null,null,null,null,null,{"$f":"'Item Template'!A2036","v":0}]
[null,null,null,null,null,null,null,{"$f":"'Item Template'!A2037","v":0}]
[null,null,null,null,null,null,null,{"$f":"'Item Template'!A2038","v":0}]
[null,null,null,null,null,null,null,{"$f":"'Item Template'!A2039","v":0}]
[null,null,null,null,null,null,null,{"$f":"'Item Template'!A2040","v":0}]
[null,null,null,null,null,null,null,{"$f":"'Item Template'!A2041","v":0}]
[null,null,null,null,null,null,null,{"$f":"'Item Template'!A2042","v":0}]
[null,null,null,null,null,null,null,{"$f":"'Item Template'!A2043","v":0}]
[null,null,null,null,null,null,null,{"$f":"'Item Template'!A2044","v":0}]
[null,null,null,null,null,null,null,{"$f":"'Item Template'!A2045","v":0}]
[null,null,null,null,null,null,null,{"$f":"'Item Template'!A2046","v":0}]
[null,null,null,null,null,null,null,{"$f":"'Item Template'!A2047","v":0}]
[null,null,null,null,null,null,null,{"$f":"'Item Template'!A2048","v":0}]
[null,null,null,null,null,null,null,{"$f":"'Item Template'!A2049","v":0}]
[null,null,null,null,null,null,null,{"$f":"'Item Template'!A2050","v":0}]
[null,null,null,null,null,null,null,{"$f":"'Item Template'!A2051","v":0}]
[null,null,null,null,null,null,null,{"$f":"'Item Template'!A2052","v":0}]
[null,null,null,null,null,null,null,{"$f":"'Item Template'!A2053","v":0}]
[null,null,null,null,null,null,null,{"$f":"'Item Template'!A2054","v":0}]
[null,null,null,null,null,null,null,{"$f":"'Item Template'!A2055","v":0}]
[null,null,null,null,null,null,null,{"$f":"'Item Template'!A2056","v":0}]
[null,null,null,null,null,null,null,{"$f":"'Item Template'!A2057","v":0}]
[null,null,null,null,null,null,null,{"$f":"'Item Template'!A2058","v":0}]
[null,null,null,null,null,null,null,{"$f":"'Item Template'!A2059","v":0}]
[null,null,null,null,null,null,null,{"$f":"'Item Template'!A2060","v":0}]
[null,null,null,null,null,null,null,{"$f":"'Item Template'!A2061","v":0}]
[null,null,null,null,null,null,null,{"$f":"'Item Template'!A2062","v":0}]
[null,null,null,null,null,null,null,{"$f":"'Item Template'!A2063","v":0}]
[null,null,null,null,null,null,null,{"$f":"'Item Template'!A2064","v":0}]
[null,null,null,null,null,null,null,{"$f":"'Item Template'!A2065","v":0}]
[null,null,null,null,null,null,null,{"$f":"'Item Template'!A2066","v":0}]
[null,null,null,null,null,null,null,{"$f":"'Item Template'!A2067","v":0}]
[null,null,null,null,null,null,null,{"$f":"'Item Template'!A2068","v":0}]
[null,null,null,null,null,null,null,{"$f":"'Item Template'!A2069","v":0}]
[null,null,null,null,null,null,null,{"$f":"'Item Template'!A2070","v":0}]
[null,null,null,null,null,null,null,{"$f":"'Item Template'!A2071","v":0}]
[null,null,null,null,null,null,null,{"$f":"'Item Template'!A2072","v":0}]
[null,null,null,null,null,null,null,{"$f":"'Item Template'!A2073","v":0}]
[null,null,null,null,null,null,null,{"$f":"'Item Template'!A2074","v":0}]
[null,null,null,null,null,null,null,{"$f":"'Item Template'!A2075","v":0}]
[null,null,null,null,null,null,null,{"$f":"'Item Template'!A2076","v":0}]
[null,null,null,null,null,null,null,{"$f":"'Item Template'!A2077","v":0}]
[null,null,null,null,null,null,null,{"$f":"'Item Template'!A2078","v":0}]
[null,null,null,null,null,null,null,{"$f":"'Item Template'!A2079","v":0}]
[null,null,null,null,null,null,null,{"$f":"'Item Template'!A2080","v":0}]
[null,null,null,null,null,null,null,{"$f":"'Item Template'!A2081","v":0}]
[null,null,null,null,null,null,null,{"$f":"'Item Template'!A2082","v":0}]
[null,null,null,null,null,null,null,{"$f":"'Item Template'!A2083","v":0}]
[null,null,null,null,null,null,null,{"$f":"'Item Template'!A2084","v":0}]
[null,null,null,null,null,null,null,{"$f":"'Item Template'!A2085","v":0}]
[null,null,null,null,null,null,null,{"$f":"'Item Template'!A2086","v":0}]
[null,null,null,null,null,null,null,{"$f":"'Item Template'!A2087","v":0}]
[null,null,null,null,null,null,null,{"$f":"'Item Template'!A2088","v":0}]
[null,null,null,null,null,null,null,{"$f":"'Item Template'!A2089","v":0}]
[null,null,null,null,null,null,null,{"$f":"'Item Template'!A2090","v":0}]
[null,null,null,null,null,null,null,{"$f":"'Item Template'!A2091","v":0}]
[null,null,null,null,null,null,null,{"$f":"'Item Template'!A2092","v":0}]
[null,null,null,null,null,null,null,{"$f":"'Item Template'!A2093","v":0}]
[null,null,null,null,null,null,null,{"$f":"'Item Template'!A2094","v":0}]
[null,null,null,null,null,null,null,{"$f":"'Item Template'!A2095","v":0}]
[null,null,null,null,null,null,null,{"$f":"'Item Template'!A2096","v":0}]
[null,null,null,null,null,null,null,{"$f":"'Item Template'!A2097","v":0}]
[null,null,null,null,null,null,null,{"$f":"'Item Template'!A2098","v":0}]
[null,null,null,null,null,null,null,{"$f":"'Item Template'!A2099","v":0}]
[null,null,null,null,null,null,null,{"$f":"'Item Template'!A2100","v":0}]
[null,null,null,null,null,null,null,{"$f":"'Item Template'!A2101","v":0}]
[null,null,null,null,null,null,null,{"$f":"'Item Template'!A2102","v":0}]
[null,null,null,null,null,null,null,{"$f":"'Item Template'!A2103","v":0}]
[null,null,null,null,null,null,null,{"$f":"'Item Template'!A2104","v":0}]
[null,null,null,null,null,null,null,{"$f":"'Item Template'!A2105","v":0}]
[null,null,null,null,null,null,null,{"$f":"'Item Template'!A2106","v":0}]
[null,null,null,null,null,null,null,{"$f":"'Item Template'!A2107","v":0}]
[null,null,null,null,null,null,null,{"$f":"'Item Template'!A2108","v":0}]
[null,null,null,null,null,null,null,{"$f":"'Item Template'!A2109","v":0}]
[null,null,null,null,null,null,null,{"$f":"'Item Template'!A2110","v":0}]
[null,null,null,null,null,null,null,{"$f":"'Item Template'!A2111","v":0}]
[null,null,null,null,null,null,null,{"$f":"'Item Template'!A2112","v":0}]
[null,null,null,null,null,null,null,{"$f":"'Item Template'!A2113","v":0}]
[null,null,null,null,null,null,null,{"$f":"'Item Template'!A2114","v":0}]
[null,null,null,null,null,null,null,{"$f":"'Item Template'!A2115","v":0}]
[null,null,null,null,null,null,null,{"$f":"'Item Template'!A2116","v":0}]
[null,null,null,null,null,null,null,{"$f":"'Item Template'!A2117","v":0}]
[null,null,null,null,null,null,null,{"$f":"'Item Template'!A2118","v":0}]
[null,null,null,null,null,null,null,{"$f":"'Item Template'!A2119","v":0}]
[null,null,null,null,null,null,null,{"$f":"'Item Template'!A2120","v":0}]
[null,null,null,null,null,null,null,{"$f":"'Item Template'!A2121","v":0}]
[null,null,null,null,null,null,null,{"$f":"'Item Template'!A2122","v":0}]
[null,null,null,null,null,null,null,{"$f":"'Item Template'!A2123","v":0}]
[null,null,null,null,null,null,null,{"$f":"'Item Template'!A2124","v":0}]
[null,null,null,null,null,null,null,{"$f":"'Item Template'!A2125","v":0}]
[null,null,null,null,null,null,null,{"$f":"'Item Template'!A2126","v":0}]
[null,null,null,null,null,null,null,{"$f":"'Item Template'!A2127","v":0}]
[null,null,null,null,null,null,null,{"$f":"'Item Template'!A2128","v":0}]
[null,null,null,null,null,null,null,{"$f":"'Item Template'!A2129","v":0}]
[null,null,null,null,null,null,null,{"$f":"'Item Template'!A2130","v":0}]
[null,null,null,null,null,null,null,{"$f":"'Item Template'!A2131","v":0}]
[null,null,null,null,null,null,null,{"$f":"'Item Template'!A2132","v":0}]
[null,null,null,null,null,null,null,{"$f":"'Item Template'!A2133","v":0}]
[null,null,null,null,null,null,null,{"$f":"'Item Template'!A2134","v":0}]
[null,null,null,null,null,null,null,{"$f":"'Item Template'!A2135","v":0}]
[null,null,null,null,null,null,null,{"$f":"'Item Template'!A2136","v":0}]
[null,null,null,null,null,null,null,{"$f":"'Item Template'!A2137","v":0}]
[null,null,null,null,null,null,null,{"$f":"'Item Template'!A2138","v":0}]
[null,null,null,null,null,null,null,{"$f":"'Item Template'!A2139","v":0}]
[null,null,null,null,null,null,null,{"$f":"'Item Template'!A2140","v":0}]
[null,null,null,null,null,null,null,{"$f":"'Item Template'!A2141","v":0}]
[null,null,null,null,null,null,null,{"$f":"'Item Template'!A2142","v":0}]
[null,null,null,null,null,null,null,{"$f":"'Item Template'!A2143","v":0}]
[null,null,null,null,null,null,null,{"$f":"'Item Template'!A2144","v":0}]
[null,null,null,null,null,null,null,{"$f":"'Item Template'!A2145","v":0}]
[null,null,null,null,null,null,null,{"$f":"'Item Template'!A2146","v":0}]
[null,null,null,null,null,null,null,{"$f":"'Item Template'!A2147","v":0}]
[null,null,null,null,null,null,null,{"$f":"'Item Template'!A2148","v":0}]
[null,null,null,null,null,null,null,{"$f":"'Item Template'!A2149","v":0}]
[null,null,null,null,null,null,null,{"$f":"'Item Template'!A2150","v":0}]
[null,null,null,null,null,null,null,{"$f":"'Item Template'!A2151","v":0}]
[null,null,null,null,null,null,null,{"$f":"'Item Template'!A2152","v":0}]
[null,null,null,null,null,null,null,{"$f":"'Item Template'!A2153","v":0}]
[null,null,null,null,null,null,null,{"$f":"'Item Template'!A2154","v":0}]
[null,null,null,null,null,null,null,{"$f":"'Item Template'!A2155","v":0}]
[null,null,null,null,null,null,null,{"$f":"'Item Template'!A2156","v":0}]
[null,null,null,null,null,null,null,{"$f":"'Item Template'!A2157","v":0}]
[null,null,null,null,null,null,null,{"$f":"'Item Template'!A2158","v":0}]
[null,null,null,null,null,null,null,{"$f":"'Item Template'!A2159","v":0}]
[null,null,null,null,null,null,null,{"$f":"'Item Template'!A2160","v":0}]
[null,null,null,null,null,null,null,{"$f":"'Item Template'!A2161","v":0}]
[null,null,null,null,null,null,null,{"$f":"'Item Template'!A2162","v":0}]
[null,null,null,null,null,null,null,{"$f":"'Item Template'!A2163","v":0}]
[null,null,null,null,null,null,null,{"$f":"'Item Template'!A2164","v":0}]
[null,null,null,null,null,null,null,{"$f":"'Item Template'!A2165","v":0}]
[null,null,null,null,null,null,null,{"$f":"'Item Template'!A2166","v":0}]
[null,null,null,null,null,null,null,{"$f":"'Item Template'!A2167","v":0}]
[null,null,null,null,null,null,null,{"$f":"'Item Template'!A2168","v":0}]
[null,null,null,null,null,null,null,{"$f":"'Item Template'!A2169","v":0}]
[null,null,null,null,null,null,null,{"$f":"'Item Template'!A2170","v":0}]
[null,null,null,null,null,null,null,{"$f":"'Item Template'!A2171","v":0}]
[null,null,null,null,null,null,null,{"$f":"'Item Template'!A2172","v":0}]
[null,null,null,null,null,null,null,{"$f":"'Item Template'!A2173","v":0}]
[null,null,null,null,null,null,null,{"$f":"'Item Template'!A2174","v":0}]
[null,null,null,null,null,null,null,{"$f":"'Item Template'!A2175","v":0}]
[null,null,null,null,null,null,null,{"$f":"'Item Template'!A2176","v":0}]
[null,null,null,null,null,null,null,{"$f":"'Item Template'!A2177","v":0}]
[null,null,null,null,null,null,null,{"$f":"'Item Template'!A2178","v":0}]
[null,null,null,null,null,null,null,{"$f":"'Item Template'!A2179","v":0}]
[null,null,null,null,null,null,null,{"$f":"'Item Template'!A2180","v":0}]
[null,null,null,null,null,null,null,{"$f":"'Item Template'!A2181","v":0}]
[null,null,null,null,null,null,null,{"$f":"'Item Template'!A2182","v":0}]
[null,null,null,null,null,null,null,{"$f":"'Item Template'!A2183","v":0}]
[null,null,null,null,null,null,null,{"$f":"'Item Template'!A2184","v":0}]
[null,null,null,null,null,null,null,{"$f":"'Item Template'!A2185","v":0}]
[null,null,null,null,null,null,null,{"$f":"'Item Template'!A2186","v":0}]
[null,null,null,null,null,null,null,{"$f":"'Item Template'!A2187","v":0}]
[null,null,null,null,null,null,null,{"$f":"'Item Template'!A2188","v":0}]
[null,null,null,null,null,null,null,{"$f":"'Item Template'!A2189","v":0}]
[null,null,null,null,null,null,null,{"$f":"'Item Template'!A2190","v":0}]
[null,null,null,null,null,null,null,{"$f":"'Item Template'!A2191","v":0}]
[null,null,null,null,null,null,null,{"$f":"'Item Template'!A2192","v":0}]
[null,null,null,null,null,null,null,{"$f":"'Item Template'!A2193","v":0}]
[null,null,null,null,null,null,null,{"$f":"'Item Template'!A2194","v":0}]
[null,null,null,null,null,null,null,{"$f":"'Item Template'!A2195","v":0}]
[null,null,null,null,null,null,null,{"$f":"'Item Template'!A2196","v":0}]
[null,null,null,null,null,null,null,{"$f":"'Item Template'!A2197","v":0}]
[null,null,null,null,null,null,null,{"$f":"'Item Template'!A2198","v":0}]
[null,null,null,null,null,null,null,{"$f":"'Item Template'!A2199","v":0}]
[null,null,null,null,null,null,null,{"$f":"'Item Template'!A2200","v":0}]
[null,null,null,null,null,null,null,{"$f":"'Item Template'!A2201","v":0}]
[null,null,null,null,null,null,null,{"$f":"'Item Template'!A2202","v":0}]
[null,null,null,null,null,null,null,{"$f":"'Item Template'!A2203","v":0}]
[null,null,null,null,null,null,null,{"$f":"'Item Template'!A2204","v":0}]
[null,null,null,null,null,null,null,{"$f":"'Item Template'!A2205","v":0}]
[null,null,null,null,null,null,null,{"$f":"'Item Template'!A2206","v":0}]
[null,null,null,null,null,null,null,{"$f":"'Item Template'!A2207","v":0}]
[null,null,null,null,null,null,null,{"$f":"'Item Template'!A2208","v":0}]
[null,null,null,null,null,null,null,{"$f":"'Item Template'!A2209","v":0}]
[null,null,null,null,null,null,null,{"$f":"'Item Template'!A2210","v":0}]
[null,null,null,null,null,null,null,{"$f":"'Item Template'!A2211","v":0}]
[null,null,null,null,null,null,null,{"$f":"'Item Template'!A2212","v":0}]
[null,null,null,null,null,null,null,{"$f":"'Item Template'!A2213","v":0}]
[null,null,null,null,null,null,null,{"$f":"'Item Template'!A2214","v":0}]
[null,null,null,null,null,null,null,{"$f":"'Item Template'!A2215","v":0}]
[null,null,null,null,null,null,null,{"$f":"'Item Template'!A2216","v":0}]
[null,null,null,null,null,null,null,{"$f":"'Item Template'!A2217","v":0}]
[null,null,null,null,null,null,null,{"$f":"'Item Template'!A2218","v":0}]
[null,null,null,null,null,null,null,{"$f":"'Item Template'!A2219","v":0}]
[null,null,null,null,null,null,null,{"$f":"'Item Template'!A2220","v":0}]
[null,null,null,null,null,null,null,{"$f":"'Item Template'!A2221","v":0}]
[null,null,null,null,null,null,null,{"$f":"'Item Template'!A2222","v":0}]
[null,null,null,null,null,null,null,{"$f":"'Item Template'!A2223","v":0}]
[null,null,null,null,null,null,null,{"$f":"'Item Template'!A2224","v":0}]
[null,null,null,null,null,null,null,{"$f":"'Item Template'!A2225","v":0}]
[null,null,null,null,null,null,null,{"$f":"'Item Template'!A2226","v":0}]
[null,null,null,null,null,null,null,{"$f":"'Item Template'!A2227","v":0}]
[null,null,null,null,null,null,null,{"$f":"'Item Template'!A2228","v":0}]
[null,null,null,null,null,null,null,{"$f":"'Item Template'!A2229","v":0}]
[null,null,null,null,null,null,null,{"$f":"'Item Template'!A2230","v":0}]
[null,null,null,null,null,null,null,{"$f":"'Item Template'!A2231","v":0}]
[null,null,null,null,null,null,null,{"$f":"'Item Template'!A2232","v":0}]
[null,null,null,null,null,null,null,{"$f":"'Item Template'!A2233","v":0}]
[null,null,null,null,null,null,null,{"$f":"'Item Template'!A2234","v":0}]
[null,null,null,null,null,null,null,{"$f":"'Item Template'!A2235","v":0}]
[null,null,null,null,null,null,null,{"$f":"'Item Template'!A2236","v":0}]
[null,null,null,null,null,null,null,{"$f":"'Item Template'!A2237","v":0}]
[null,null,null,null,null,null,null,{"$f":"'Item Template'!A2238","v":0}]
[null,null,null,null,null,null,null,{"$f":"'Item Template'!A2239","v":0}]
[null,null,null,null,null,null,null,{"$f":"'Item Template'!A2240","v":0}]
[null,null,null,null,null,null,null,{"$f":"'Item Template'!A2241","v":0}]
[null,null,null,null,null,null,null,{"$f":"'Item Template'!A2242","v":0}]
[null,null,null,null,null,null,null,{"$f":"'Item Template'!A2243","v":0}]
[null,null,null,null,null,null,null,{"$f":"'Item Template'!A2244","v":0}]
[null,null,null,null,null,null,null,{"$f":"'Item Template'!A2245","v":0}]
[null,null,null,null,null,null,null,{"$f":"'Item Template'!A2246","v":0}]
[null,null,null,null,null,null,null,{"$f":"'Item Template'!A2247","v":0}]
[null,null,null,null,null,null,null,{"$f":"'Item Template'!A2248","v":0}]
[null,null,null,null,null,null,null,{"$f":"'Item Template'!A2249","v":0}]
[null,null,null,null,null,null,null,{"$f":"'Item Template'!A2250","v":0}]
[null,null,null,null,null,null,null,{"$f":"'Item Template'!A2251","v":0}]
[null,null,null,null,null,null,null,{"$f":"'Item Template'!A2252","v":0}]
[null,null,null,null,null,null,null,{"$f":"'Item Template'!A2253","v":0}]
[null,null,null,null,null,null,null,{"$f":"'Item Template'!A2254","v":0}]
[null,null,null,null,null,null,null,{"$f":"'Item Template'!A2255","v":0}]
[null,null,null,null,null,null,null,{"$f":"'Item Template'!A2256","v":0}]
[null,null,null,null,null,null,null,{"$f":"'Item Template'!A2257","v":0}]
[null,null,null,null,null,null,null,{"$f":"'Item Template'!A2258","v":0}]
[null,null,null,null,null,null,null,{"$f":"'Item Template'!A2259","v":0}]
[null,null,null,null,null,null,null,{"$f":"'Item Template'!A2260","v":0}]
[null,null,null,null,null,null,null,{"$f":"'Item Template'!A2261","v":0}]
[null,null,null,null,null,null,null,{"$f":"'Item Template'!A2262","v":0}]
[null,null,null,null,null,null,null,{"$f":"'Item Template'!A2263","v":0}]
[null,null,null,null,null,null,null,{"$f":"'Item Template'!A2264","v":0}]
[null,null,null,null,null,null,null,{"$f":"'Item Template'!A2265","v":0}]
[null,null,null,null,null,null,null,{"$f":"'Item Template'!A2266","v":0}]
[null,null,null,null,null,null,null,{"$f":"'Item Template'!A2267","v":0}]
[null,null,null,null,null,null,null,{"$f":"'Item Template'!A2268","v":0}]
[null,null,null,null,null,null,null,{"$f":"'Item Template'!A2269","v":0}]
[null,null,null,null,null,null,null,{"$f":"'Item Template'!A2270","v":0}]
[null,null,null,null,null,null,null,{"$f":"'Item Template'!A2271","v":0}]
[null,null,null,null,null,null,null,{"$f":"'Item Template'!A2272","v":0}]
[null,null,null,null,null,null,null,{"$f":"'Item Template'!A2273","v":0}]
[null,null,null,null,null,null,null,{"$f":"'Item Template'!A2274","v":0}]
[null,null,null,null,null,null,null,{"$f":"'Item Template'!A2275","v":0}]
[null,null,null,null,null,null,null,{"$f":"'Item Template'!A2276","v":0}]
[null,null,null,null,null,null,null,{"$f":"'Item Template'!A2277","v":0}]
[null,null,null,null,null,null,null,{"$f":"'Item Template'!A2278","v":0}]
[null,null,null,null,null,null,null,{"$f":"'Item Template'!A2279","v":0}]
[null,null,null,null,null,null,null,{"$f":"'Item Template'!A2280","v":0}]
[null,null,null,null,null,null,null,{"$f":"'Item Template'!A2281","v":0}]
[null,null,null,null,null,null,null,{"$f":"'Item Template'!A2282","v":0}]
[null,null,null,null,null,null,null,{"$f":"'Item Template'!A2283","v":0}]
[null,null,null,null,null,null,null,{"$f":"'Item Template'!A2284","v":0}]
[null,null,null,null,null,null,null,{"$f":"'Item Template'!A2285","v":0}]
[null,null,null,null,null,null,null,{"$f":"'Item Template'!A2286","v":0}]
[null,null,null,null,null,null,null,{"$f":"'Item Template'!A2287","v":0}]
[null,null,null,null,null,null,null,{"$f":"'Item Template'!A2288","v":0}]
[null,null,null,null,null,null,null,{"$f":"'Item Template'!A2289","v":0}]
[null,null,null,null,null,null,null,{"$f":"'Item Template'!A2290","v":0}]
[null,null,null,null,null,null,null,{"$f":"'Item Template'!A2291","v":0}]
[null,null,null,null,null,null,null,{"$f":"'Item Template'!A2292","v":0}]
[null,null,null,null,null,null,null,{"$f":"'Item Template'!A2293","v":0}]
[null,null,null,null,null,null,null,{"$f":"'Item Template'!A2294","v":0}]
[null,null,null,null,null,null,null,{"$f":"'Item Template'!A2295","v":0}]
[null,null,null,null,null,null,null,{"$f":"'Item Template'!A2296","v":0}]
[null,null,null,null,null,null,null,{"$f":"'Item Template'!A2297","v":0}]
[null,null,null,null,null,null,null,{"$f":"'Item Template'!A2298","v":0}]
[null,null,null,null,null,null,null,{"$f":"'Item Template'!A2299","v":0}]
[null,null,null,null,null,null,null,{"$f":"'Item Template'!A2300","v":0}]
[null,null,null,null,null,null,null,{"$f":"'Item Template'!A2301","v":0}]
[null,null,null,null,null,null,null,{"$f":"'Item Template'!A2302","v":0}]
[null,null,null,null,null,null,null,{"$f":"'Item Template'!A2303","v":0}]
[null,null,null,null,null,null,null,{"$f":"'Item Template'!A2304","v":0}]
[null,null,null,null,null,null,null,{"$f":"'Item Template'!A2305","v":0}]
[null,null,null,null,null,null,null,{"$f":"'Item Template'!A2306","v":0}]
[null,null,null,null,null,null,null,{"$f":"'Item Template'!A2307","v":0}]
[null,null,null,null,null,null,null,{"$f":"'Item Template'!A2308","v":0}]
[null,null,null,null,null,null,null,{"$f":"'Item Template'!A2309","v":0}]
[null,null,null,null,null,null,null,{"$f":"'Item Template'!A2310","v":0}]
[null,null,null,null,null,null,null,{"$f":"'Item Template'!A2311","v":0}]
[null,null,null,null,null,null,null,{"$f":"'Item Template'!A2312","v":0}]
[null,null,null,null,null,null,null,{"$f":"'Item Template'!A2313","v":0}]
[null,null,null,null,null,null,null,{"$f":"'Item Template'!A2314","v":0}]
[null,null,null,null,null,null,null,{"$f":"'Item Template'!A2315","v":0}]
[null,null,null,null,null,null,null,{"$f":"'Item Template'!A2316","v":0}]
[null,null,null,null,null,null,null,{"$f":"'Item Template'!A2317","v":0}]
[null,null,null,null,null,null,null,{"$f":"'Item Template'!A2318","v":0}]
[null,null,null,null,null,null,null,{"$f":"'Item Template'!A2319","v":0}]
[null,null,null,null,null,null,null,{"$f":"'Item Template'!A2320","v":0}]
[null,null,null,null,null,null,null,{"$f":"'Item Template'!A2321","v":0}]
[null,null,null,null,null,null,null,{"$f":"'Item Template'!A2322","v":0}]
[null,null,null,null,null,null,null,{"$f":"'Item Template'!A2323","v":0}]
[null,null,null,null,null,null,null,{"$f":"'Item Template'!A2324","v":0}]
[null,null,null,null,null,null,null,{"$f":"'Item Template'!A2325","v":0}]
[null,null,null,null,null,null,null,{"$f":"'Item Template'!A2326","v":0}]
[null,null,null,null,null,null,null,{"$f":"'Item Template'!A2327","v":0}]
[null,null,null,null,null,null,null,{"$f":"'Item Template'!A2328","v":0}]
[null,null,null,null,null,null,null,{"$f":"'Item Template'!A2329","v":0}]
[null,null,null,null,null,null,null,{"$f":"'Item Template'!A2330","v":0}]
[null,null,null,null,null,null,null,{"$f":"'Item Template'!A2331","v":0}]
[null,null,null,null,null,null,null,{"$f":"'Item Template'!A2332","v":0}]
[null,null,null,null,null,null,null,{"$f":"'Item Template'!A2333","v":0}]
[null,null,null,null,null,null,null,{"$f":"'Item Template'!A2334","v":0}]
[null,null,null,null,null,null,null,{"$f":"'Item Template'!A2335","v":0}]
[null,null,null,null,null,null,null,{"$f":"'Item Template'!A2336","v":0}]
[null,null,null,null,null,null,null,{"$f":"'Item Template'!A2337","v":0}]
[null,null,null,null,null,null,null,{"$f":"'Item Template'!A2338","v":0}]
[null,null,null,null,null,null,null,{"$f":"'Item Template'!A2339","v":0}]
[null,null,null,null,null,null,null,{"$f":"'Item Template'!A2340","v":0}]
[null,null,null,null,null,null,null,{"$f":"'Item Template'!A2341","v":0}]
[null,null,null,null,null,null,null,{"$f":"'Item Template'!A2342","v":0}]
[null,null,null,null,null,null,null,{"$f":"'Item Template'!A2343","v":0}]
[null,null,null,null,null,null,null,{"$f":"'Item Template'!A2344","v":0}]
[null,null,null,null,null,null,null,{"$f":"'Item Template'!A2345","v":0}]
[null,null,null,null,null,null,null,{"$f":"'Item Template'!A2346","v":0}]
[null,null,null,null,null,null,null,{"$f":"'Item Template'!A2347","v":0}]
[null,null,null,null,null,null,null,{"$f":"'Item Template'!A2348","v":0}]
[null,null,null,null,null,null,null,{"$f":"'Item Template'!A2349","v":0}]
[null,null,null,null,null,null,null,{"$f":"'Item Template'!A2350","v":0}]
[null,null,null,null,null,null,null,{"$f":"'Item Template'!A2351","v":0}]
[null,null,null,null,null,null,null,{"$f":"'Item Template'!A2352","v":0}]
[null,null,null,null,null,null,null,{"$f":"'Item Template'!A2353","v":0}]
[null,null,null,null,null,null,null,{"$f":"'Item Template'!A2354","v":0}]
[null,null,null,null,null,null,null,{"$f":"'Item Template'!A2355","v":0}]
[null,null,null,null,null,null,null,{"$f":"'Item Template'!A2356","v":0}]
[null,null,null,null,null,null,null,{"$f":"'Item Template'!A2357","v":0}]
[null,null,null,null,null,null,null,{"$f":"'Item Template'!A2358","v":0}]
[null,null,null,null,null,null,null,{"$f":"'Item Template'!A2359","v":0}]
[null,null,null,null,null,null,null,{"$f":"'Item Template'!A2360","v":0}]
[null,null,null,null,null,null,null,{"$f":"'Item Template'!A2361","v":0}]
[null,null,null,null,null,null,null,{"$f":"'Item Template'!A2362","v":0}]
[null,null,null,null,null,null,null,{"$f":"'Item Template'!A2363","v":0}]
[null,null,null,null,null,null,null,{"$f":"'Item Template'!A2364","v":0}]
[null,null,null,null,null,null,null,{"$f":"'Item Template'!A2365","v":0}]
[null,null,null,null,null,null,null,{"$f":"'Item Template'!A2366","v":0}]
[null,null,null,null,null,null,null,{"$f":"'Item Template'!A2367","v":0}]
[null,null,null,null,null,null,null,{"$f":"'Item Template'!A2368","v":0}]
[null,null,null,null,null,null,null,{"$f":"'Item Template'!A2369","v":0}]
[null,null,null,null,null,null,null,{"$f":"'Item Template'!A2370","v":0}]
[null,null,null,null,null,null,null,{"$f":"'Item Template'!A2371","v":0}]
[null,null,null,null,null,null,null,{"$f":"'Item Template'!A2372","v":0}]
[null,null,null,null,null,null,null,{"$f":"'Item Template'!A2373","v":0}]
[null,null,null,null,null,null,null,{"$f":"'Item Template'!A2374","v":0}]
[null,null,null,null,null,null,null,{"$f":"'Item Template'!A2375","v":0}]
[null,null,null,null,null,null,null,{"$f":"'Item Template'!A2376","v":0}]
[null,null,null,null,null,null,null,{"$f":"'Item Template'!A2377","v":0}]
[null,null,null,null,null,null,null,{"$f":"'Item Template'!A2378","v":0}]
[null,null,null,null,null,null,null,{"$f":"'Item Template'!A2379","v":0}]
[null,null,null,null,null,null,null,{"$f":"'Item Template'!A2380","v":0}]
[null,null,null,null,null,null,null,{"$f":"'Item Template'!A2381","v":0}]
[null,null,null,null,null,null,null,{"$f":"'Item Template'!A2382","v":0}]
[null,null,null,null,null,null,null,{"$f":"'Item Template'!A2383","v":0}]
[null,null,null,null,null,null,null,{"$f":"'Item Template'!A2384","v":0}]
[null,null,null,null,null,null,null,{"$f":"'Item Template'!A2385","v":0}]
[null,null,null,null,null,null,null,{"$f":"'Item Template'!A2386","v":0}]
[null,null,null,null,null,null,null,{"$f":"'Item Template'!A2387","v":0}]
[null,null,null,null,null,null,null,{"$f":"'Item Template'!A2388","v":0}]
[null,null,null,null,null,null,null,{"$f":"'Item Template'!A2389","v":0}]
[null,null,null,null,null,null,null,{"$f":"'Item Template'!A2390","v":0}]
[null,null,null,null,null,null,null,{"$f":"'Item Template'!A2391","v":0}]
[null,null,null,null,null,null,null,{"$f":"'Item Template'!A2392","v":0}]
[null,null,null,null,null,null,null,{"$f":"'Item Template'!A2393","v":0}]
[null,null,null,null,null,null,null,{"$f":"'Item Template'!A2394","v":0}]
[null,null,null,null,null,null,null,{"$f":"'Item Template'!A2395","v":0}]
[null,null,null,null,null,null,null,{"$f":"'Item Template'!A2396","v":0}]
[null,null,null,null,null,null,null,{"$f":"'Item Template'!A2397","v":0}]
[null,null,null,null,null,null,null,{"$f":"'Item Template'!A2398","v":0}]
[null,null,null,null,null,null,null,{"$f":"'Item Template'!A2399","v":0}]
[null,null,null,null,null,null,null,{"$f":"'Item Template'!A2400","v":0}]
[null,null,null,null,null,null,null,{"$f":"'Item Template'!A2401","v":0}]
[null,null,null,null,null,null,null,{"$f":"'Item Template'!A2402","v":0}]
[null,null,null,null,null,null,null,{"$f":"'Item Template'!A2403","v":0}]
[null,null,null,null,null,null,null,{"$f":"'Item Template'!A2404","v":0}]
[null,null,null,null,null,null,null,{"$f":"'Item Template'!A2405","v":0}]
[null,null,null,null,null,null,null,{"$f":"'Item Template'!A2406","v":0}]
[null,null,null,null,null,null,null,{"$f":"'Item Template'!A2407","v":0}]
[null,null,null,null,null,null,null,{"$f":"'Item Template'!A2408","v":0}]
[null,null,null,null,null,null,null,{"$f":"'Item Template'!A2409","v":0}]
[null,null,null,null,null,null,null,{"$f":"'Item Template'!A2410","v":0}]
[null,null,null,null,null,null,null,{"$f":"'Item Template'!A2411","v":0}]
[null,null,null,null,null,null,null,{"$f":"'Item Template'!A2412","v":0}]
[null,null,null,null,null,null,null,{"$f":"'Item Template'!A2413","v":0}]
[null,null,null,null,null,null,null,{"$f":"'Item Template'!A2414","v":0}]
[null,null,null,null,null,null,null,{"$f":"'Item Template'!A2415","v":0}]
[null,null,null,null,null,null,null,{"$f":"'Item Template'!A2416","v":0}]
[null,null,null,null,null,null,null,{"$f":"'Item Template'!A2417","v":0}]
[null,null,null,null,null,null,null,{"$f":"'Item Template'!A2418","v":0}]
[null,null,null,null,null,null,null,{"$f":"'Item Template'!A2419","v":0}]
[null,null,null,null,null,null,null,{"$f":"'Item Template'!A2420","v":0}]
[null,null,null,null,null,null,null,{"$f":"'Item Template'!A2421","v":0}]
[null,null,null,null,null,null,null,{"$f":"'Item Template'!A2422","v":0}]
[null,null,null,null,null,null,null,{"$f":"'Item Template'!A2423","v":0}]
[null,null,null,null,null,null,null,{"$f":"'Item Template'!A2424","v":0}]
[null,null,null,null,null,null,null,{"$f":"'Item Template'!A2425","v":0}]
[null,null,null,null,null,null,null,{"$f":"'Item Template'!A2426","v":0}]
[null,null,null,null,null,null,null,{"$f":"'Item Template'!A2427","v":0}]
[null,null,null,null,null,null,null,{"$f":"'Item Template'!A2428","v":0}]
[null,null,null,null,null,null,null,{"$f":"'Item Template'!A2429","v":0}]
[null,null,null,null,null,null,null,{"$f":"'Item Template'!A2430","v":0}]
[null,null,null,null,null,null,null,{"$f":"'Item Template'!A2431","v":0}]
[null,null,null,null,null,null,null,{"$f":"'Item Template'!A2432","v":0}]
[null,null,null,null,null,null,null,{"$f":"'Item Template'!A2433","v":0}]
[null,null,null,null,null,null,null,{"$f":"'Item Template'!A2434","v":0}]
[null,null,null,null,null,null,null,{"$f":"'Item Template'!A2435","v":0}]
[null,null,null,null,null,null,null,{"$f":"'Item Template'!A2436","v":0}]
[null,null,null,null,null,null,null,{"$f":"'Item Template'!A2437","v":0}]
[null,null,null,null,null,null,null,{"$f":"'Item Template'!A2438","v":0}]
[null,null,null,null,null,null,null,{"$f":"'Item Template'!A2439","v":0}]
[null,null,null,null,null,null,null,{"$f":"'Item Template'!A2440","v":0}]
[null,null,null,null,null,null,null,{"$f":"'Item Template'!A2441","v":0}]
[null,null,null,null,null,null,null,{"$f":"'Item Template'!A2442","v":0}]
[null,null,null,null,null,null,null,{"$f":"'Item Template'!A2443","v":0}]
[null,null,null,null,null,null,null,{"$f":"'Item Template'!A2444","v":0}]
[null,null,null,null,null,null,null,{"$f":"'Item Template'!A2445","v":0}]
[null,null,null,null,null,null,null,{"$f":"'Item Template'!A2446","v":0}]
[null,null,null,null,null,null,null,{"$f":"'Item Template'!A2447","v":0}]
[null,null,null,null,null,null,null,{"$f":"'Item Template'!A2448","v":0}]
[null,null,null,null,null,null,null,{"$f":"'Item Template'!A2449","v":0}]
[null,null,null,null,null,null,null,{"$f":"'Item Template'!A2450","v":0}]
[null,null,null,null,null,null,null,{"$f":"'Item Template'!A2451","v":0}]
[null,null,null,null,null,null,null,{"$f":"'Item Template'!A2452","v":0}]
[null,null,null,null,null,null,null,{"$f":"'Item Template'!A2453","v":0}]
[null,null,null,null,null,null,null,{"$f":"'Item Template'!A2454","v":0}]
[null,null,null,null,null,null,null,{"$f":"'Item Template'!A2455","v":0}]
[null,null,null,null,null,null,null,{"$f":"'Item Template'!A2456","v":0}]
[null,null,null,null,null,null,null,{"$f":"'Item Template'!A2457","v":0}]
[null,null,null,null,null,null,null,{"$f":"'Item Template'!A2458","v":0}]
[null,null,null,null,null,null,null,{"$f":"'Item Template'!A2459","v":0}]
[null,null,null,null,null,null,null,{"$f":"'Item Template'!A2460","v":0}]
[null,null,null,null,null,null,null,{"$f":"'Item Template'!A2461","v":0}]
[null,null,null,null,null,null,null,{"$f":"'Item Template'!A2462","v":0}]
[null,null,null,null,null,null,null,{"$f":"'Item Template'!A2463","v":0}]
[null,null,null,null,null,null,null,{"$f":"'Item Template'!A2464","v":0}]
[null,null,null,null,null,null,null,{"$f":"'Item Template'!A2465","v":0}]
[null,null,null,null,null,null,null,{"$f":"'Item Template'!A2466","v":0}]
[null,null,null,null,null,null,null,{"$f":"'Item Template'!A2467","v":0}]
[null,null,null,null,null,null,null,{"$f":"'Item Template'!A2468","v":0}]
[null,null,null,null,null,null,null,{"$f":"'Item Template'!A2469","v":0}]
[null,null,null,null,null,null,null,{"$f":"'Item Template'!A2470","v":0}]
[null,null,null,null,null,null,null,{"$f":"'Item Template'!A2471","v":0}]
[null,null,null,null,null,null,null,{"$f":"'Item Template'!A2472","v":0}]
[null,null,null,null,null,null,null,{"$f":"'Item Template'!A2473","v":0}]
[null,null,null,null,null,null,null,{"$f":"'Item Template'!A2474","v":0}]
[null,null,null,null,null,null,null,{"$f":"'Item Template'!A2475","v":0}]
[null,null,null,null,null,null,null,{"$f":"'Item Template'!A2476","v":0}]
[null,null,null,null,null,null,null,{"$f":"'Item Template'!A2477","v":0}]
[null,null,null,null,null,null,null,{"$f":"'Item Template'!A2478","v":0}]
[null,null,null,null,null,null,null,{"$f":"'Item Template'!A2479","v":0}]
[null,null,null,null,null,null,null,{"$f":"'Item Template'!A2480","v":0}]
[null,null,null,null,null,null,null,{"$f":"'Item Template'!A2481","v":0}]
[null,null,null,null,null,null,null,{"$f":"'Item Template'!A2482","v":0}]
[null,null,null,null,null,null,null,{"$f":"'Item Template'!A2483","v":0}]
[null,null,null,null,null,null,null,{"$f":"'Item Template'!A2484","v":0}]
[null,null,null,null,null,null,null,{"$f":"'Item Template'!A2485","v":0}]
[null,null,null,null,null,null,null,{"$f":"'Item Template'!A2486","v":0}]
[null,null,null,null,null,null,null,{"$f":"'Item Template'!A2487","v":0}]
[null,null,null,null,null,null,null,{"$f":"'Item Template'!A2488","v":0}]
[null,null,null,null,null,null,null,{"$f":"'Item Template'!A2489","v":0}]
[null,null,null,null,null,null,null,{"$f":"'Item Template'!A2490","v":0}]
[null,null,null,null,null,null,null,{"$f":"'Item Template'!A2491","v":0}]
[null,null,null,null,null,null,null,{"$f":"'Item Template'!A2492","v":0}]
[null,null,null,null,null,null,null,{"$f":"'Item Template'!A2493","v":0}]
[null,null,null,null,null,null,null,{"$f":"'Item Template'!A2494","v":0}]
[null,null,null,null,null,null,null,{"$f":"'Item Template'!A2495","v":0}]
[null,null,null,null,null,null,null,{"$f":"'Item Template'!A2496","v":0}]
[null,null,null,null,null,null,null,{"$f":"'Item Template'!A2497","v":0}]
[null,null,null,null,null,null,null,{"$f":"'Item Template'!A2498","v":0}]
[null,null,null,null,null,null,null,{"$f":"'Item Template'!A2499","v":0}]
[null,null,null,null,null,null,null,{"$f":"'Item Template'!A2500","v":0}]
[null,null,null,null,null,null,null,{"$f":"'Item Template'!A2501","v":0}]
[null,null,null,null,null,null,null,{"$f":"'Item Template'!A2502","v":0}]
[null,null,null,null,null,null,null,{"$f":"'Item Template'!A2503","v":0}]
[null,null,null,null,null,null,null,{"$f":"'Item Template'!A2504","v":0}]
[null,null,null,null,null,null,null,{"$f":"'Item Template'!A2505","v":0}]
[null,null,null,null,null,null,null,{"$f":"'Item Template'!A2506","v":0}]
[null,null,null,null,null,null,null,{"$f":"'Item Template'!A2507","v":0}]
[null,null,null,null,null,null,null,{"$f":"'Item Template'!A2508","v":0}]
[null,null,null,null,null,null,null,{"$f":"'Item Template'!A2509","v":0}]
[null,null,null,null,null,null,null,{"$f":"'Item Template'!A2510","v":0}]
[null,null,null,null,null,null,null,{"$f":"'Item Template'!A2511","v":0}]
[null,null,null,null,null,null,null,{"$f":"'Item Template'!A2512","v":0}]
[null,null,null,null,null,null,null,{"$f":"'Item Template'!A2513","v":0}]
[null,null,null,null,null,null,null,{"$f":"'Item Template'!A2514","v":0}]
[null,null,null,null,null,null,null,{"$f":"'Item Template'!A2515","v":0}]
[null,null,null,null,null,null,null,{"$f":"'Item Template'!A2516","v":0}]
[null,null,null,null,null,null,null,{"$f":"'Item Template'!A2517","v":0}]
[null,null,null,null,null,null,null,{"$f":"'Item Template'!A2518","v":0}]
[null,null,null,null,null,null,null,{"$f":"'Item Template'!A2519","v":0}]
[null,null,null,null,null,null,null,{"$f":"'Item Template'!A2520","v":0}]
[null,null,null,null,null,null,null,{"$f":"'Item Template'!A2521","v":0}]
[null,null,null,null,null,null,null,{"$f":"'Item Template'!A2522","v":0}]
[null,null,null,null,null,null,null,{"$f":"'Item Template'!A2523","v":0}]
[null,null,null,null,null,null,null,{"$f":"'Item Template'!A2524","v":0}]
[null,null,null,null,null,null,null,{"$f":"'Item Template'!A2525","v":0}]
[null,null,null,null,null,null,null,{"$f":"'Item Template'!A2526","v":0}]
[null,null,null,null,null,null,null,{"$f":"'Item Template'!A2527","v":0}]
[null,null,null,null,null,null,null,{"$f":"'Item Template'!A2528","v":0}]
[null,null,null,null,null,null,null,{"$f":"'Item Template'!A2529","v":0}]
[null,null,null,null,null,null,null,{"$f":"'Item Template'!A2530","v":0}]
[null,null,null,null,null,null,null,{"$f":"'Item Template'!A2531","v":0}]
[null,null,null,null,null,null,null,{"$f":"'Item Template'!A2532","v":0}]
[null,null,null,null,null,null,null,{"$f":"'Item Template'!A2533","v":0}]
[null,null,null,null,null,null,null,{"$f":"'Item Template'!A2534","v":0}]
[null,null,null,null,null,null,null,{"$f":"'Item Template'!A2535","v":0}]
[null,null,null,null,null,null,null,{"$f":"'Item Template'!A2536","v":0}]
[null,null,null,null,null,null,null,{"$f":"'Item Template'!A2537","v":0}]
[null,null,null,null,null,null,null,{"$f":"'Item Template'!A2538","v":0}]
[null,null,null,null,null,null,null,{"$f":"'Item Template'!A2539","v":0}]
[null,null,null,null,null,null,null,{"$f":"'Item Template'!A2540","v":0}]
[null,null,null,null,null,null,null,{"$f":"'Item Template'!A2541","v":0}]
[null,null,null,null,null,null,null,{"$f":"'Item Template'!A2542","v":0}]
[null,null,null,null,null,null,null,{"$f":"'Item Template'!A2543","v":0}]
[null,null,null,null,null,null,null,{"$f":"'Item Template'!A2544","v":0}]
[null,null,null,null,null,null,null,{"$f":"'Item Template'!A2545","v":0}]
[null,null,null,null,null,null,null,{"$f":"'Item Template'!A2546","v":0}]
[null,null,null,null,null,null,null,{"$f":"'Item Template'!A2547","v":0}]
[null,null,null,null,null,null,null,{"$f":"'Item Template'!A2548","v":0}]
[null,null,null,null,null,null,null,{"$f":"'Item Template'!A2549","v":0}]
[null,null,null,null,null,null,null,{"$f":"'Item Template'!A2550","v":0}]
[null,null,null,null,null,null,null,{"$f":"'Item Template'!A2551","v":0}]
[null,null,null,null,null,null,null,{"$f":"'Item Template'!A2552","v":0}]
[null,null,null,null,null,null,null,{"$f":"'Item Template'!A2553","v":0}]
[null,null,null,null,null,null,null,{"$f":"'Item Template'!A2554","v":0}]
[null,null,null,null,null,null,null,{"$f":"'Item Template'!A2555","v":0}]
[null,null,null,null,null,null,null,{"$f":"'Item Template'!A2556","v":0}]
[null,null,null,null,null,null,null,{"$f":"'Item Template'!A2557","v":0}]
[null,null,null,null,null,null,null,{"$f":"'Item Template'!A2558","v":0}]
[null,null,null,null,null,null,null,{"$f":"'Item Template'!A2559","v":0}]
[null,null,null,null,null,null,null,{"$f":"'Item Template'!A2560","v":0}]
[null,null,null,null,null,null,null,{"$f":"'Item Template'!A2561","v":0}]
[null,null,null,null,null,null,null,{"$f":"'Item Template'!A2562","v":0}]
[null,null,null,null,null,null,null,{"$f":"'Item Template'!A2563","v":0}]
[null,null,null,null,null,null,null,{"$f":"'Item Template'!A2564","v":0}]
[null,null,null,null,null,null,null,{"$f":"'Item Template'!A2565","v":0}]
[null,null,null,null,null,null,null,{"$f":"'Item Template'!A2566","v":0}]
[null,null,null,null,null,null,null,{"$f":"'Item Template'!A2567","v":0}]
[null,null,null,null,null,null,null,{"$f":"'Item Template'!A2568","v":0}]
[null,null,null,null,null,null,null,{"$f":"'Item Template'!A2569","v":0}]
[null,null,null,null,null,null,null,{"$f":"'Item Template'!A2570","v":0}]